{"text_format":"1","workbook":"xlsx","n_sheets":20,"sheets":["Ajánlat1","Munka3","Díjszámítás","Munka4","ÉpületIngóság","Gép,berendezés","Géplista","GéptörésELBER","Kiegészítők","Összesítő","Kockázatfelmérő","Nyilatkozat","Nyomtatás","Munka8","ÉpLimit","IngóLimit","FelLimit","Munka9","Munka5","Munka1"],"not_rendered":{"charts":0,"images":15,"macros":1,"external_links":0,"defined_names":41,"comments":0,"pivot_tables":0},"unopened":[],"bounds":{"document_bytes":16777216,"sheet_cells":100000,"rows_first":2000,"rows_last":500,"rows_between":2000,"halvings":0,"cell_chars":16384,"cell_head_chars":4096},"cells_cut":0,"cells_raw":0,"read":"whole","date_system":"1900"}

{"sheet":"Ajánlat1","index":0,"n_rows":103,"n_cols":15,"rows_kept":103,"cut":false,"hidden":true,"merged":[[23,6,23,7],[21,6,21,7],[19,6,19,7],[18,1,18,10],[19,3,19,4],[21,3,21,4],[23,3,23,4],[56,3,56,10],[47,1,47,10],[50,3,50,10],[2,8,2,10],[6,3,6,5],[3,8,3,10],[13,1,13,10],[6,7,6,8],[7,1,7,2],[12,1,12,10],[5,9,8,11],[7,3,7,4],[8,7,8,8],[17,8,17,10],[20,1,20,10],[17,3,17,4],[35,5,35,10],[37,4,37,5],[27,4,27,6],[92,2,92,4],[92,8,92,10],[33,4,33,6],[31,8,31,9],[42,1,42,10],[43,1,43,10],[44,1,44,10],[89,2,89,3],[89,4,89,5],[37,7,37,8],[91,2,91,4],[91,8,91,10],[54,3,54,10],[102,1,102,10],[1,1,1,3],[6,1,6,2],[15,4,15,10],[5,7,5,8],[5,3,5,5],[8,2,8,3],[7,7,7,8],[7,5,7,6],[41,1,41,10],[46,1,46,10],[51,3,51,10],[52,3,52,10],[22,1,22,10],[28,1,28,10],[39,4,39,8]]}
[]
[]
[null,null,null,null,null,null,null,null,"UNION-Business Class"]
[null,null,null,null,null,null,null,null,"Biztosítási ajánlat"]
[]
[null,"Kötvényszám",null,null,null,null,"Módozat",null,null,"Beérkezett:"]
[null,"Üzletkötő neve:",null,null,null,null,"Üzletkötő kódja"]
[null,"Átdolgozás  ",null,null,null,"Előzmény kötv.száma:"]
[null,"Befizetés nyugatszáma",null,null,"Befizetés kelte:",null,"Befizetett összeg:"]
[]
[null,"Adóigazgatási szám: 1049 1984-2-44   ",null,null,null,null,null,"Ajánlat azonosító:"]
[]
[]
[null,"SZERZŐDŐ/BIZTOSÍTOTT NEVE:"]
[]
[null,"Szerződő/Biztosított neve:"]
[]
[null,"Adószáma:",null,null,null,"Tel:",null,"E-mail:"]
[null,"Székhelye:"]
[null,null,"ir.sz.",null,null,"helység",null,null,"utca",null,"hsz.em.ajtó"]
[null,"Levelezési címe:"]
[null,null,"ir.sz.",null,null,"helység",null,null,"utca",null,"hsz.em.ajtó"]
[null,"Kockázatviselés helye:"]
[null,null,"ir.sz.",null,null,"helység",null,null,"utca",null,"hsz.em.ajtó"]
[]
[null,"Kockázatviselés kezdete:",null,null,{"$f":"Dátum+1","v":"2021-04-01"}]
[]
[null,"Kockázatviselés vége:",null,null,"Felmondási jog 3 évre kizárva",null,null,null,"Lejárata:",null,null,null,null,{"$f":"IF(OR(MOD(YEAR(E26)-2000,4)=0,J28=\"\"),365,IF(J28-E26=364,365,J28-E26+1))","v":365},{"$f":"DATEVALUE(CONCATENATE(YEAR(E26)+1,\".\",MONTH(E26),\".\",DAY(E26),\".\"))","v":"2022-04-01"}]
[null,{"$f":"IF(E28=0,0,IF(AND(E28=\"határozatlan\",J28=0),0,IF(AND(E28=\"1 évnél rövidebb\",J28=0),\"Kérjük töltse ki a lejárat dátumát\",IF(AND(E28=\"1 évnél rövidebb\",J28>0),0,))))","v":0},null,null,null,null,null,null,null,null,null,null,null,{"$f":"IF(IF(DAY(E26)<3,DAY(E26),DAY(E26-1))<16,E26-DAY(E26)+1,DATEVALUE(CONCATENATE(YEAR(E26),\".\",IF(MONTH(E26)=12,\"01\",MONTH(E26)+1),\".01\")))","v":"2021-04-01"}]
[null,"Díjfizetés kezdete:  ",null,null,{"$f":"E26","v":"2021-04-01"},null,null,null,"Évforduló:",{"$f":"IF(DAY(E26)=1,O28,IF(DAY(E26)>1,N32))","v":"2022-04-01"}]
[]
[null,"Díjfizetés gyakorisága: ",null,null,{"$f":"Díjszámítás!H113","v":0},null,"Díjfizetés módja:            ",null,null,null,null,null,null,{"$f":"IF(E28=\"1 évnél rövidebb\",0,IF(OR(J28=\"\",N28>364),DATEVALUE(CONCATENATE(YEAR(E30)+1,\".\",IF(MONTH(E30)=12,\"01\",MONTH(E30)+1),\".01\")),\"\"))","v":"2022-05-01"}]
[]
[null,"Átutalási számlaszáma:"]
[]
[null,"Hitelfedezetet nyújtó pénzintézet neve, címe:"]
[]
[null,"Hitelszerződés száma:",null,null,null,null,"Kezdete:",null,null,"Lejárata:"]
[]
[null,"Hitelfedezet tárgya",null,null,null,null,null,null,null,"Hitel összege"]
[]
[null,"Záradékok"]
[null,{"$f":"IF(E28=\"Felmondási jog 3 évre kizárva\",B103,0)","v":"A biztosított/szerződő vállalja, hogy jelen szerződést 3 évig nem mondja fel, ezért a biztosító a biztosítás éves díjából 10% engedményt nyújt. Amennyiben a szerződő/biztosított a 3 év lejárata előtt felmondja a szerződést, a tartamengedmény címén nyújtott kedvezményt meg kell fizetnie."}]
[]
[]
[]
[]
[null,"Ajánlatot teszek a túloldalon részletezett biztosításra, amelynek alapján az Union Vienna Insurance Group Biztosító Zrt azt a kötelezettséget vállalja, hogy díjfizetés ellenében készpénzben megtéríti a különös feltételekben felsorolt biztosítási események során bekövetkező azon károkat, amelyekre a biztosítási szerződés létrejött. "]
[]
[null,"Tudomásul veszem:",null,"hogy jelen ajánlat a biztosító kockázatelbírálásának alapja"]
[null,null,null,"hogy a biztosító kártérítése - betöréses lopás esetén - a kár időpontjában fennálló vagyonvédelmi színvonal függvényében történik"]
[null,null,null,"hogy a biztosító a tényleges adatoktól való eltérés esetén az alul- és túlbiztosítottságot vizsgálja"]
[null,null,null,"hogy az ajánlat aláírásakor a biztosító képviselőjének átadott összeg előlegnek minősül, amely a szerződés hatályba lépésekor az első díjba beszámításra kerül. "]
[]
[null,"Kijelentem:",null,"hogy az Általános Feltételekben, a Különös Feltételekben,  a Vagyonvédelmi Feltételekben, a Különös Felelősségbiztosítási Feltételekben foglaltakat az ajánlat aláírása előtt átvettem és megismertem."]
[null,null,null,"hogy a közölt adatok a valóságnak megfelelnek"]
[null,null,null,"hogy jelen ajánlatomban minden biztosítási igényemmel kapcsolatos igényemet rögzítettek, más szóbeli megállapodás nem történt."]
[null,null,null,"hogy az itt feltüntetett vagyontárgyakra más biztosítónál biztosítást nem kötöttem."]
[]
[]
[null,"00:00:00"]
[]
[]
[]
[]
[]
[]
[]
[]
[]
[]
[]
[]
[]
[null,null,null,"határozatlan",null,"igen"]
[null,null,null,"1 évnél rövidebb",null,"nem"]
[null,null,null,"Felmondási jog 3 évre kizárva"]
[]
[]
[null,null,null,"1. csekk"]
[null,null,null,"2. csoportos beszedés (GIRO)"]
[null,null,null,"3. banki átutalás"]
[null,null,null,"4. egyéb"]
[]
[null,null,null,"1. havi"]
[null,null,null,"2. negyedéves"]
[null,null,null,"3. féléves"]
[null,null,null,"4. éves "]
[]
[null,"Kelt.",null,null,{"$f":"TODAY()","v":"2021-03-31"}]
[]
[]
[null,null,"üzletkötő",null,null,null,null,null,"szerződő/biztosított"]
[null,"Verzió: 0.85"]
[null,"UNION-Business Class Érvényes: 2009.06.24.-től  "]
[]
[]
[]
[]
[]
[]
[]
[null,"A biztosított/szerződő vállalja, hogy jelen szerződést 3 évig nem mondja fel, ezért a biztosító a biztosítás éves díjából 10% engedményt nyújt. Amennyiben a szerződő/biztosított a 3 év lejárata előtt felmondja a szerződést, a tartamengedmény címén nyújtott kedvezményt meg kell fizetnie."]

{"sheet":"Munka3","index":1,"n_rows":302,"n_cols":21,"rows_kept":302,"cut":false,"hidden":true,"merged":[]}
["Tevkor","Vagyon","Felelosseg","Betores","Üzemszünet","Géptörés","Elber"]
["1011 Húsfeldolgozás, -tartósítás",3,3,1,3,2,2,null,null,null,null,null,null,null,null,null,{"$f":"IF(--ISNUMBER(SEARCH(Díjszámítás!$C$12,A2)),MAX($Q$1:Q1)+1,\"\")","v":1},{"$f":"IFERROR(INDEX($A$2:$A$302,MATCH(ROWS($Q$2:Q2),$Q$2:$Q$302,0)),\"\")","v":"1011 Húsfeldolgozás, -tartósítás"},null,null,{"$f":"$R$2:INDEX($R$2:$R$302,COUNTIF($R$2:$R$302,\"?*\"))","v":"1011 Húsfeldolgozás, -tartósítás"}]
["1012 Baromfihús feldolgozása, tartósítása",3,3,1,3,2,2,null,null,null,null,null,null,null,null,null,{"$f":"IF(--ISNUMBER(SEARCH(Díjszámítás!$C$12,A3)),MAX($Q$1:Q2)+1,\"\")","v":2},{"$f":"IFERROR(INDEX($A$2:$A$302,MATCH(ROWS($Q$2:Q3),$Q$2:$Q$302,0)),\"\")","v":"1012 Baromfihús feldolgozása, tartósítása"}]
["1013 Hús-, baromfihús-készítmény gyártása",3,3,1,3,2,2,null,null,null,null,null,null,null,null,null,{"$f":"IF(--ISNUMBER(SEARCH(Díjszámítás!$C$12,A4)),MAX($Q$1:Q3)+1,\"\")","v":3},{"$f":"IFERROR(INDEX($A$2:$A$302,MATCH(ROWS($Q$2:Q4),$Q$2:$Q$302,0)),\"\")","v":"1013 Hús-, baromfihús-készítmény gyártása"}]
["1020 Halfeldolgozás, -tartósítás",3,3,1,3,2,2,null,null,null,null,null,null,null,null,null,{"$f":"IF(--ISNUMBER(SEARCH(Díjszámítás!$C$12,A5)),MAX($Q$1:Q4)+1,\"\")","v":4},{"$f":"IFERROR(INDEX($A$2:$A$302,MATCH(ROWS($Q$2:Q5),$Q$2:$Q$302,0)),\"\")","v":"1020 Halfeldolgozás, -tartósítás"}]
["1031 Burgonyafeldolgozás, -tartósítás",3,3,1,3,2,1,null,null,null,null,null,null,null,null,null,{"$f":"IF(--ISNUMBER(SEARCH(Díjszámítás!$C$12,A6)),MAX($Q$1:Q5)+1,\"\")","v":5},{"$f":"IFERROR(INDEX($A$2:$A$302,MATCH(ROWS($Q$2:Q6),$Q$2:$Q$302,0)),\"\")","v":"1031 Burgonyafeldolgozás, -tartósítás"}]
["1032 Gyümölcs-, zöldséglé gyártása",3,3,1,3,2,1,null,null,null,null,null,null,null,null,null,{"$f":"IF(--ISNUMBER(SEARCH(Díjszámítás!$C$12,A7)),MAX($Q$1:Q6)+1,\"\")","v":6},{"$f":"IFERROR(INDEX($A$2:$A$302,MATCH(ROWS($Q$2:Q7),$Q$2:$Q$302,0)),\"\")","v":"1032 Gyümölcs-, zöldséglé gyártása"}]
["1039 Egyéb gyümölcs-, zöldségfeldolgozás, -tartósítás",3,3,1,3,2,1,null,null,null,null,null,null,null,null,null,{"$f":"IF(--ISNUMBER(SEARCH(Díjszámítás!$C$12,A8)),MAX($Q$1:Q7)+1,\"\")","v":7},{"$f":"IFERROR(INDEX($A$2:$A$302,MATCH(ROWS($Q$2:Q8),$Q$2:$Q$302,0)),\"\")","v":"1039 Egyéb gyümölcs-, zöldségfeldolgozás, -tartósítás"}]
["1041 Olaj gyártása",5,3,2,5,3,2,null,null,null,null,null,null,null,null,null,{"$f":"IF(--ISNUMBER(SEARCH(Díjszámítás!$C$12,A9)),MAX($Q$1:Q8)+1,\"\")","v":8},{"$f":"IFERROR(INDEX($A$2:$A$302,MATCH(ROWS($Q$2:Q9),$Q$2:$Q$302,0)),\"\")","v":"1041 Olaj gyártása"}]
["1042 Margarin gyártása",5,3,2,5,3,2,null,null,null,null,null,null,null,null,null,{"$f":"IF(--ISNUMBER(SEARCH(Díjszámítás!$C$12,A10)),MAX($Q$1:Q9)+1,\"\")","v":9},{"$f":"IFERROR(INDEX($A$2:$A$302,MATCH(ROWS($Q$2:Q10),$Q$2:$Q$302,0)),\"\")","v":"1042 Margarin gyártása"}]
["1051 Tejtermék gyártása",3,3,1,3,3,1,null,null,null,null,null,null,null,null,null,{"$f":"IF(--ISNUMBER(SEARCH(Díjszámítás!$C$12,A11)),MAX($Q$1:Q10)+1,\"\")","v":10},{"$f":"IFERROR(INDEX($A$2:$A$302,MATCH(ROWS($Q$2:Q11),$Q$2:$Q$302,0)),\"\")","v":"1051 Tejtermék gyártása"}]
["1052 Jégkrém gyártása",3,3,1,3,3,1,null,null,null,null,null,null,null,null,null,{"$f":"IF(--ISNUMBER(SEARCH(Díjszámítás!$C$12,A12)),MAX($Q$1:Q11)+1,\"\")","v":11},{"$f":"IFERROR(INDEX($A$2:$A$302,MATCH(ROWS($Q$2:Q12),$Q$2:$Q$302,0)),\"\")","v":"1052 Jégkrém gyártása"}]
["1071 Kenyér; friss pékáru gyártása",3,3,1,3,3,2,null,null,null,null,null,null,null,null,null,{"$f":"IF(--ISNUMBER(SEARCH(Díjszámítás!$C$12,A13)),MAX($Q$1:Q12)+1,\"\")","v":12},{"$f":"IFERROR(INDEX($A$2:$A$302,MATCH(ROWS($Q$2:Q13),$Q$2:$Q$302,0)),\"\")","v":"1071 Kenyér; friss pékáru gyártása"}]
["1072 Tartósított lisztes áru gyártása",4,3,1,4,2,1,null,null,null,null,null,null,null,null,null,{"$f":"IF(--ISNUMBER(SEARCH(Díjszámítás!$C$12,A14)),MAX($Q$1:Q13)+1,\"\")","v":13},{"$f":"IFERROR(INDEX($A$2:$A$302,MATCH(ROWS($Q$2:Q14),$Q$2:$Q$302,0)),\"\")","v":"1072 Tartósított lisztes áru gyártása"}]
["1073 Tésztafélék gyártása",4,3,1,4,2,1,null,null,null,null,null,null,null,null,null,{"$f":"IF(--ISNUMBER(SEARCH(Díjszámítás!$C$12,A15)),MAX($Q$1:Q14)+1,\"\")","v":14},{"$f":"IFERROR(INDEX($A$2:$A$302,MATCH(ROWS($Q$2:Q15),$Q$2:$Q$302,0)),\"\")","v":"1073 Tésztafélék gyártása"}]
["1081 Cukorgyártás",4,3,2,4,3,2,null,null,null,null,null,null,null,null,null,{"$f":"IF(--ISNUMBER(SEARCH(Díjszámítás!$C$12,A16)),MAX($Q$1:Q15)+1,\"\")","v":15},{"$f":"IFERROR(INDEX($A$2:$A$302,MATCH(ROWS($Q$2:Q16),$Q$2:$Q$302,0)),\"\")","v":"1081 Cukorgyártás"}]
["1082 Édesség gyártása",4,3,2,4,3,2,null,null,null,null,null,null,null,null,null,{"$f":"IF(--ISNUMBER(SEARCH(Díjszámítás!$C$12,A17)),MAX($Q$1:Q16)+1,\"\")","v":16},{"$f":"IFERROR(INDEX($A$2:$A$302,MATCH(ROWS($Q$2:Q17),$Q$2:$Q$302,0)),\"\")","v":"1082 Édesség gyártása"}]
["1083 Tea, kávé feldolgozása",6,3,3,6,2,2,null,null,null,null,null,null,null,null,null,{"$f":"IF(--ISNUMBER(SEARCH(Díjszámítás!$C$12,A18)),MAX($Q$1:Q17)+1,\"\")","v":17},{"$f":"IFERROR(INDEX($A$2:$A$302,MATCH(ROWS($Q$2:Q18),$Q$2:$Q$302,0)),\"\")","v":"1083 Tea, kávé feldolgozása"}]
["1084 Fűszer, ételízesítő gyártása",6,3,1,6,2,2,null,null,null,null,null,null,null,null,null,{"$f":"IF(--ISNUMBER(SEARCH(Díjszámítás!$C$12,A19)),MAX($Q$1:Q18)+1,\"\")","v":18},{"$f":"IFERROR(INDEX($A$2:$A$302,MATCH(ROWS($Q$2:Q19),$Q$2:$Q$302,0)),\"\")","v":"1084 Fűszer, ételízesítő gyártása"}]
["1085 Készétel gyártása",3,3,1,3,3,3,null,null,null,null,null,null,null,null,null,{"$f":"IF(--ISNUMBER(SEARCH(Díjszámítás!$C$12,A20)),MAX($Q$1:Q19)+1,\"\")","v":19},{"$f":"IFERROR(INDEX($A$2:$A$302,MATCH(ROWS($Q$2:Q20),$Q$2:$Q$302,0)),\"\")","v":"1085 Készétel gyártása"}]
["1086 Homogenizált, diétás étel gyártása",3,3,1,3,3,3,null,null,null,null,null,null,null,null,null,{"$f":"IF(--ISNUMBER(SEARCH(Díjszámítás!$C$12,A21)),MAX($Q$1:Q20)+1,\"\")","v":20},{"$f":"IFERROR(INDEX($A$2:$A$302,MATCH(ROWS($Q$2:Q21),$Q$2:$Q$302,0)),\"\")","v":"1086 Homogenizált, diétás étel gyártása"}]
["1089 M.n.s. egyéb élelmiszer gyártása",3,3,1,3,3,3,null,null,null,null,null,null,null,null,null,{"$f":"IF(--ISNUMBER(SEARCH(Díjszámítás!$C$12,A22)),MAX($Q$1:Q21)+1,\"\")","v":21},{"$f":"IFERROR(INDEX($A$2:$A$302,MATCH(ROWS($Q$2:Q22),$Q$2:$Q$302,0)),\"\")","v":"1089 M.n.s. egyéb élelmiszer gyártása"}]
["1091 Haszonállat-eledel gyártása",3,3,1,3,3,3,null,null,null,null,null,null,null,null,null,{"$f":"IF(--ISNUMBER(SEARCH(Díjszámítás!$C$12,A23)),MAX($Q$1:Q22)+1,\"\")","v":22},{"$f":"IFERROR(INDEX($A$2:$A$302,MATCH(ROWS($Q$2:Q23),$Q$2:$Q$302,0)),\"\")","v":"1091 Haszonállat-eledel gyártása"}]
["1092 Hobbiállat-eledel gyártása",3,3,1,3,3,3,null,null,null,null,null,null,null,null,null,{"$f":"IF(--ISNUMBER(SEARCH(Díjszámítás!$C$12,A24)),MAX($Q$1:Q23)+1,\"\")","v":23},{"$f":"IFERROR(INDEX($A$2:$A$302,MATCH(ROWS($Q$2:Q24),$Q$2:$Q$302,0)),\"\")","v":"1092 Hobbiállat-eledel gyártása"}]
["1101 Desztillált szeszes ital gyártása",6,3,2,6,3,1,null,null,null,null,null,null,null,null,null,{"$f":"IF(--ISNUMBER(SEARCH(Díjszámítás!$C$12,A25)),MAX($Q$1:Q24)+1,\"\")","v":24},{"$f":"IFERROR(INDEX($A$2:$A$302,MATCH(ROWS($Q$2:Q25),$Q$2:$Q$302,0)),\"\")","v":"1101 Desztillált szeszes ital gyártása"}]
["1102 Szőlőbor termelése ",2,3,1,2,3,1,null,null,null,null,null,null,null,null,null,{"$f":"IF(--ISNUMBER(SEARCH(Díjszámítás!$C$12,A26)),MAX($Q$1:Q25)+1,\"\")","v":25},{"$f":"IFERROR(INDEX($A$2:$A$302,MATCH(ROWS($Q$2:Q26),$Q$2:$Q$302,0)),\"\")","v":"1102 Szőlőbor termelése "}]
["1103 Gyümölcsbor termelése",2,3,1,2,3,1,null,null,null,null,null,null,null,null,null,{"$f":"IF(--ISNUMBER(SEARCH(Díjszámítás!$C$12,A27)),MAX($Q$1:Q26)+1,\"\")","v":26},{"$f":"IFERROR(INDEX($A$2:$A$302,MATCH(ROWS($Q$2:Q27),$Q$2:$Q$302,0)),\"\")","v":"1103 Gyümölcsbor termelése"}]
["1104 Egyéb nem desztillált, erjesztett ital gyártása",2,3,1,2,3,1,null,null,null,null,null,null,null,null,null,{"$f":"IF(--ISNUMBER(SEARCH(Díjszámítás!$C$12,A28)),MAX($Q$1:Q27)+1,\"\")","v":27},{"$f":"IFERROR(INDEX($A$2:$A$302,MATCH(ROWS($Q$2:Q28),$Q$2:$Q$302,0)),\"\")","v":"1104 Egyéb nem desztillált, erjesztett ital gyártása"}]
["1105 Sörgyártás",6,3,2,6,3,1,null,null,null,null,null,null,null,null,null,{"$f":"IF(--ISNUMBER(SEARCH(Díjszámítás!$C$12,A29)),MAX($Q$1:Q28)+1,\"\")","v":28},{"$f":"IFERROR(INDEX($A$2:$A$302,MATCH(ROWS($Q$2:Q29),$Q$2:$Q$302,0)),\"\")","v":"1105 Sörgyártás"}]
["1107 Üdítőital, ásványvíz gyártása",3,3,1,3,3,2,null,null,null,null,null,null,null,null,null,{"$f":"IF(--ISNUMBER(SEARCH(Díjszámítás!$C$12,A30)),MAX($Q$1:Q29)+1,\"\")","v":29},{"$f":"IFERROR(INDEX($A$2:$A$302,MATCH(ROWS($Q$2:Q30),$Q$2:$Q$302,0)),\"\")","v":"1107 Üdítőital, ásványvíz gyártása"}]
["1411 Bőrruházat gyártása",4,3,3,4,2,1,null,null,null,null,null,null,null,null,null,{"$f":"IF(--ISNUMBER(SEARCH(Díjszámítás!$C$12,A31)),MAX($Q$1:Q30)+1,\"\")","v":30},{"$f":"IFERROR(INDEX($A$2:$A$302,MATCH(ROWS($Q$2:Q31),$Q$2:$Q$302,0)),\"\")","v":"1411 Bőrruházat gyártása"}]
["1412 Munkaruházat gyártása",4,3,2,4,4,2,null,null,null,null,null,null,null,null,null,{"$f":"IF(--ISNUMBER(SEARCH(Díjszámítás!$C$12,A32)),MAX($Q$1:Q31)+1,\"\")","v":31},{"$f":"IFERROR(INDEX($A$2:$A$302,MATCH(ROWS($Q$2:Q32),$Q$2:$Q$302,0)),\"\")","v":"1412 Munkaruházat gyártása"}]
["1413 Felsőruházat gyártása (kivéve: munkaruházat)",4,3,2,4,4,2,null,null,null,null,null,null,null,null,null,{"$f":"IF(--ISNUMBER(SEARCH(Díjszámítás!$C$12,A33)),MAX($Q$1:Q32)+1,\"\")","v":32},{"$f":"IFERROR(INDEX($A$2:$A$302,MATCH(ROWS($Q$2:Q33),$Q$2:$Q$302,0)),\"\")","v":"1413 Felsőruházat gyártása (kivéve: munkaruházat)"}]
["1414 Alsóruházat gyártása",4,3,2,4,4,2,null,null,null,null,null,null,null,null,null,{"$f":"IF(--ISNUMBER(SEARCH(Díjszámítás!$C$12,A34)),MAX($Q$1:Q33)+1,\"\")","v":33},{"$f":"IFERROR(INDEX($A$2:$A$302,MATCH(ROWS($Q$2:Q34),$Q$2:$Q$302,0)),\"\")","v":"1414 Alsóruházat gyártása"}]
["1419 Egyéb ruházat, kiegészítők gyártása",4,3,2,4,4,2,null,null,null,null,null,null,null,null,null,{"$f":"IF(--ISNUMBER(SEARCH(Díjszámítás!$C$12,A35)),MAX($Q$1:Q34)+1,\"\")","v":34},{"$f":"IFERROR(INDEX($A$2:$A$302,MATCH(ROWS($Q$2:Q35),$Q$2:$Q$302,0)),\"\")","v":"1419 Egyéb ruházat, kiegészítők gyártása"}]
["1431 Kötött, hurkolt harisnyafélék gyártása",4,3,2,4,4,2,null,null,null,null,null,null,null,null,null,{"$f":"IF(--ISNUMBER(SEARCH(Díjszámítás!$C$12,A36)),MAX($Q$1:Q35)+1,\"\")","v":35},{"$f":"IFERROR(INDEX($A$2:$A$302,MATCH(ROWS($Q$2:Q36),$Q$2:$Q$302,0)),\"\")","v":"1431 Kötött, hurkolt harisnyafélék gyártása"}]
["1439 Egyéb kötött, hurkolt ruházati termék gyártása ",4,3,2,4,4,2,null,null,null,null,null,null,null,null,null,{"$f":"IF(--ISNUMBER(SEARCH(Díjszámítás!$C$12,A37)),MAX($Q$1:Q36)+1,\"\")","v":36},{"$f":"IFERROR(INDEX($A$2:$A$302,MATCH(ROWS($Q$2:Q37),$Q$2:$Q$302,0)),\"\")","v":"1439 Egyéb kötött, hurkolt ruházati termék gyártása "}]
["1520 Lábbeligyártás",4,3,2,4,2,1,null,null,null,null,null,null,null,null,null,{"$f":"IF(--ISNUMBER(SEARCH(Díjszámítás!$C$12,A38)),MAX($Q$1:Q37)+1,\"\")","v":37},{"$f":"IFERROR(INDEX($A$2:$A$302,MATCH(ROWS($Q$2:Q38),$Q$2:$Q$302,0)),\"\")","v":"1520 Lábbeligyártás"}]
["1610 Fűrészárugyártás",8,4,2,8,4,3,null,null,null,null,null,null,null,null,null,{"$f":"IF(--ISNUMBER(SEARCH(Díjszámítás!$C$12,A39)),MAX($Q$1:Q38)+1,\"\")","v":38},{"$f":"IFERROR(INDEX($A$2:$A$302,MATCH(ROWS($Q$2:Q39),$Q$2:$Q$302,0)),\"\")","v":"1610 Fűrészárugyártás"}]
["1621 Falemezgyártás",6,4,2,6,1,1,null,null,null,null,null,null,null,null,null,{"$f":"IF(--ISNUMBER(SEARCH(Díjszámítás!$C$12,A40)),MAX($Q$1:Q39)+1,\"\")","v":39},{"$f":"IFERROR(INDEX($A$2:$A$302,MATCH(ROWS($Q$2:Q40),$Q$2:$Q$302,0)),\"\")","v":"1621 Falemezgyártás"}]
["1622 Parkettagyártás",6,4,2,6,1,1,null,null,null,null,null,null,null,null,null,{"$f":"IF(--ISNUMBER(SEARCH(Díjszámítás!$C$12,A41)),MAX($Q$1:Q40)+1,\"\")","v":40},{"$f":"IFERROR(INDEX($A$2:$A$302,MATCH(ROWS($Q$2:Q41),$Q$2:$Q$302,0)),\"\")","v":"1622 Parkettagyártás"}]
["1623 Épületasztalos-ipari termék gyártása",5,4,3,5,3,1,null,null,null,null,null,null,null,null,null,{"$f":"IF(--ISNUMBER(SEARCH(Díjszámítás!$C$12,A42)),MAX($Q$1:Q41)+1,\"\")","v":41},{"$f":"IFERROR(INDEX($A$2:$A$302,MATCH(ROWS($Q$2:Q42),$Q$2:$Q$302,0)),\"\")","v":"1623 Épületasztalos-ipari termék gyártása"}]
["1624 Tároló fatermék gyártása",6,4,2,6,3,2,null,null,null,null,null,null,null,null,null,{"$f":"IF(--ISNUMBER(SEARCH(Díjszámítás!$C$12,A43)),MAX($Q$1:Q42)+1,\"\")","v":42},{"$f":"IFERROR(INDEX($A$2:$A$302,MATCH(ROWS($Q$2:Q43),$Q$2:$Q$302,0)),\"\")","v":"1624 Tároló fatermék gyártása"}]
["1629 Egyéb fa-, parafatermék, fonottáru gyártása",5,4,2,5,2,2,null,null,null,null,null,null,null,null,null,{"$f":"IF(--ISNUMBER(SEARCH(Díjszámítás!$C$12,A44)),MAX($Q$1:Q43)+1,\"\")","v":43},{"$f":"IFERROR(INDEX($A$2:$A$302,MATCH(ROWS($Q$2:Q44),$Q$2:$Q$302,0)),\"\")","v":"1629 Egyéb fa-, parafatermék, fonottáru gyártása"}]
["1711 Papíripari rostanyag gyártása",6,4,2,6,3,3,null,null,null,null,null,null,null,null,null,{"$f":"IF(--ISNUMBER(SEARCH(Díjszámítás!$C$12,A45)),MAX($Q$1:Q44)+1,\"\")","v":44},{"$f":"IFERROR(INDEX($A$2:$A$302,MATCH(ROWS($Q$2:Q45),$Q$2:$Q$302,0)),\"\")","v":"1711 Papíripari rostanyag gyártása"}]
["1712 Papírgyártás",6,4,2,6,3,3,null,null,null,null,null,null,null,null,null,{"$f":"IF(--ISNUMBER(SEARCH(Díjszámítás!$C$12,A46)),MAX($Q$1:Q45)+1,\"\")","v":45},{"$f":"IFERROR(INDEX($A$2:$A$302,MATCH(ROWS($Q$2:Q46),$Q$2:$Q$302,0)),\"\")","v":"1712 Papírgyártás"}]
["1721 Papír csomagolóeszköz gyártása",5,4,2,5,3,3,null,null,null,null,null,null,null,null,null,{"$f":"IF(--ISNUMBER(SEARCH(Díjszámítás!$C$12,A47)),MAX($Q$1:Q46)+1,\"\")","v":46},{"$f":"IFERROR(INDEX($A$2:$A$302,MATCH(ROWS($Q$2:Q47),$Q$2:$Q$302,0)),\"\")","v":"1721 Papír csomagolóeszköz gyártása"}]
["1722 Háztartási, egészségügyi papírtermék gyártása",6,4,2,6,2,2,null,null,null,null,null,null,null,null,null,{"$f":"IF(--ISNUMBER(SEARCH(Díjszámítás!$C$12,A48)),MAX($Q$1:Q47)+1,\"\")","v":47},{"$f":"IFERROR(INDEX($A$2:$A$302,MATCH(ROWS($Q$2:Q48),$Q$2:$Q$302,0)),\"\")","v":"1722 Háztartási, egészségügyi papírtermék gyártása"}]
["1723 Irodai papíráru gyártása",6,4,2,6,3,3,null,null,null,null,null,null,null,null,null,{"$f":"IF(--ISNUMBER(SEARCH(Díjszámítás!$C$12,A49)),MAX($Q$1:Q48)+1,\"\")","v":48},{"$f":"IFERROR(INDEX($A$2:$A$302,MATCH(ROWS($Q$2:Q49),$Q$2:$Q$302,0)),\"\")","v":"1723 Irodai papíráru gyártása"}]
["1724 Tapétagyártás",6,4,2,6,3,3,null,null,null,null,null,null,null,null,null,{"$f":"IF(--ISNUMBER(SEARCH(Díjszámítás!$C$12,A50)),MAX($Q$1:Q49)+1,\"\")","v":49},{"$f":"IFERROR(INDEX($A$2:$A$302,MATCH(ROWS($Q$2:Q50),$Q$2:$Q$302,0)),\"\")","v":"1724 Tapétagyártás"}]
["1729 Egyéb papír-, kartontermék gyártása",6,4,2,6,3,3,null,null,null,null,null,null,null,null,null,{"$f":"IF(--ISNUMBER(SEARCH(Díjszámítás!$C$12,A51)),MAX($Q$1:Q50)+1,\"\")","v":50},{"$f":"IFERROR(INDEX($A$2:$A$302,MATCH(ROWS($Q$2:Q51),$Q$2:$Q$302,0)),\"\")","v":"1729 Egyéb papír-, kartontermék gyártása"}]
["1811 Napilapnyomás",4,4,1,4,4,1,null,null,null,null,null,null,null,null,null,{"$f":"IF(--ISNUMBER(SEARCH(Díjszámítás!$C$12,A52)),MAX($Q$1:Q51)+1,\"\")","v":51},{"$f":"IFERROR(INDEX($A$2:$A$302,MATCH(ROWS($Q$2:Q52),$Q$2:$Q$302,0)),\"\")","v":"1811 Napilapnyomás"}]
["1812 Nyomás (kivéve: napilap)",4,4,1,4,4,1,null,null,null,null,null,null,null,null,null,{"$f":"IF(--ISNUMBER(SEARCH(Díjszámítás!$C$12,A53)),MAX($Q$1:Q52)+1,\"\")","v":52},{"$f":"IFERROR(INDEX($A$2:$A$302,MATCH(ROWS($Q$2:Q53),$Q$2:$Q$302,0)),\"\")","v":"1812 Nyomás (kivéve: napilap)"}]
["1813 Nyomdai előkészítő tevékenység",4,4,1,4,4,2,null,null,null,null,null,null,null,null,null,{"$f":"IF(--ISNUMBER(SEARCH(Díjszámítás!$C$12,A54)),MAX($Q$1:Q53)+1,\"\")","v":53},{"$f":"IFERROR(INDEX($A$2:$A$302,MATCH(ROWS($Q$2:Q54),$Q$2:$Q$302,0)),\"\")","v":"1813 Nyomdai előkészítő tevékenység"}]
["1814 Könyvkötés, kapcsolódó szolgáltatás",4,4,1,4,3,1,null,null,null,null,null,null,null,null,null,{"$f":"IF(--ISNUMBER(SEARCH(Díjszámítás!$C$12,A55)),MAX($Q$1:Q54)+1,\"\")","v":54},{"$f":"IFERROR(INDEX($A$2:$A$302,MATCH(ROWS($Q$2:Q55),$Q$2:$Q$302,0)),\"\")","v":"1814 Könyvkötés, kapcsolódó szolgáltatás"}]
["1820 Egyéb sokszorosítás",4,4,1,4,4,2,null,null,null,null,null,null,null,null,null,{"$f":"IF(--ISNUMBER(SEARCH(Díjszámítás!$C$12,A56)),MAX($Q$1:Q55)+1,\"\")","v":55},{"$f":"IFERROR(INDEX($A$2:$A$302,MATCH(ROWS($Q$2:Q56),$Q$2:$Q$302,0)),\"\")","v":"1820 Egyéb sokszorosítás"}]
["2012 Színezék, pigment gyártása",8,4,2,8,4,3,null,null,null,null,null,null,null,null,null,{"$f":"IF(--ISNUMBER(SEARCH(Díjszámítás!$C$12,A57)),MAX($Q$1:Q56)+1,\"\")","v":56},{"$f":"IFERROR(INDEX($A$2:$A$302,MATCH(ROWS($Q$2:Q57),$Q$2:$Q$302,0)),\"\")","v":"2012 Színezék, pigment gyártása"}]
["2013 Szervetlen vegyi alapanyag gyártása",8,4,2,8,4,3,null,null,null,null,null,null,null,null,null,{"$f":"IF(--ISNUMBER(SEARCH(Díjszámítás!$C$12,A58)),MAX($Q$1:Q57)+1,\"\")","v":57},{"$f":"IFERROR(INDEX($A$2:$A$302,MATCH(ROWS($Q$2:Q58),$Q$2:$Q$302,0)),\"\")","v":"2013 Szervetlen vegyi alapanyag gyártása"}]
["2014 Szerves vegyi alapanyag gyártása",8,4,2,8,4,3,null,null,null,null,null,null,null,null,null,{"$f":"IF(--ISNUMBER(SEARCH(Díjszámítás!$C$12,A59)),MAX($Q$1:Q58)+1,\"\")","v":58},{"$f":"IFERROR(INDEX($A$2:$A$302,MATCH(ROWS($Q$2:Q59),$Q$2:$Q$302,0)),\"\")","v":"2014 Szerves vegyi alapanyag gyártása"}]
["2016 Műanyag-alapanyag gyártása",6,4,1,6,3,1,null,null,null,null,null,null,null,null,null,{"$f":"IF(--ISNUMBER(SEARCH(Díjszámítás!$C$12,A60)),MAX($Q$1:Q59)+1,\"\")","v":59},{"$f":"IFERROR(INDEX($A$2:$A$302,MATCH(ROWS($Q$2:Q60),$Q$2:$Q$302,0)),\"\")","v":"2016 Műanyag-alapanyag gyártása"}]
["2020 Mezőgazdasági vegyi termék gyártása",8,4,2,8,4,3,null,null,null,null,null,null,null,null,null,{"$f":"IF(--ISNUMBER(SEARCH(Díjszámítás!$C$12,A61)),MAX($Q$1:Q60)+1,\"\")","v":60},{"$f":"IFERROR(INDEX($A$2:$A$302,MATCH(ROWS($Q$2:Q61),$Q$2:$Q$302,0)),\"\")","v":"2020 Mezőgazdasági vegyi termék gyártása"}]
["2041 Tisztítószer gyártása",6,4,1,6,3,1,null,null,null,null,null,null,null,null,null,{"$f":"IF(--ISNUMBER(SEARCH(Díjszámítás!$C$12,A62)),MAX($Q$1:Q61)+1,\"\")","v":61},{"$f":"IFERROR(INDEX($A$2:$A$302,MATCH(ROWS($Q$2:Q62),$Q$2:$Q$302,0)),\"\")","v":"2041 Tisztítószer gyártása"}]
["2042 Testápolási cikk gyártása",6,4,1,6,3,1,null,null,null,null,null,null,null,null,null,{"$f":"IF(--ISNUMBER(SEARCH(Díjszámítás!$C$12,A63)),MAX($Q$1:Q62)+1,\"\")","v":62},{"$f":"IFERROR(INDEX($A$2:$A$302,MATCH(ROWS($Q$2:Q63),$Q$2:$Q$302,0)),\"\")","v":"2042 Testápolási cikk gyártása"}]
["2052 Ragasztószergyártás",8,4,2,8,4,3,null,null,null,null,null,null,null,null,null,{"$f":"IF(--ISNUMBER(SEARCH(Díjszámítás!$C$12,A64)),MAX($Q$1:Q63)+1,\"\")","v":63},{"$f":"IFERROR(INDEX($A$2:$A$302,MATCH(ROWS($Q$2:Q64),$Q$2:$Q$302,0)),\"\")","v":"2052 Ragasztószergyártás"}]
["2053 Illóolajgyártás",8,4,2,8,4,3,null,null,null,null,null,null,null,null,null,{"$f":"IF(--ISNUMBER(SEARCH(Díjszámítás!$C$12,A65)),MAX($Q$1:Q64)+1,\"\")","v":64},{"$f":"IFERROR(INDEX($A$2:$A$302,MATCH(ROWS($Q$2:Q65),$Q$2:$Q$302,0)),\"\")","v":"2053 Illóolajgyártás"}]
["2059 M.n.s. egyéb vegyi termék gyártása",8,4,2,8,4,3,null,null,null,null,null,null,null,null,null,{"$f":"IF(--ISNUMBER(SEARCH(Díjszámítás!$C$12,A66)),MAX($Q$1:Q65)+1,\"\")","v":65},{"$f":"IFERROR(INDEX($A$2:$A$302,MATCH(ROWS($Q$2:Q66),$Q$2:$Q$302,0)),\"\")","v":"2059 M.n.s. egyéb vegyi termék gyártása"}]
["2060 Vegyi szál gyártása",6,4,2,6,3,3,null,null,null,null,null,null,null,null,null,{"$f":"IF(--ISNUMBER(SEARCH(Díjszámítás!$C$12,A67)),MAX($Q$1:Q66)+1,\"\")","v":66},{"$f":"IFERROR(INDEX($A$2:$A$302,MATCH(ROWS($Q$2:Q67),$Q$2:$Q$302,0)),\"\")","v":"2060 Vegyi szál gyártása"}]
["2211 Gumiabroncs, gumitömlő gyártása",6,4,1,6,3,2,null,null,null,null,null,null,null,null,null,{"$f":"IF(--ISNUMBER(SEARCH(Díjszámítás!$C$12,A68)),MAX($Q$1:Q67)+1,\"\")","v":67},{"$f":"IFERROR(INDEX($A$2:$A$302,MATCH(ROWS($Q$2:Q68),$Q$2:$Q$302,0)),\"\")","v":"2211 Gumiabroncs, gumitömlő gyártása"}]
["2219 Egyéb gumitermék gyártása",6,4,1,6,3,2,null,null,null,null,null,null,null,null,null,{"$f":"IF(--ISNUMBER(SEARCH(Díjszámítás!$C$12,A69)),MAX($Q$1:Q68)+1,\"\")","v":68},{"$f":"IFERROR(INDEX($A$2:$A$302,MATCH(ROWS($Q$2:Q69),$Q$2:$Q$302,0)),\"\")","v":"2219 Egyéb gumitermék gyártása"}]
["2221 Műanyag lap, lemez, fólia, cső, profil gyártása",5,4,1,5,3,1,null,null,null,null,null,null,null,null,null,{"$f":"IF(--ISNUMBER(SEARCH(Díjszámítás!$C$12,A70)),MAX($Q$1:Q69)+1,\"\")","v":69},{"$f":"IFERROR(INDEX($A$2:$A$302,MATCH(ROWS($Q$2:Q70),$Q$2:$Q$302,0)),\"\")","v":"2221 Műanyag lap, lemez, fólia, cső, profil gyártása"}]
["2222 Műanyag csomagolóeszköz gyártása",5,4,1,5,3,1,null,null,null,null,null,null,null,null,null,{"$f":"IF(--ISNUMBER(SEARCH(Díjszámítás!$C$12,A71)),MAX($Q$1:Q70)+1,\"\")","v":70},{"$f":"IFERROR(INDEX($A$2:$A$302,MATCH(ROWS($Q$2:Q71),$Q$2:$Q$302,0)),\"\")","v":"2222 Műanyag csomagolóeszköz gyártása"}]
["2223 Műanyag építőanyag gyártása",5,4,1,5,3,1,null,null,null,null,null,null,null,null,null,{"$f":"IF(--ISNUMBER(SEARCH(Díjszámítás!$C$12,A72)),MAX($Q$1:Q71)+1,\"\")","v":71},{"$f":"IFERROR(INDEX($A$2:$A$302,MATCH(ROWS($Q$2:Q72),$Q$2:$Q$302,0)),\"\")","v":"2223 Műanyag építőanyag gyártása"}]
["2229 Egyéb műanyag termék gyártása",5,4,1,5,3,1,null,null,null,null,null,null,null,null,null,{"$f":"IF(--ISNUMBER(SEARCH(Díjszámítás!$C$12,A73)),MAX($Q$1:Q72)+1,\"\")","v":72},{"$f":"IFERROR(INDEX($A$2:$A$302,MATCH(ROWS($Q$2:Q73),$Q$2:$Q$302,0)),\"\")","v":"2229 Egyéb műanyag termék gyártása"}]
["2311 Síküveggyártás",5,3,1,5,3,1,null,null,null,null,null,null,null,null,null,{"$f":"IF(--ISNUMBER(SEARCH(Díjszámítás!$C$12,A74)),MAX($Q$1:Q73)+1,\"\")","v":73},{"$f":"IFERROR(INDEX($A$2:$A$302,MATCH(ROWS($Q$2:Q74),$Q$2:$Q$302,0)),\"\")","v":"2311 Síküveggyártás"}]
["2312 Síküveg továbbfeldolgozása",3,4,1,3,1,1,null,null,null,null,null,null,null,null,null,{"$f":"IF(--ISNUMBER(SEARCH(Díjszámítás!$C$12,A75)),MAX($Q$1:Q74)+1,\"\")","v":74},{"$f":"IFERROR(INDEX($A$2:$A$302,MATCH(ROWS($Q$2:Q75),$Q$2:$Q$302,0)),\"\")","v":"2312 Síküveg továbbfeldolgozása"}]
["2313 Öblösüveggyártás",5,3,1,5,3,1,null,null,null,null,null,null,null,null,null,{"$f":"IF(--ISNUMBER(SEARCH(Díjszámítás!$C$12,A76)),MAX($Q$1:Q75)+1,\"\")","v":75},{"$f":"IFERROR(INDEX($A$2:$A$302,MATCH(ROWS($Q$2:Q76),$Q$2:$Q$302,0)),\"\")","v":"2313 Öblösüveggyártás"}]
["2319 Műszaki, egyéb üvegtermék gyártása",5,3,1,5,3,1,null,null,null,null,null,null,null,null,null,{"$f":"IF(--ISNUMBER(SEARCH(Díjszámítás!$C$12,A77)),MAX($Q$1:Q76)+1,\"\")","v":76},{"$f":"IFERROR(INDEX($A$2:$A$302,MATCH(ROWS($Q$2:Q77),$Q$2:$Q$302,0)),\"\")","v":"2319 Műszaki, egyéb üvegtermék gyártása"}]
["2320 Tűzálló termék gyártása",4,3,1,4,3,1,null,null,null,null,null,null,null,null,null,{"$f":"IF(--ISNUMBER(SEARCH(Díjszámítás!$C$12,A78)),MAX($Q$1:Q77)+1,\"\")","v":77},{"$f":"IFERROR(INDEX($A$2:$A$302,MATCH(ROWS($Q$2:Q78),$Q$2:$Q$302,0)),\"\")","v":"2320 Tűzálló termék gyártása"}]
["2331 Kerámiacsempe, -lap gyártása",4,3,2,4,3,1,null,null,null,null,null,null,null,null,null,{"$f":"IF(--ISNUMBER(SEARCH(Díjszámítás!$C$12,A79)),MAX($Q$1:Q78)+1,\"\")","v":78},{"$f":"IFERROR(INDEX($A$2:$A$302,MATCH(ROWS($Q$2:Q79),$Q$2:$Q$302,0)),\"\")","v":"2331 Kerámiacsempe, -lap gyártása"}]
["2332 Égetett agyag építőanyag gyártása",3,3,1,3,3,1,null,null,null,null,null,null,null,null,null,{"$f":"IF(--ISNUMBER(SEARCH(Díjszámítás!$C$12,A80)),MAX($Q$1:Q79)+1,\"\")","v":79},{"$f":"IFERROR(INDEX($A$2:$A$302,MATCH(ROWS($Q$2:Q80),$Q$2:$Q$302,0)),\"\")","v":"2332 Égetett agyag építőanyag gyártása"}]
["2341 Háztartási kerámia gyártása",4,3,1,4,3,1,null,null,null,null,null,null,null,null,null,{"$f":"IF(--ISNUMBER(SEARCH(Díjszámítás!$C$12,A81)),MAX($Q$1:Q80)+1,\"\")","v":80},{"$f":"IFERROR(INDEX($A$2:$A$302,MATCH(ROWS($Q$2:Q81),$Q$2:$Q$302,0)),\"\")","v":"2341 Háztartási kerámia gyártása"}]
["2342 Egészségügyi kerámia gyártása",4,3,1,4,3,1,null,null,null,null,null,null,null,null,null,{"$f":"IF(--ISNUMBER(SEARCH(Díjszámítás!$C$12,A82)),MAX($Q$1:Q81)+1,\"\")","v":81},{"$f":"IFERROR(INDEX($A$2:$A$302,MATCH(ROWS($Q$2:Q82),$Q$2:$Q$302,0)),\"\")","v":"2342 Egészségügyi kerámia gyártása"}]
["2343 Kerámia szigetelő gyártása",4,3,1,4,3,1,null,null,null,null,null,null,null,null,null,{"$f":"IF(--ISNUMBER(SEARCH(Díjszámítás!$C$12,A83)),MAX($Q$1:Q82)+1,\"\")","v":82},{"$f":"IFERROR(INDEX($A$2:$A$302,MATCH(ROWS($Q$2:Q83),$Q$2:$Q$302,0)),\"\")","v":"2343 Kerámia szigetelő gyártása"}]
["2344 Műszaki kerámia gyártása",4,3,1,4,3,1,null,null,null,null,null,null,null,null,null,{"$f":"IF(--ISNUMBER(SEARCH(Díjszámítás!$C$12,A84)),MAX($Q$1:Q83)+1,\"\")","v":83},{"$f":"IFERROR(INDEX($A$2:$A$302,MATCH(ROWS($Q$2:Q84),$Q$2:$Q$302,0)),\"\")","v":"2344 Műszaki kerámia gyártása"}]
["2349 Egyéb kerámiatermék gyártása",4,3,1,4,3,1,null,null,null,null,null,null,null,null,null,{"$f":"IF(--ISNUMBER(SEARCH(Díjszámítás!$C$12,A85)),MAX($Q$1:Q84)+1,\"\")","v":84},{"$f":"IFERROR(INDEX($A$2:$A$302,MATCH(ROWS($Q$2:Q85),$Q$2:$Q$302,0)),\"\")","v":"2349 Egyéb kerámiatermék gyártása"}]
["2351 Cementgyártás",2,3,2,2,3,1,null,null,null,null,null,null,null,null,null,{"$f":"IF(--ISNUMBER(SEARCH(Díjszámítás!$C$12,A86)),MAX($Q$1:Q85)+1,\"\")","v":85},{"$f":"IFERROR(INDEX($A$2:$A$302,MATCH(ROWS($Q$2:Q86),$Q$2:$Q$302,0)),\"\")","v":"2351 Cementgyártás"}]
["2352 Mész-, gipszgyártás",2,3,2,2,3,1,null,null,null,null,null,null,null,null,null,{"$f":"IF(--ISNUMBER(SEARCH(Díjszámítás!$C$12,A87)),MAX($Q$1:Q86)+1,\"\")","v":86},{"$f":"IFERROR(INDEX($A$2:$A$302,MATCH(ROWS($Q$2:Q87),$Q$2:$Q$302,0)),\"\")","v":"2352 Mész-, gipszgyártás"}]
["2361 Építési betontermék gyártása",2,3,2,2,3,1,null,null,null,null,null,null,null,null,null,{"$f":"IF(--ISNUMBER(SEARCH(Díjszámítás!$C$12,A88)),MAX($Q$1:Q87)+1,\"\")","v":87},{"$f":"IFERROR(INDEX($A$2:$A$302,MATCH(ROWS($Q$2:Q88),$Q$2:$Q$302,0)),\"\")","v":"2361 Építési betontermék gyártása"}]
["2362 Építési gipsztermék gyártása",2,3,2,2,3,1,null,null,null,null,null,null,null,null,null,{"$f":"IF(--ISNUMBER(SEARCH(Díjszámítás!$C$12,A89)),MAX($Q$1:Q88)+1,\"\")","v":88},{"$f":"IFERROR(INDEX($A$2:$A$302,MATCH(ROWS($Q$2:Q89),$Q$2:$Q$302,0)),\"\")","v":"2362 Építési gipsztermék gyártása"}]
["2363 Előre kevert beton gyártása",2,3,2,2,3,1,null,null,null,null,null,null,null,null,null,{"$f":"IF(--ISNUMBER(SEARCH(Díjszámítás!$C$12,A90)),MAX($Q$1:Q89)+1,\"\")","v":89},{"$f":"IFERROR(INDEX($A$2:$A$302,MATCH(ROWS($Q$2:Q90),$Q$2:$Q$302,0)),\"\")","v":"2363 Előre kevert beton gyártása"}]
["2364 Habarcsgyártás",2,3,2,2,3,1,null,null,null,null,null,null,null,null,null,{"$f":"IF(--ISNUMBER(SEARCH(Díjszámítás!$C$12,A91)),MAX($Q$1:Q90)+1,\"\")","v":90},{"$f":"IFERROR(INDEX($A$2:$A$302,MATCH(ROWS($Q$2:Q91),$Q$2:$Q$302,0)),\"\")","v":"2364 Habarcsgyártás"}]
["2365 Szálerősítésű cement gyártása",2,3,2,2,3,1,null,null,null,null,null,null,null,null,null,{"$f":"IF(--ISNUMBER(SEARCH(Díjszámítás!$C$12,A92)),MAX($Q$1:Q91)+1,\"\")","v":91},{"$f":"IFERROR(INDEX($A$2:$A$302,MATCH(ROWS($Q$2:Q92),$Q$2:$Q$302,0)),\"\")","v":"2365 Szálerősítésű cement gyártása"}]
["2369 Egyéb beton-, gipsz-, cementtermék gyártása",2,3,2,2,3,1,null,null,null,null,null,null,null,null,null,{"$f":"IF(--ISNUMBER(SEARCH(Díjszámítás!$C$12,A93)),MAX($Q$1:Q92)+1,\"\")","v":92},{"$f":"IFERROR(INDEX($A$2:$A$302,MATCH(ROWS($Q$2:Q93),$Q$2:$Q$302,0)),\"\")","v":"2369 Egyéb beton-, gipsz-, cementtermék gyártása"}]
["2370 Kőmegmunkálás",2,3,1,2,3,1,null,null,null,null,null,null,null,null,null,{"$f":"IF(--ISNUMBER(SEARCH(Díjszámítás!$C$12,A94)),MAX($Q$1:Q93)+1,\"\")","v":93},{"$f":"IFERROR(INDEX($A$2:$A$302,MATCH(ROWS($Q$2:Q94),$Q$2:$Q$302,0)),\"\")","v":"2370 Kőmegmunkálás"}]
["2511 Fémszerkezet gyártása",6,4,1,6,2,1,null,null,null,null,null,null,null,null,null,{"$f":"IF(--ISNUMBER(SEARCH(Díjszámítás!$C$12,A95)),MAX($Q$1:Q94)+1,\"\")","v":94},{"$f":"IFERROR(INDEX($A$2:$A$302,MATCH(ROWS($Q$2:Q95),$Q$2:$Q$302,0)),\"\")","v":"2511 Fémszerkezet gyártása"}]
["2512 Fém épületelem gyártása",6,4,1,6,2,1,null,null,null,null,null,null,null,null,null,{"$f":"IF(--ISNUMBER(SEARCH(Díjszámítás!$C$12,A96)),MAX($Q$1:Q95)+1,\"\")","v":95},{"$f":"IFERROR(INDEX($A$2:$A$302,MATCH(ROWS($Q$2:Q96),$Q$2:$Q$302,0)),\"\")","v":"2512 Fém épületelem gyártása"}]
["2521 Központi fűtési kazán, radiátor gyártása",4,4,2,4,4,2,null,null,null,null,null,null,null,null,null,{"$f":"IF(--ISNUMBER(SEARCH(Díjszámítás!$C$12,A97)),MAX($Q$1:Q96)+1,\"\")","v":96},{"$f":"IFERROR(INDEX($A$2:$A$302,MATCH(ROWS($Q$2:Q97),$Q$2:$Q$302,0)),\"\")","v":"2521 Központi fűtési kazán, radiátor gyártása"}]
["2529 Fémtartály gyártása",5,4,1,5,2,1,null,null,null,null,null,null,null,null,null,{"$f":"IF(--ISNUMBER(SEARCH(Díjszámítás!$C$12,A98)),MAX($Q$1:Q97)+1,\"\")","v":97},{"$f":"IFERROR(INDEX($A$2:$A$302,MATCH(ROWS($Q$2:Q98),$Q$2:$Q$302,0)),\"\")","v":"2529 Fémtartály gyártása"}]
["2561 Fémfelület-kezelés",3,4,1,3,3,1,null,null,null,null,null,null,null,null,null,{"$f":"IF(--ISNUMBER(SEARCH(Díjszámítás!$C$12,A99)),MAX($Q$1:Q98)+1,\"\")","v":98},{"$f":"IFERROR(INDEX($A$2:$A$302,MATCH(ROWS($Q$2:Q99),$Q$2:$Q$302,0)),\"\")","v":"2561 Fémfelület-kezelés"}]
["2562 Fémmegmunkálás",3,4,1,3,3,1,null,null,null,null,null,null,null,null,null,{"$f":"IF(--ISNUMBER(SEARCH(Díjszámítás!$C$12,A100)),MAX($Q$1:Q99)+1,\"\")","v":99},{"$f":"IFERROR(INDEX($A$2:$A$302,MATCH(ROWS($Q$2:Q100),$Q$2:$Q$302,0)),\"\")","v":"2562 Fémmegmunkálás"}]
["2571 Evőeszköz gyártása",4,4,1,4,2,1,null,null,null,null,null,null,null,null,null,{"$f":"IF(--ISNUMBER(SEARCH(Díjszámítás!$C$12,A101)),MAX($Q$1:Q100)+1,\"\")","v":100},{"$f":"IFERROR(INDEX($A$2:$A$302,MATCH(ROWS($Q$2:Q101),$Q$2:$Q$302,0)),\"\")","v":"2571 Evőeszköz gyártása"}]
["2572 Lakat-, zárgyártás",4,4,1,4,2,1,null,null,null,null,null,null,null,null,null,{"$f":"IF(--ISNUMBER(SEARCH(Díjszámítás!$C$12,A102)),MAX($Q$1:Q101)+1,\"\")","v":101},{"$f":"IFERROR(INDEX($A$2:$A$302,MATCH(ROWS($Q$2:Q102),$Q$2:$Q$302,0)),\"\")","v":"2572 Lakat-, zárgyártás"}]
["2573 Szerszámgyártás",3,3,2,3,2,1,null,null,null,null,null,null,null,null,null,{"$f":"IF(--ISNUMBER(SEARCH(Díjszámítás!$C$12,A103)),MAX($Q$1:Q102)+1,\"\")","v":102},{"$f":"IFERROR(INDEX($A$2:$A$302,MATCH(ROWS($Q$2:Q103),$Q$2:$Q$302,0)),\"\")","v":"2573 Szerszámgyártás"}]
["2591 Acél tárolóeszköz gyártása",6,4,1,6,2,1,null,null,null,null,null,null,null,null,null,{"$f":"IF(--ISNUMBER(SEARCH(Díjszámítás!$C$12,A104)),MAX($Q$1:Q103)+1,\"\")","v":103},{"$f":"IFERROR(INDEX($A$2:$A$302,MATCH(ROWS($Q$2:Q104),$Q$2:$Q$302,0)),\"\")","v":"2591 Acél tárolóeszköz gyártása"}]
["2594 Kötőelem, csavar gyártása",4,4,1,4,2,1,null,null,null,null,null,null,null,null,null,{"$f":"IF(--ISNUMBER(SEARCH(Díjszámítás!$C$12,A105)),MAX($Q$1:Q104)+1,\"\")","v":104},{"$f":"IFERROR(INDEX($A$2:$A$302,MATCH(ROWS($Q$2:Q105),$Q$2:$Q$302,0)),\"\")","v":"2594 Kötőelem, csavar gyártása"}]
["2599 M.n.s. egyéb fémfeldolgozási termék gyártása",4,4,3,4,3,1,null,null,null,null,null,null,null,null,null,{"$f":"IF(--ISNUMBER(SEARCH(Díjszámítás!$C$12,A106)),MAX($Q$1:Q105)+1,\"\")","v":105},{"$f":"IFERROR(INDEX($A$2:$A$302,MATCH(ROWS($Q$2:Q106),$Q$2:$Q$302,0)),\"\")","v":"2599 M.n.s. egyéb fémfeldolgozási termék gyártása"}]
["2611 Elektronikai alkatrész gyártása",3,3,2,3,3,1,null,null,null,null,null,null,null,null,null,{"$f":"IF(--ISNUMBER(SEARCH(Díjszámítás!$C$12,A107)),MAX($Q$1:Q106)+1,\"\")","v":106},{"$f":"IFERROR(INDEX($A$2:$A$302,MATCH(ROWS($Q$2:Q107),$Q$2:$Q$302,0)),\"\")","v":"2611 Elektronikai alkatrész gyártása"}]
["2620 Számítógép, perifériás egység gyártása",3,3,3,3,3,2,null,null,null,null,null,null,null,null,null,{"$f":"IF(--ISNUMBER(SEARCH(Díjszámítás!$C$12,A108)),MAX($Q$1:Q107)+1,\"\")","v":107},{"$f":"IFERROR(INDEX($A$2:$A$302,MATCH(ROWS($Q$2:Q108),$Q$2:$Q$302,0)),\"\")","v":"2620 Számítógép, perifériás egység gyártása"}]
["2630 Híradás-technikai berendezés gyártása",4,3,2,4,3,1,null,null,null,null,null,null,null,null,null,{"$f":"IF(--ISNUMBER(SEARCH(Díjszámítás!$C$12,A109)),MAX($Q$1:Q108)+1,\"\")","v":108},{"$f":"IFERROR(INDEX($A$2:$A$302,MATCH(ROWS($Q$2:Q109),$Q$2:$Q$302,0)),\"\")","v":"2630 Híradás-technikai berendezés gyártása"}]
["2651 Mérőműszergyártás",4,3,2,4,3,1,null,null,null,null,null,null,null,null,null,{"$f":"IF(--ISNUMBER(SEARCH(Díjszámítás!$C$12,A110)),MAX($Q$1:Q109)+1,\"\")","v":109},{"$f":"IFERROR(INDEX($A$2:$A$302,MATCH(ROWS($Q$2:Q110),$Q$2:$Q$302,0)),\"\")","v":"2651 Mérőműszergyártás"}]
["2660 Elektronikus orvosi berendezés gyártása",3,3,2,3,2,1,null,null,null,null,null,null,null,null,null,{"$f":"IF(--ISNUMBER(SEARCH(Díjszámítás!$C$12,A111)),MAX($Q$1:Q110)+1,\"\")","v":110},{"$f":"IFERROR(INDEX($A$2:$A$302,MATCH(ROWS($Q$2:Q111),$Q$2:$Q$302,0)),\"\")","v":"2660 Elektronikus orvosi berendezés gyártása"}]
["2670 Optikai eszköz gyártása",3,3,1,3,3,2,null,null,null,null,null,null,null,null,null,{"$f":"IF(--ISNUMBER(SEARCH(Díjszámítás!$C$12,A112)),MAX($Q$1:Q111)+1,\"\")","v":111},{"$f":"IFERROR(INDEX($A$2:$A$302,MATCH(ROWS($Q$2:Q112),$Q$2:$Q$302,0)),\"\")","v":"2670 Optikai eszköz gyártása"}]
["2711 Villamos motor, áramfejlesztő gyártása",3,3,1,3,3,1,null,null,null,null,null,null,null,null,null,{"$f":"IF(--ISNUMBER(SEARCH(Díjszámítás!$C$12,A113)),MAX($Q$1:Q112)+1,\"\")","v":112},{"$f":"IFERROR(INDEX($A$2:$A$302,MATCH(ROWS($Q$2:Q113),$Q$2:$Q$302,0)),\"\")","v":"2711 Villamos motor, áramfejlesztő gyártása"}]
["2712 Áramelosztó, -szabályozó készülék gyártása",3,3,1,3,3,1,null,null,null,null,null,null,null,null,null,{"$f":"IF(--ISNUMBER(SEARCH(Díjszámítás!$C$12,A114)),MAX($Q$1:Q113)+1,\"\")","v":113},{"$f":"IFERROR(INDEX($A$2:$A$302,MATCH(ROWS($Q$2:Q114),$Q$2:$Q$302,0)),\"\")","v":"2712 Áramelosztó, -szabályozó készülék gyártása"}]
["2720 Akkumulátor, szárazelem gyártása",6,3,2,6,3,1,null,null,null,null,null,null,null,null,null,{"$f":"IF(--ISNUMBER(SEARCH(Díjszámítás!$C$12,A115)),MAX($Q$1:Q114)+1,\"\")","v":114},{"$f":"IFERROR(INDEX($A$2:$A$302,MATCH(ROWS($Q$2:Q115),$Q$2:$Q$302,0)),\"\")","v":"2720 Akkumulátor, szárazelem gyártása"}]
["2731 Száloptikai kábel gyártása",6,3,2,6,2,1,null,null,null,null,null,null,null,null,null,{"$f":"IF(--ISNUMBER(SEARCH(Díjszámítás!$C$12,A116)),MAX($Q$1:Q115)+1,\"\")","v":115},{"$f":"IFERROR(INDEX($A$2:$A$302,MATCH(ROWS($Q$2:Q116),$Q$2:$Q$302,0)),\"\")","v":"2731 Száloptikai kábel gyártása"}]
["2732 Egyéb elektronikus, villamos vezeték, kábel gyártása",6,3,2,6,2,1,null,null,null,null,null,null,null,null,null,{"$f":"IF(--ISNUMBER(SEARCH(Díjszámítás!$C$12,A117)),MAX($Q$1:Q116)+1,\"\")","v":116},{"$f":"IFERROR(INDEX($A$2:$A$302,MATCH(ROWS($Q$2:Q117),$Q$2:$Q$302,0)),\"\")","v":"2732 Egyéb elektronikus, villamos vezeték, kábel gyártása"}]
["2733 Szerelvény gyártása",4,4,1,4,2,1,null,null,null,null,null,null,null,null,null,{"$f":"IF(--ISNUMBER(SEARCH(Díjszámítás!$C$12,A118)),MAX($Q$1:Q117)+1,\"\")","v":117},{"$f":"IFERROR(INDEX($A$2:$A$302,MATCH(ROWS($Q$2:Q118),$Q$2:$Q$302,0)),\"\")","v":"2733 Szerelvény gyártása"}]
["2740 Villamos világítóeszköz gyártása",4,3,1,4,2,1,null,null,null,null,null,null,null,null,null,{"$f":"IF(--ISNUMBER(SEARCH(Díjszámítás!$C$12,A119)),MAX($Q$1:Q118)+1,\"\")","v":118},{"$f":"IFERROR(INDEX($A$2:$A$302,MATCH(ROWS($Q$2:Q119),$Q$2:$Q$302,0)),\"\")","v":"2740 Villamos világítóeszköz gyártása"}]
["2751 Háztartási villamos készülék gyártása",3,3,2,3,3,1,null,null,null,null,null,null,null,null,null,{"$f":"IF(--ISNUMBER(SEARCH(Díjszámítás!$C$12,A120)),MAX($Q$1:Q119)+1,\"\")","v":119},{"$f":"IFERROR(INDEX($A$2:$A$302,MATCH(ROWS($Q$2:Q120),$Q$2:$Q$302,0)),\"\")","v":"2751 Háztartási villamos készülék gyártása"}]
["2752 Nem villamos háztartási készülék gyártása",3,3,2,3,3,1,null,null,null,null,null,null,null,null,null,{"$f":"IF(--ISNUMBER(SEARCH(Díjszámítás!$C$12,A121)),MAX($Q$1:Q120)+1,\"\")","v":120},{"$f":"IFERROR(INDEX($A$2:$A$302,MATCH(ROWS($Q$2:Q121),$Q$2:$Q$302,0)),\"\")","v":"2752 Nem villamos háztartási készülék gyártása"}]
["2790 Egyéb villamos berendezés gyártása",3,3,2,3,3,1,null,null,null,null,null,null,null,null,null,{"$f":"IF(--ISNUMBER(SEARCH(Díjszámítás!$C$12,A122)),MAX($Q$1:Q121)+1,\"\")","v":121},{"$f":"IFERROR(INDEX($A$2:$A$302,MATCH(ROWS($Q$2:Q122),$Q$2:$Q$302,0)),\"\")","v":"2790 Egyéb villamos berendezés gyártása"}]
["2814 Csap, szelep gyártása",4,4,1,4,2,1,null,null,null,null,null,null,null,null,null,{"$f":"IF(--ISNUMBER(SEARCH(Díjszámítás!$C$12,A123)),MAX($Q$1:Q122)+1,\"\")","v":122},{"$f":"IFERROR(INDEX($A$2:$A$302,MATCH(ROWS($Q$2:Q123),$Q$2:$Q$302,0)),\"\")","v":"2814 Csap, szelep gyártása"}]
["2823 Irodagép gyártása (kivéve: számítógép és perifériái)",3,3,3,3,3,2,null,null,null,null,null,null,null,null,null,{"$f":"IF(--ISNUMBER(SEARCH(Díjszámítás!$C$12,A124)),MAX($Q$1:Q123)+1,\"\")","v":123},{"$f":"IFERROR(INDEX($A$2:$A$302,MATCH(ROWS($Q$2:Q124),$Q$2:$Q$302,0)),\"\")","v":"2823 Irodagép gyártása (kivéve: számítógép és perifériái)"}]
["2824 Gépi meghajtású hordozható kézi szerszámgép gyártása",3,3,1,3,3,1,null,null,null,null,null,null,null,null,null,{"$f":"IF(--ISNUMBER(SEARCH(Díjszámítás!$C$12,A125)),MAX($Q$1:Q124)+1,\"\")","v":124},{"$f":"IFERROR(INDEX($A$2:$A$302,MATCH(ROWS($Q$2:Q125),$Q$2:$Q$302,0)),\"\")","v":"2824 Gépi meghajtású hordozható kézi szerszámgép gyártása"}]
["2829 M.n.s. egyéb általános rendeltetésű gép gyártása ",4,3,2,4,3,3,null,null,null,null,null,null,null,null,null,{"$f":"IF(--ISNUMBER(SEARCH(Díjszámítás!$C$12,A126)),MAX($Q$1:Q125)+1,\"\")","v":125},{"$f":"IFERROR(INDEX($A$2:$A$302,MATCH(ROWS($Q$2:Q126),$Q$2:$Q$302,0)),\"\")","v":"2829 M.n.s. egyéb általános rendeltetésű gép gyártása "}]
["2830 Mezőgazdasági, erdészeti gép gyártása",3,3,1,3,3,1,null,null,null,null,null,null,null,null,null,{"$f":"IF(--ISNUMBER(SEARCH(Díjszámítás!$C$12,A127)),MAX($Q$1:Q126)+1,\"\")","v":126},{"$f":"IFERROR(INDEX($A$2:$A$302,MATCH(ROWS($Q$2:Q127),$Q$2:$Q$302,0)),\"\")","v":"2830 Mezőgazdasági, erdészeti gép gyártása"}]
["2841 Fémmegmunkáló szerszámgép gyártása",3,3,1,3,3,1,null,null,null,null,null,null,null,null,null,{"$f":"IF(--ISNUMBER(SEARCH(Díjszámítás!$C$12,A128)),MAX($Q$1:Q127)+1,\"\")","v":127},{"$f":"IFERROR(INDEX($A$2:$A$302,MATCH(ROWS($Q$2:Q128),$Q$2:$Q$302,0)),\"\")","v":"2841 Fémmegmunkáló szerszámgép gyártása"}]
["2849 Egyéb szerszámgép gyártása",3,3,1,3,3,1,null,null,null,null,null,null,null,null,null,{"$f":"IF(--ISNUMBER(SEARCH(Díjszámítás!$C$12,A129)),MAX($Q$1:Q128)+1,\"\")","v":128},{"$f":"IFERROR(INDEX($A$2:$A$302,MATCH(ROWS($Q$2:Q129),$Q$2:$Q$302,0)),\"\")","v":"2849 Egyéb szerszámgép gyártása"}]
["2893 Élelmiszer-, dohányipari gép gyártása",3,3,2,3,3,1,null,null,null,null,null,null,null,null,null,{"$f":"IF(--ISNUMBER(SEARCH(Díjszámítás!$C$12,A130)),MAX($Q$1:Q129)+1,\"\")","v":129},{"$f":"IFERROR(INDEX($A$2:$A$302,MATCH(ROWS($Q$2:Q130),$Q$2:$Q$302,0)),\"\")","v":"2893 Élelmiszer-, dohányipari gép gyártása"}]
["2894 Textil-, ruházati, bőripari gép gyártása",4,3,2,4,3,1,null,null,null,null,null,null,null,null,null,{"$f":"IF(--ISNUMBER(SEARCH(Díjszámítás!$C$12,A131)),MAX($Q$1:Q130)+1,\"\")","v":130},{"$f":"IFERROR(INDEX($A$2:$A$302,MATCH(ROWS($Q$2:Q131),$Q$2:$Q$302,0)),\"\")","v":"2894 Textil-, ruházati, bőripari gép gyártása"}]
["2895 Papíripari gép gyártása",4,3,2,4,3,1,null,null,null,null,null,null,null,null,null,{"$f":"IF(--ISNUMBER(SEARCH(Díjszámítás!$C$12,A132)),MAX($Q$1:Q131)+1,\"\")","v":131},{"$f":"IFERROR(INDEX($A$2:$A$302,MATCH(ROWS($Q$2:Q132),$Q$2:$Q$302,0)),\"\")","v":"2895 Papíripari gép gyártása"}]
["2896 Műanyag-, gumifeldolgozó gép gyártása",4,3,2,4,3,1,null,null,null,null,null,null,null,null,null,{"$f":"IF(--ISNUMBER(SEARCH(Díjszámítás!$C$12,A133)),MAX($Q$1:Q132)+1,\"\")","v":132},{"$f":"IFERROR(INDEX($A$2:$A$302,MATCH(ROWS($Q$2:Q133),$Q$2:$Q$302,0)),\"\")","v":"2896 Műanyag-, gumifeldolgozó gép gyártása"}]
["2899 M.n.s. egyéb speciális gép gyártása",4,3,2,4,3,1,null,null,null,null,null,null,null,null,null,{"$f":"IF(--ISNUMBER(SEARCH(Díjszámítás!$C$12,A134)),MAX($Q$1:Q133)+1,\"\")","v":133},{"$f":"IFERROR(INDEX($A$2:$A$302,MATCH(ROWS($Q$2:Q134),$Q$2:$Q$302,0)),\"\")","v":"2899 M.n.s. egyéb speciális gép gyártása"}]
["2931 Járművillamossági, -elektronikai készülékek gyártása",3,3,3,3,3,3,null,null,null,null,null,null,null,null,null,{"$f":"IF(--ISNUMBER(SEARCH(Díjszámítás!$C$12,A135)),MAX($Q$1:Q134)+1,\"\")","v":134},{"$f":"IFERROR(INDEX($A$2:$A$302,MATCH(ROWS($Q$2:Q135),$Q$2:$Q$302,0)),\"\")","v":"2931 Járművillamossági, -elektronikai készülékek gyártása"}]
["2932 Közúti jármű, járműmotor alkatrészeinek gyártása",4,3,3,4,3,3,null,null,null,null,null,null,null,null,null,{"$f":"IF(--ISNUMBER(SEARCH(Díjszámítás!$C$12,A136)),MAX($Q$1:Q135)+1,\"\")","v":135},{"$f":"IFERROR(INDEX($A$2:$A$302,MATCH(ROWS($Q$2:Q136),$Q$2:$Q$302,0)),\"\")","v":"2932 Közúti jármű, járműmotor alkatrészeinek gyártása"}]
["3091 Motorkerékpár gyártása",4,3,4,4,3,1,null,null,null,null,null,null,null,null,null,{"$f":"IF(--ISNUMBER(SEARCH(Díjszámítás!$C$12,A137)),MAX($Q$1:Q136)+1,\"\")","v":136},{"$f":"IFERROR(INDEX($A$2:$A$302,MATCH(ROWS($Q$2:Q137),$Q$2:$Q$302,0)),\"\")","v":"3091 Motorkerékpár gyártása"}]
["3092 Kerékpár, mozgássérültkocsi gyártása",4,3,4,4,3,1,null,null,null,null,null,null,null,null,null,{"$f":"IF(--ISNUMBER(SEARCH(Díjszámítás!$C$12,A138)),MAX($Q$1:Q137)+1,\"\")","v":137},{"$f":"IFERROR(INDEX($A$2:$A$302,MATCH(ROWS($Q$2:Q138),$Q$2:$Q$302,0)),\"\")","v":"3092 Kerékpár, mozgássérültkocsi gyártása"}]
["3101 Irodabútor gyártása",6,3,2,6,3,2,null,null,null,null,null,null,null,null,null,{"$f":"IF(--ISNUMBER(SEARCH(Díjszámítás!$C$12,A139)),MAX($Q$1:Q138)+1,\"\")","v":138},{"$f":"IFERROR(INDEX($A$2:$A$302,MATCH(ROWS($Q$2:Q139),$Q$2:$Q$302,0)),\"\")","v":"3101 Irodabútor gyártása"}]
["3102 Konyhabútorgyártás",6,3,2,6,3,2,null,null,null,null,null,null,null,null,null,{"$f":"IF(--ISNUMBER(SEARCH(Díjszámítás!$C$12,A140)),MAX($Q$1:Q139)+1,\"\")","v":139},{"$f":"IFERROR(INDEX($A$2:$A$302,MATCH(ROWS($Q$2:Q140),$Q$2:$Q$302,0)),\"\")","v":"3102 Konyhabútorgyártás"}]
["3103 Ágybetét gyártása",6,3,2,6,3,2,null,null,null,null,null,null,null,null,null,{"$f":"IF(--ISNUMBER(SEARCH(Díjszámítás!$C$12,A141)),MAX($Q$1:Q140)+1,\"\")","v":140},{"$f":"IFERROR(INDEX($A$2:$A$302,MATCH(ROWS($Q$2:Q141),$Q$2:$Q$302,0)),\"\")","v":"3103 Ágybetét gyártása"}]
["3109 Egyéb bútor gyártása",6,3,2,6,3,2,null,null,null,null,null,null,null,null,null,{"$f":"IF(--ISNUMBER(SEARCH(Díjszámítás!$C$12,A142)),MAX($Q$1:Q141)+1,\"\")","v":141},{"$f":"IFERROR(INDEX($A$2:$A$302,MATCH(ROWS($Q$2:Q142),$Q$2:$Q$302,0)),\"\")","v":"3109 Egyéb bútor gyártása"}]
["3220 Hangszergyártás",4,3,2,4,2,1,null,null,null,null,null,null,null,null,null,{"$f":"IF(--ISNUMBER(SEARCH(Díjszámítás!$C$12,A143)),MAX($Q$1:Q142)+1,\"\")","v":142},{"$f":"IFERROR(INDEX($A$2:$A$302,MATCH(ROWS($Q$2:Q143),$Q$2:$Q$302,0)),\"\")","v":"3220 Hangszergyártás"}]
["3230 Sportszergyártás",5,3,2,5,3,1,null,null,null,null,null,null,null,null,null,{"$f":"IF(--ISNUMBER(SEARCH(Díjszámítás!$C$12,A144)),MAX($Q$1:Q143)+1,\"\")","v":143},{"$f":"IFERROR(INDEX($A$2:$A$302,MATCH(ROWS($Q$2:Q144),$Q$2:$Q$302,0)),\"\")","v":"3230 Sportszergyártás"}]
["3240 Játékgyártás",5,3,2,5,3,1,null,null,null,null,null,null,null,null,null,{"$f":"IF(--ISNUMBER(SEARCH(Díjszámítás!$C$12,A145)),MAX($Q$1:Q144)+1,\"\")","v":144},{"$f":"IFERROR(INDEX($A$2:$A$302,MATCH(ROWS($Q$2:Q145),$Q$2:$Q$302,0)),\"\")","v":"3240 Játékgyártás"}]
["3250 Orvosi eszköz gyártása",3,3,2,3,2,1,null,null,null,null,null,null,null,null,null,{"$f":"IF(--ISNUMBER(SEARCH(Díjszámítás!$C$12,A146)),MAX($Q$1:Q145)+1,\"\")","v":145},{"$f":"IFERROR(INDEX($A$2:$A$302,MATCH(ROWS($Q$2:Q146),$Q$2:$Q$302,0)),\"\")","v":"3250 Orvosi eszköz gyártása"}]
["3291 Seprű-, kefegyártás",6,3,1,6,3,1,null,null,null,null,null,null,null,null,null,{"$f":"IF(--ISNUMBER(SEARCH(Díjszámítás!$C$12,A147)),MAX($Q$1:Q146)+1,\"\")","v":146},{"$f":"IFERROR(INDEX($A$2:$A$302,MATCH(ROWS($Q$2:Q147),$Q$2:$Q$302,0)),\"\")","v":"3291 Seprű-, kefegyártás"}]
["3313 Elektronikus, optikai eszköz javítása",3,4,1,3,2,2,null,null,null,null,null,null,null,null,null,{"$f":"IF(--ISNUMBER(SEARCH(Díjszámítás!$C$12,A148)),MAX($Q$1:Q147)+1,\"\")","v":147},{"$f":"IFERROR(INDEX($A$2:$A$302,MATCH(ROWS($Q$2:Q148),$Q$2:$Q$302,0)),\"\")","v":"3313 Elektronikus, optikai eszköz javítása"}]
["3314 Ipari villamos gép, berendezés javítása",3,4,3,3,1,1,null,null,null,null,null,null,null,null,null,{"$f":"IF(--ISNUMBER(SEARCH(Díjszámítás!$C$12,A149)),MAX($Q$1:Q148)+1,\"\")","v":148},{"$f":"IFERROR(INDEX($A$2:$A$302,MATCH(ROWS($Q$2:Q149),$Q$2:$Q$302,0)),\"\")","v":"3314 Ipari villamos gép, berendezés javítása"}]
["3317 Egyéb közlekedési eszköz javítása",3,4,4,3,3,3,null,null,null,null,null,null,null,null,null,{"$f":"IF(--ISNUMBER(SEARCH(Díjszámítás!$C$12,A150)),MAX($Q$1:Q149)+1,\"\")","v":149},{"$f":"IFERROR(INDEX($A$2:$A$302,MATCH(ROWS($Q$2:Q150),$Q$2:$Q$302,0)),\"\")","v":"3317 Egyéb közlekedési eszköz javítása"}]
["4120 Lakó- és nem lakó épület építése",5,5,2,5,2,1,null,null,null,null,null,null,null,null,null,{"$f":"IF(--ISNUMBER(SEARCH(Díjszámítás!$C$12,A151)),MAX($Q$1:Q150)+1,\"\")","v":150},{"$f":"IFERROR(INDEX($A$2:$A$302,MATCH(ROWS($Q$2:Q151),$Q$2:$Q$302,0)),\"\")","v":"4120 Lakó- és nem lakó épület építése"}]
["4299 Egyéb m.n.s. építés",5,5,2,5,2,1,null,null,null,null,null,null,null,null,null,{"$f":"IF(--ISNUMBER(SEARCH(Díjszámítás!$C$12,A152)),MAX($Q$1:Q151)+1,\"\")","v":151},{"$f":"IFERROR(INDEX($A$2:$A$302,MATCH(ROWS($Q$2:Q152),$Q$2:$Q$302,0)),\"\")","v":"4299 Egyéb m.n.s. építés"}]
["4321 Villanyszerelés",5,5,2,5,1,1,null,null,null,null,null,null,null,null,null,{"$f":"IF(--ISNUMBER(SEARCH(Díjszámítás!$C$12,A153)),MAX($Q$1:Q152)+1,\"\")","v":152},{"$f":"IFERROR(INDEX($A$2:$A$302,MATCH(ROWS($Q$2:Q153),$Q$2:$Q$302,0)),\"\")","v":"4321 Villanyszerelés"}]
["4322 Víz-, gáz-, fűtés-, légkondicionáló-szerelés",5,5,2,5,1,1,null,null,null,null,null,null,null,null,null,{"$f":"IF(--ISNUMBER(SEARCH(Díjszámítás!$C$12,A154)),MAX($Q$1:Q153)+1,\"\")","v":153},{"$f":"IFERROR(INDEX($A$2:$A$302,MATCH(ROWS($Q$2:Q154),$Q$2:$Q$302,0)),\"\")","v":"4322 Víz-, gáz-, fűtés-, légkondicionáló-szerelés"}]
["4329 Egyéb épületgépészeti szerelés",5,5,2,5,2,1,null,null,null,null,null,null,null,null,null,{"$f":"IF(--ISNUMBER(SEARCH(Díjszámítás!$C$12,A155)),MAX($Q$1:Q154)+1,\"\")","v":154},{"$f":"IFERROR(INDEX($A$2:$A$302,MATCH(ROWS($Q$2:Q155),$Q$2:$Q$302,0)),\"\")","v":"4329 Egyéb épületgépészeti szerelés"}]
["4331 Vakolás",5,5,2,5,2,1,null,null,null,null,null,null,null,null,null,{"$f":"IF(--ISNUMBER(SEARCH(Díjszámítás!$C$12,A156)),MAX($Q$1:Q155)+1,\"\")","v":155},{"$f":"IFERROR(INDEX($A$2:$A$302,MATCH(ROWS($Q$2:Q156),$Q$2:$Q$302,0)),\"\")","v":"4331 Vakolás"}]
["4332 Épületasztalos-szerkezet szerelése",8,5,2,8,3,1,null,null,null,null,null,null,null,null,null,{"$f":"IF(--ISNUMBER(SEARCH(Díjszámítás!$C$12,A157)),MAX($Q$1:Q156)+1,\"\")","v":156},{"$f":"IFERROR(INDEX($A$2:$A$302,MATCH(ROWS($Q$2:Q157),$Q$2:$Q$302,0)),\"\")","v":"4332 Épületasztalos-szerkezet szerelése"}]
["4333 Padló-, falburkolás",6,5,2,6,1,1,null,null,null,null,null,null,null,null,null,{"$f":"IF(--ISNUMBER(SEARCH(Díjszámítás!$C$12,A158)),MAX($Q$1:Q157)+1,\"\")","v":157},{"$f":"IFERROR(INDEX($A$2:$A$302,MATCH(ROWS($Q$2:Q158),$Q$2:$Q$302,0)),\"\")","v":"4333 Padló-, falburkolás"}]
["4334 Festés, üvegezés",5,5,2,5,1,1,null,null,null,null,null,null,null,null,null,{"$f":"IF(--ISNUMBER(SEARCH(Díjszámítás!$C$12,A159)),MAX($Q$1:Q158)+1,\"\")","v":158},{"$f":"IFERROR(INDEX($A$2:$A$302,MATCH(ROWS($Q$2:Q159),$Q$2:$Q$302,0)),\"\")","v":"4334 Festés, üvegezés"}]
["4339 Egyéb befejező építés m.n.s.",5,5,2,5,2,1,null,null,null,null,null,null,null,null,null,{"$f":"IF(--ISNUMBER(SEARCH(Díjszámítás!$C$12,A160)),MAX($Q$1:Q159)+1,\"\")","v":159},{"$f":"IFERROR(INDEX($A$2:$A$302,MATCH(ROWS($Q$2:Q160),$Q$2:$Q$302,0)),\"\")","v":"4339 Egyéb befejező építés m.n.s."}]
["4391 Tetőfedés, tetőszerkezet-építés",5,5,3,5,2,1,null,null,null,null,null,null,null,null,null,{"$f":"IF(--ISNUMBER(SEARCH(Díjszámítás!$C$12,A161)),MAX($Q$1:Q160)+1,\"\")","v":160},{"$f":"IFERROR(INDEX($A$2:$A$302,MATCH(ROWS($Q$2:Q161),$Q$2:$Q$302,0)),\"\")","v":"4391 Tetőfedés, tetőszerkezet-építés"}]
["4399 Egyéb speciális szaképítés m.n.s.",5,5,2,5,2,1,null,null,null,null,null,null,null,null,null,{"$f":"IF(--ISNUMBER(SEARCH(Díjszámítás!$C$12,A162)),MAX($Q$1:Q161)+1,\"\")","v":161},{"$f":"IFERROR(INDEX($A$2:$A$302,MATCH(ROWS($Q$2:Q162),$Q$2:$Q$302,0)),\"\")","v":"4399 Egyéb speciális szaképítés m.n.s."}]
["4520 Gépjárműjavítás, -karbantartás",3,4,4,3,3,3,null,null,null,null,null,null,null,null,null,{"$f":"IF(--ISNUMBER(SEARCH(Díjszámítás!$C$12,A163)),MAX($Q$1:Q162)+1,\"\")","v":162},{"$f":"IFERROR(INDEX($A$2:$A$302,MATCH(ROWS($Q$2:Q163),$Q$2:$Q$302,0)),\"\")","v":"4520 Gépjárműjavítás, -karbantartás"}]
["4531 Gépjárműalkatrész-nagykereskedelem",3,4,4,3,1,1,null,null,null,null,null,null,null,null,null,{"$f":"IF(--ISNUMBER(SEARCH(Díjszámítás!$C$12,A164)),MAX($Q$1:Q163)+1,\"\")","v":163},{"$f":"IFERROR(INDEX($A$2:$A$302,MATCH(ROWS($Q$2:Q164),$Q$2:$Q$302,0)),\"\")","v":"4531 Gépjárműalkatrész-nagykereskedelem"}]
["4532 Gépjárműalkatrész-kiskereskedelem",3,4,4,3,1,1,null,null,null,null,null,null,null,null,null,{"$f":"IF(--ISNUMBER(SEARCH(Díjszámítás!$C$12,A165)),MAX($Q$1:Q164)+1,\"\")","v":164},{"$f":"IFERROR(INDEX($A$2:$A$302,MATCH(ROWS($Q$2:Q165),$Q$2:$Q$302,0)),\"\")","v":"4532 Gépjárműalkatrész-kiskereskedelem"}]
["4540 Motorkerékpár, -alkatrész kereskedelme, javítása",5,4,3,5,3,3,null,null,null,null,null,null,null,null,null,{"$f":"IF(--ISNUMBER(SEARCH(Díjszámítás!$C$12,A166)),MAX($Q$1:Q165)+1,\"\")","v":165},{"$f":"IFERROR(INDEX($A$2:$A$302,MATCH(ROWS($Q$2:Q166),$Q$2:$Q$302,0)),\"\")","v":"4540 Motorkerékpár, -alkatrész kereskedelme, javítása"}]
["4711 Élelmiszer jellegű bolti vegyes kiskereskedelem",2,2,2,2,1,1,null,null,null,null,null,null,null,null,null,{"$f":"IF(--ISNUMBER(SEARCH(Díjszámítás!$C$12,A167)),MAX($Q$1:Q166)+1,\"\")","v":166},{"$f":"IFERROR(INDEX($A$2:$A$302,MATCH(ROWS($Q$2:Q167),$Q$2:$Q$302,0)),\"\")","v":"4711 Élelmiszer jellegű bolti vegyes kiskereskedelem"}]
["4721 Zöldség, gyümölcs kiskereskedelme",3,2,1,3,1,1,null,null,null,null,null,null,null,null,null,{"$f":"IF(--ISNUMBER(SEARCH(Díjszámítás!$C$12,A168)),MAX($Q$1:Q167)+1,\"\")","v":167},{"$f":"IFERROR(INDEX($A$2:$A$302,MATCH(ROWS($Q$2:Q168),$Q$2:$Q$302,0)),\"\")","v":"4721 Zöldség, gyümölcs kiskereskedelme"}]
["4722 Hús-, húsáru kiskereskedelme",3,2,1,3,1,1,null,null,null,null,null,null,null,null,null,{"$f":"IF(--ISNUMBER(SEARCH(Díjszámítás!$C$12,A169)),MAX($Q$1:Q168)+1,\"\")","v":168},{"$f":"IFERROR(INDEX($A$2:$A$302,MATCH(ROWS($Q$2:Q169),$Q$2:$Q$302,0)),\"\")","v":"4722 Hús-, húsáru kiskereskedelme"}]
["4723 Hal kiskereskedelme",3,2,1,3,1,1,null,null,null,null,null,null,null,null,null,{"$f":"IF(--ISNUMBER(SEARCH(Díjszámítás!$C$12,A170)),MAX($Q$1:Q169)+1,\"\")","v":169},{"$f":"IFERROR(INDEX($A$2:$A$302,MATCH(ROWS($Q$2:Q170),$Q$2:$Q$302,0)),\"\")","v":"4723 Hal kiskereskedelme"}]
["4724 Kenyér-, pékáru-, édesség-kiskereskedelem ",3,2,1,3,1,1,null,null,null,null,null,null,null,null,null,{"$f":"IF(--ISNUMBER(SEARCH(Díjszámítás!$C$12,A171)),MAX($Q$1:Q170)+1,\"\")","v":170},{"$f":"IFERROR(INDEX($A$2:$A$302,MATCH(ROWS($Q$2:Q171),$Q$2:$Q$302,0)),\"\")","v":"4724 Kenyér-, pékáru-, édesség-kiskereskedelem "}]
["4725 Ital-kiskereskedelem ",3,2,2,3,1,1,null,null,null,null,null,null,null,null,null,{"$f":"IF(--ISNUMBER(SEARCH(Díjszámítás!$C$12,A172)),MAX($Q$1:Q171)+1,\"\")","v":171},{"$f":"IFERROR(INDEX($A$2:$A$302,MATCH(ROWS($Q$2:Q172),$Q$2:$Q$302,0)),\"\")","v":"4725 Ital-kiskereskedelem "}]
["4726 Dohányáru-kiskereskedelem ",4,2,3,4,1,1,null,null,null,null,null,null,null,null,null,{"$f":"IF(--ISNUMBER(SEARCH(Díjszámítás!$C$12,A173)),MAX($Q$1:Q172)+1,\"\")","v":172},{"$f":"IFERROR(INDEX($A$2:$A$302,MATCH(ROWS($Q$2:Q173),$Q$2:$Q$302,0)),\"\")","v":"4726 Dohányáru-kiskereskedelem "}]
["4729 Egyéb élelmiszer-kiskereskedelem ",2,2,2,2,1,1,null,null,null,null,null,null,null,null,null,{"$f":"IF(--ISNUMBER(SEARCH(Díjszámítás!$C$12,A174)),MAX($Q$1:Q173)+1,\"\")","v":173},{"$f":"IFERROR(INDEX($A$2:$A$302,MATCH(ROWS($Q$2:Q174),$Q$2:$Q$302,0)),\"\")","v":"4729 Egyéb élelmiszer-kiskereskedelem "}]
["4730 Gépjárműüzemanyag-kiskereskedelem ",3,4,4,3,3,2,null,null,null,null,null,null,null,null,null,{"$f":"IF(--ISNUMBER(SEARCH(Díjszámítás!$C$12,A175)),MAX($Q$1:Q174)+1,\"\")","v":174},{"$f":"IFERROR(INDEX($A$2:$A$302,MATCH(ROWS($Q$2:Q175),$Q$2:$Q$302,0)),\"\")","v":"4730 Gépjárműüzemanyag-kiskereskedelem "}]
["4741 Számítógép, periféria, szoftver kiskereskedelme ",3,2,3,3,1,1,null,null,null,null,null,null,null,null,null,{"$f":"IF(--ISNUMBER(SEARCH(Díjszámítás!$C$12,A176)),MAX($Q$1:Q175)+1,\"\")","v":175},{"$f":"IFERROR(INDEX($A$2:$A$302,MATCH(ROWS($Q$2:Q176),$Q$2:$Q$302,0)),\"\")","v":"4741 Számítógép, periféria, szoftver kiskereskedelme "}]
["4742 Telekommunikációs termék kiskereskedelme",2,2,4,2,3,3,null,null,null,null,null,null,null,null,null,{"$f":"IF(--ISNUMBER(SEARCH(Díjszámítás!$C$12,A177)),MAX($Q$1:Q176)+1,\"\")","v":176},{"$f":"IFERROR(INDEX($A$2:$A$302,MATCH(ROWS($Q$2:Q177),$Q$2:$Q$302,0)),\"\")","v":"4742 Telekommunikációs termék kiskereskedelme"}]
["4743 Audio-, videoberendezés kiskereskedelme",3,2,4,3,1,1,null,null,null,null,null,null,null,null,null,{"$f":"IF(--ISNUMBER(SEARCH(Díjszámítás!$C$12,A178)),MAX($Q$1:Q177)+1,\"\")","v":177},{"$f":"IFERROR(INDEX($A$2:$A$302,MATCH(ROWS($Q$2:Q178),$Q$2:$Q$302,0)),\"\")","v":"4743 Audio-, videoberendezés kiskereskedelme"}]
["4751 Textil-kiskereskedelem ",3,2,2,3,1,1,null,null,null,null,null,null,null,null,null,{"$f":"IF(--ISNUMBER(SEARCH(Díjszámítás!$C$12,A179)),MAX($Q$1:Q178)+1,\"\")","v":178},{"$f":"IFERROR(INDEX($A$2:$A$302,MATCH(ROWS($Q$2:Q179),$Q$2:$Q$302,0)),\"\")","v":"4751 Textil-kiskereskedelem "}]
["4752 Vasáru-, festék-, üveg-kiskereskedelem ",2,2,4,2,1,1,null,null,null,null,null,null,null,null,null,{"$f":"IF(--ISNUMBER(SEARCH(Díjszámítás!$C$12,A180)),MAX($Q$1:Q179)+1,\"\")","v":179},{"$f":"IFERROR(INDEX($A$2:$A$302,MATCH(ROWS($Q$2:Q180),$Q$2:$Q$302,0)),\"\")","v":"4752 Vasáru-, festék-, üveg-kiskereskedelem "}]
["4753 Takaró, szőnyeg, fal-, padlóburkoló kiskereskedelme",4,2,2,4,1,1,null,null,null,null,null,null,null,null,null,{"$f":"IF(--ISNUMBER(SEARCH(Díjszámítás!$C$12,A181)),MAX($Q$1:Q180)+1,\"\")","v":180},{"$f":"IFERROR(INDEX($A$2:$A$302,MATCH(ROWS($Q$2:Q181),$Q$2:$Q$302,0)),\"\")","v":"4753 Takaró, szőnyeg, fal-, padlóburkoló kiskereskedelme"}]
["4754 Villamos háztartási készülék kiskereskedelme ",4,2,3,4,1,1,null,null,null,null,null,null,null,null,null,{"$f":"IF(--ISNUMBER(SEARCH(Díjszámítás!$C$12,A182)),MAX($Q$1:Q181)+1,\"\")","v":181},{"$f":"IFERROR(INDEX($A$2:$A$302,MATCH(ROWS($Q$2:Q182),$Q$2:$Q$302,0)),\"\")","v":"4754 Villamos háztartási készülék kiskereskedelme "}]
["4759 Bútor, világítási eszköz, egyéb háztartási cikk kiskereskedelme",6,2,3,6,1,1,null,null,null,null,null,null,null,null,null,{"$f":"IF(--ISNUMBER(SEARCH(Díjszámítás!$C$12,A183)),MAX($Q$1:Q182)+1,\"\")","v":182},{"$f":"IFERROR(INDEX($A$2:$A$302,MATCH(ROWS($Q$2:Q183),$Q$2:$Q$302,0)),\"\")","v":"4759 Bútor, világítási eszköz, egyéb háztartási cikk kiskereskedelme"}]
["4761 Könyv-kiskereskedelem ",4,2,2,4,1,1,null,null,null,null,null,null,null,null,null,{"$f":"IF(--ISNUMBER(SEARCH(Díjszámítás!$C$12,A184)),MAX($Q$1:Q183)+1,\"\")","v":183},{"$f":"IFERROR(INDEX($A$2:$A$302,MATCH(ROWS($Q$2:Q184),$Q$2:$Q$302,0)),\"\")","v":"4761 Könyv-kiskereskedelem "}]
["4762 Újság-, papíráru-kiskereskedelem ",4,2,1,4,1,1,null,null,null,null,null,null,null,null,null,{"$f":"IF(--ISNUMBER(SEARCH(Díjszámítás!$C$12,A185)),MAX($Q$1:Q184)+1,\"\")","v":184},{"$f":"IFERROR(INDEX($A$2:$A$302,MATCH(ROWS($Q$2:Q185),$Q$2:$Q$302,0)),\"\")","v":"4762 Újság-, papíráru-kiskereskedelem "}]
["4763 Zene-, videofelvétel kiskereskedelme",3,2,3,3,1,1,null,null,null,null,null,null,null,null,null,{"$f":"IF(--ISNUMBER(SEARCH(Díjszámítás!$C$12,A186)),MAX($Q$1:Q185)+1,\"\")","v":185},{"$f":"IFERROR(INDEX($A$2:$A$302,MATCH(ROWS($Q$2:Q186),$Q$2:$Q$302,0)),\"\")","v":"4763 Zene-, videofelvétel kiskereskedelme"}]
["4764 Sportszer-kiskereskedelem ",3,2,2,3,1,1,null,null,null,null,null,null,null,null,null,{"$f":"IF(--ISNUMBER(SEARCH(Díjszámítás!$C$12,A187)),MAX($Q$1:Q186)+1,\"\")","v":186},{"$f":"IFERROR(INDEX($A$2:$A$302,MATCH(ROWS($Q$2:Q187),$Q$2:$Q$302,0)),\"\")","v":"4764 Sportszer-kiskereskedelem "}]
["4765 Játék-kiskereskedelem ",3,2,2,3,1,1,null,null,null,null,null,null,null,null,null,{"$f":"IF(--ISNUMBER(SEARCH(Díjszámítás!$C$12,A188)),MAX($Q$1:Q187)+1,\"\")","v":187},{"$f":"IFERROR(INDEX($A$2:$A$302,MATCH(ROWS($Q$2:Q188),$Q$2:$Q$302,0)),\"\")","v":"4765 Játék-kiskereskedelem "}]
["4771 Ruházat kiskereskedelem ",3,2,2,3,1,1,null,null,null,null,null,null,null,null,null,{"$f":"IF(--ISNUMBER(SEARCH(Díjszámítás!$C$12,A189)),MAX($Q$1:Q188)+1,\"\")","v":188},{"$f":"IFERROR(INDEX($A$2:$A$302,MATCH(ROWS($Q$2:Q189),$Q$2:$Q$302,0)),\"\")","v":"4771 Ruházat kiskereskedelem "}]
["4772 Lábbeli-, bőráru-kiskereskedelem ",3,2,2,3,1,1,null,null,null,null,null,null,null,null,null,{"$f":"IF(--ISNUMBER(SEARCH(Díjszámítás!$C$12,A190)),MAX($Q$1:Q189)+1,\"\")","v":189},{"$f":"IFERROR(INDEX($A$2:$A$302,MATCH(ROWS($Q$2:Q190),$Q$2:$Q$302,0)),\"\")","v":"4772 Lábbeli-, bőráru-kiskereskedelem "}]
["4773 Gyógyszer-kiskereskedelem ",2,2,3,2,1,1,null,null,null,null,null,null,null,null,null,{"$f":"IF(--ISNUMBER(SEARCH(Díjszámítás!$C$12,A191)),MAX($Q$1:Q190)+1,\"\")","v":190},{"$f":"IFERROR(INDEX($A$2:$A$302,MATCH(ROWS($Q$2:Q191),$Q$2:$Q$302,0)),\"\")","v":"4773 Gyógyszer-kiskereskedelem "}]
["4774 Gyógyászati termék kiskereskedelme ",4,2,1,4,1,1,null,null,null,null,null,null,null,null,null,{"$f":"IF(--ISNUMBER(SEARCH(Díjszámítás!$C$12,A192)),MAX($Q$1:Q191)+1,\"\")","v":191},{"$f":"IFERROR(INDEX($A$2:$A$302,MATCH(ROWS($Q$2:Q192),$Q$2:$Q$302,0)),\"\")","v":"4774 Gyógyászati termék kiskereskedelme "}]
["4775 Illatszer-kiskereskedelem ",4,4,3,4,1,1,null,null,null,null,null,null,null,null,null,{"$f":"IF(--ISNUMBER(SEARCH(Díjszámítás!$C$12,A193)),MAX($Q$1:Q192)+1,\"\")","v":192},{"$f":"IFERROR(INDEX($A$2:$A$302,MATCH(ROWS($Q$2:Q193),$Q$2:$Q$302,0)),\"\")","v":"4775 Illatszer-kiskereskedelem "}]
["4776 Dísznövény, vetőmag, műtrágya, hobbiállat-eledel kiskereskedelme",3,2,1,3,1,1,null,null,null,null,null,null,null,null,null,{"$f":"IF(--ISNUMBER(SEARCH(Díjszámítás!$C$12,A194)),MAX($Q$1:Q193)+1,\"\")","v":193},{"$f":"IFERROR(INDEX($A$2:$A$302,MATCH(ROWS($Q$2:Q194),$Q$2:$Q$302,0)),\"\")","v":"4776 Dísznövény, vetőmag, műtrágya, hobbiállat-eledel kiskereskedelme"}]
["4782 Textil, ruházat, lábbeli piaci kiskereskedelme",3,2,2,3,1,1,null,null,null,null,null,null,null,null,null,{"$f":"IF(--ISNUMBER(SEARCH(Díjszámítás!$C$12,A195)),MAX($Q$1:Q194)+1,\"\")","v":194},{"$f":"IFERROR(INDEX($A$2:$A$302,MATCH(ROWS($Q$2:Q195),$Q$2:$Q$302,0)),\"\")","v":"4782 Textil, ruházat, lábbeli piaci kiskereskedelme"}]
["5510 Szállodai szolgáltatás",2,3,2,2,2,2,null,null,null,null,null,null,null,null,null,{"$f":"IF(--ISNUMBER(SEARCH(Díjszámítás!$C$12,A196)),MAX($Q$1:Q195)+1,\"\")","v":195},{"$f":"IFERROR(INDEX($A$2:$A$302,MATCH(ROWS($Q$2:Q196),$Q$2:$Q$302,0)),\"\")","v":"5510 Szállodai szolgáltatás"}]
["5520 Üdülési, egyéb átmeneti szálláshely-szolgáltatás",2,3,2,2,2,2,null,null,null,null,null,null,null,null,null,{"$f":"IF(--ISNUMBER(SEARCH(Díjszámítás!$C$12,A197)),MAX($Q$1:Q196)+1,\"\")","v":196},{"$f":"IFERROR(INDEX($A$2:$A$302,MATCH(ROWS($Q$2:Q197),$Q$2:$Q$302,0)),\"\")","v":"5520 Üdülési, egyéb átmeneti szálláshely-szolgáltatás"}]
["5590 Egyéb szálláshely-szolgáltatás ",2,3,2,2,2,2,null,null,null,null,null,null,null,null,null,{"$f":"IF(--ISNUMBER(SEARCH(Díjszámítás!$C$12,A198)),MAX($Q$1:Q197)+1,\"\")","v":197},{"$f":"IFERROR(INDEX($A$2:$A$302,MATCH(ROWS($Q$2:Q198),$Q$2:$Q$302,0)),\"\")","v":"5590 Egyéb szálláshely-szolgáltatás "}]
["5610 Éttermi, mozgó vendéglátás",4,3,2,4,2,1,null,null,null,null,null,null,null,null,null,{"$f":"IF(--ISNUMBER(SEARCH(Díjszámítás!$C$12,A199)),MAX($Q$1:Q198)+1,\"\")","v":198},{"$f":"IFERROR(INDEX($A$2:$A$302,MATCH(ROWS($Q$2:Q199),$Q$2:$Q$302,0)),\"\")","v":"5610 Éttermi, mozgó vendéglátás"}]
["5621 Rendezvényi étkeztetés",4,3,2,4,2,1,null,null,null,null,null,null,null,null,null,{"$f":"IF(--ISNUMBER(SEARCH(Díjszámítás!$C$12,A200)),MAX($Q$1:Q199)+1,\"\")","v":199},{"$f":"IFERROR(INDEX($A$2:$A$302,MATCH(ROWS($Q$2:Q200),$Q$2:$Q$302,0)),\"\")","v":"5621 Rendezvényi étkeztetés"}]
["5629 Egyéb vendéglátás",4,3,3,4,1,2,null,null,null,null,null,null,null,null,null,{"$f":"IF(--ISNUMBER(SEARCH(Díjszámítás!$C$12,A201)),MAX($Q$1:Q200)+1,\"\")","v":200},{"$f":"IFERROR(INDEX($A$2:$A$302,MATCH(ROWS($Q$2:Q201),$Q$2:$Q$302,0)),\"\")","v":"5629 Egyéb vendéglátás"}]
["5630 Italszolgáltatás",4,3,3,4,1,2,null,null,null,null,null,null,null,null,null,{"$f":"IF(--ISNUMBER(SEARCH(Díjszámítás!$C$12,A202)),MAX($Q$1:Q201)+1,\"\")","v":201},{"$f":"IFERROR(INDEX($A$2:$A$302,MATCH(ROWS($Q$2:Q202),$Q$2:$Q$302,0)),\"\")","v":"5630 Italszolgáltatás"}]
["5811 Könyvkiadás",4,4,1,4,4,1,null,null,null,null,null,null,null,null,null,{"$f":"IF(--ISNUMBER(SEARCH(Díjszámítás!$C$12,A203)),MAX($Q$1:Q202)+1,\"\")","v":202},{"$f":"IFERROR(INDEX($A$2:$A$302,MATCH(ROWS($Q$2:Q203),$Q$2:$Q$302,0)),\"\")","v":"5811 Könyvkiadás"}]
["5813 Napilapkiadás",4,4,1,4,4,1,null,null,null,null,null,null,null,null,null,{"$f":"IF(--ISNUMBER(SEARCH(Díjszámítás!$C$12,A204)),MAX($Q$1:Q203)+1,\"\")","v":203},{"$f":"IFERROR(INDEX($A$2:$A$302,MATCH(ROWS($Q$2:Q204),$Q$2:$Q$302,0)),\"\")","v":"5813 Napilapkiadás"}]
["5814 Folyóirat, időszaki kiadvány kiadása",4,4,1,4,4,1,null,null,null,null,null,null,null,null,null,{"$f":"IF(--ISNUMBER(SEARCH(Díjszámítás!$C$12,A205)),MAX($Q$1:Q204)+1,\"\")","v":204},{"$f":"IFERROR(INDEX($A$2:$A$302,MATCH(ROWS($Q$2:Q205),$Q$2:$Q$302,0)),\"\")","v":"5814 Folyóirat, időszaki kiadvány kiadása"}]
["5819 Egyéb kiadói tevékenység",4,4,1,4,4,1,null,null,null,null,null,null,null,null,null,{"$f":"IF(--ISNUMBER(SEARCH(Díjszámítás!$C$12,A206)),MAX($Q$1:Q205)+1,\"\")","v":205},{"$f":"IFERROR(INDEX($A$2:$A$302,MATCH(ROWS($Q$2:Q206),$Q$2:$Q$302,0)),\"\")","v":"5819 Egyéb kiadói tevékenység"}]
["5911 Film-, video-, televízióműsor-gyártás",3,4,3,3,4,4,null,null,null,null,null,null,null,null,null,{"$f":"IF(--ISNUMBER(SEARCH(Díjszámítás!$C$12,A207)),MAX($Q$1:Q206)+1,\"\")","v":206},{"$f":"IFERROR(INDEX($A$2:$A$302,MATCH(ROWS($Q$2:Q207),$Q$2:$Q$302,0)),\"\")","v":"5911 Film-, video-, televízióműsor-gyártás"}]
["5912 Film-, videogyártás, televíziós műsorfelvétel utómunkálatai",3,4,3,3,4,4,null,null,null,null,null,null,null,null,null,{"$f":"IF(--ISNUMBER(SEARCH(Díjszámítás!$C$12,A208)),MAX($Q$1:Q207)+1,\"\")","v":207},{"$f":"IFERROR(INDEX($A$2:$A$302,MATCH(ROWS($Q$2:Q208),$Q$2:$Q$302,0)),\"\")","v":"5912 Film-, videogyártás, televíziós műsorfelvétel utómunkálatai"}]
["5914 Filmvetítés",4,1,2,4,3,3,null,null,null,null,null,null,null,null,null,{"$f":"IF(--ISNUMBER(SEARCH(Díjszámítás!$C$12,A209)),MAX($Q$1:Q208)+1,\"\")","v":208},{"$f":"IFERROR(INDEX($A$2:$A$302,MATCH(ROWS($Q$2:Q209),$Q$2:$Q$302,0)),\"\")","v":"5914 Filmvetítés"}]
["5920 Hangfelvétel készítése, kiadása",4,4,2,4,1,3,null,null,null,null,null,null,null,null,null,{"$f":"IF(--ISNUMBER(SEARCH(Díjszámítás!$C$12,A210)),MAX($Q$1:Q209)+1,\"\")","v":209},{"$f":"IFERROR(INDEX($A$2:$A$302,MATCH(ROWS($Q$2:Q210),$Q$2:$Q$302,0)),\"\")","v":"5920 Hangfelvétel készítése, kiadása"}]
["6010 Rádióműsor-szolgáltatás",3,4,3,3,4,4,null,null,null,null,null,null,null,null,null,{"$f":"IF(--ISNUMBER(SEARCH(Díjszámítás!$C$12,A211)),MAX($Q$1:Q210)+1,\"\")","v":210},{"$f":"IFERROR(INDEX($A$2:$A$302,MATCH(ROWS($Q$2:Q211),$Q$2:$Q$302,0)),\"\")","v":"6010 Rádióműsor-szolgáltatás"}]
["6020 Televízióműsor összeállítása, szolgáltatása",3,4,3,3,4,4,null,null,null,null,null,null,null,null,null,{"$f":"IF(--ISNUMBER(SEARCH(Díjszámítás!$C$12,A212)),MAX($Q$1:Q211)+1,\"\")","v":211},{"$f":"IFERROR(INDEX($A$2:$A$302,MATCH(ROWS($Q$2:Q212),$Q$2:$Q$302,0)),\"\")","v":"6020 Televízióműsor összeállítása, szolgáltatása"}]
["6201 Számítógépes programozás",2,1,1,2,2,2,null,null,null,null,null,null,null,null,null,{"$f":"IF(--ISNUMBER(SEARCH(Díjszámítás!$C$12,A213)),MAX($Q$1:Q212)+1,\"\")","v":212},{"$f":"IFERROR(INDEX($A$2:$A$302,MATCH(ROWS($Q$2:Q213),$Q$2:$Q$302,0)),\"\")","v":"6201 Számítógépes programozás"}]
["6203 Számítógép-üzemeltetés ",3,5,3,3,1,2,null,null,null,null,null,null,null,null,null,{"$f":"IF(--ISNUMBER(SEARCH(Díjszámítás!$C$12,A214)),MAX($Q$1:Q213)+1,\"\")","v":213},{"$f":"IFERROR(INDEX($A$2:$A$302,MATCH(ROWS($Q$2:Q214),$Q$2:$Q$302,0)),\"\")","v":"6203 Számítógép-üzemeltetés "}]
["6419 Egyéb monetáris közvetítés",2,1,3,2,1,2,null,null,null,null,null,null,null,null,null,{"$f":"IF(--ISNUMBER(SEARCH(Díjszámítás!$C$12,A215)),MAX($Q$1:Q214)+1,\"\")","v":214},{"$f":"IFERROR(INDEX($A$2:$A$302,MATCH(ROWS($Q$2:Q215),$Q$2:$Q$302,0)),\"\")","v":"6419 Egyéb monetáris közvetítés"}]
["6420 Vagyonkezelés (holding)",2,1,1,2,2,2,null,null,null,null,null,null,null,null,null,{"$f":"IF(--ISNUMBER(SEARCH(Díjszámítás!$C$12,A216)),MAX($Q$1:Q215)+1,\"\")","v":215},{"$f":"IFERROR(INDEX($A$2:$A$302,MATCH(ROWS($Q$2:Q216),$Q$2:$Q$302,0)),\"\")","v":"6420 Vagyonkezelés (holding)"}]
["6430 Befektetési alapok és hasonlók",2,1,3,2,1,2,null,null,null,null,null,null,null,null,null,{"$f":"IF(--ISNUMBER(SEARCH(Díjszámítás!$C$12,A217)),MAX($Q$1:Q216)+1,\"\")","v":216},{"$f":"IFERROR(INDEX($A$2:$A$302,MATCH(ROWS($Q$2:Q217),$Q$2:$Q$302,0)),\"\")","v":"6430 Befektetési alapok és hasonlók"}]
["6491 Pénzügyi lízing",2,1,3,2,1,2,null,null,null,null,null,null,null,null,null,{"$f":"IF(--ISNUMBER(SEARCH(Díjszámítás!$C$12,A218)),MAX($Q$1:Q217)+1,\"\")","v":217},{"$f":"IFERROR(INDEX($A$2:$A$302,MATCH(ROWS($Q$2:Q218),$Q$2:$Q$302,0)),\"\")","v":"6491 Pénzügyi lízing"}]
["6492 Egyéb hitelnyújtás",2,1,3,2,1,2,null,null,null,null,null,null,null,null,null,{"$f":"IF(--ISNUMBER(SEARCH(Díjszámítás!$C$12,A219)),MAX($Q$1:Q218)+1,\"\")","v":218},{"$f":"IFERROR(INDEX($A$2:$A$302,MATCH(ROWS($Q$2:Q219),$Q$2:$Q$302,0)),\"\")","v":"6492 Egyéb hitelnyújtás"}]
["6499 M.n.s. egyéb pénzügyi közvetítés ",2,1,3,2,1,2,null,null,null,null,null,null,null,null,null,{"$f":"IF(--ISNUMBER(SEARCH(Díjszámítás!$C$12,A220)),MAX($Q$1:Q219)+1,\"\")","v":219},{"$f":"IFERROR(INDEX($A$2:$A$302,MATCH(ROWS($Q$2:Q220),$Q$2:$Q$302,0)),\"\")","v":"6499 M.n.s. egyéb pénzügyi közvetítés "}]
["6511 Életbiztosítás",2,1,1,2,2,2,null,null,null,null,null,null,null,null,null,{"$f":"IF(--ISNUMBER(SEARCH(Díjszámítás!$C$12,A221)),MAX($Q$1:Q220)+1,\"\")","v":220},{"$f":"IFERROR(INDEX($A$2:$A$302,MATCH(ROWS($Q$2:Q221),$Q$2:$Q$302,0)),\"\")","v":"6511 Életbiztosítás"}]
["6512 Nem életbiztosítás",2,1,1,2,2,2,null,null,null,null,null,null,null,null,null,{"$f":"IF(--ISNUMBER(SEARCH(Díjszámítás!$C$12,A222)),MAX($Q$1:Q221)+1,\"\")","v":221},{"$f":"IFERROR(INDEX($A$2:$A$302,MATCH(ROWS($Q$2:Q222),$Q$2:$Q$302,0)),\"\")","v":"6512 Nem életbiztosítás"}]
["6520 Viszontbiztosítás",2,1,1,2,2,2,null,null,null,null,null,null,null,null,null,{"$f":"IF(--ISNUMBER(SEARCH(Díjszámítás!$C$12,A223)),MAX($Q$1:Q222)+1,\"\")","v":222},{"$f":"IFERROR(INDEX($A$2:$A$302,MATCH(ROWS($Q$2:Q223),$Q$2:$Q$302,0)),\"\")","v":"6520 Viszontbiztosítás"}]
["6530 Nyugdíjalapok",2,1,1,2,2,2,null,null,null,null,null,null,null,null,null,{"$f":"IF(--ISNUMBER(SEARCH(Díjszámítás!$C$12,A224)),MAX($Q$1:Q223)+1,\"\")","v":223},{"$f":"IFERROR(INDEX($A$2:$A$302,MATCH(ROWS($Q$2:Q224),$Q$2:$Q$302,0)),\"\")","v":"6530 Nyugdíjalapok"}]
["6621 Kockázatértékelés, kárszakértés",2,1,1,2,2,2,null,null,null,null,null,null,null,null,null,{"$f":"IF(--ISNUMBER(SEARCH(Díjszámítás!$C$12,A225)),MAX($Q$1:Q224)+1,\"\")","v":224},{"$f":"IFERROR(INDEX($A$2:$A$302,MATCH(ROWS($Q$2:Q225),$Q$2:$Q$302,0)),\"\")","v":"6621 Kockázatértékelés, kárszakértés"}]
["6622 Biztosítási ügynöki, brókeri tevékenység",2,1,1,2,2,2,null,null,null,null,null,null,null,null,null,{"$f":"IF(--ISNUMBER(SEARCH(Díjszámítás!$C$12,A226)),MAX($Q$1:Q225)+1,\"\")","v":225},{"$f":"IFERROR(INDEX($A$2:$A$302,MATCH(ROWS($Q$2:Q226),$Q$2:$Q$302,0)),\"\")","v":"6622 Biztosítási ügynöki, brókeri tevékenység"}]
["6831 Ingatlanügynöki tevékenység",2,1,1,2,2,2,null,null,null,null,null,null,null,null,null,{"$f":"IF(--ISNUMBER(SEARCH(Díjszámítás!$C$12,A227)),MAX($Q$1:Q226)+1,\"\")","v":226},{"$f":"IFERROR(INDEX($A$2:$A$302,MATCH(ROWS($Q$2:Q227),$Q$2:$Q$302,0)),\"\")","v":"6831 Ingatlanügynöki tevékenység"}]
["6910 Jogi tevékenység",2,1,1,2,2,2,null,null,null,null,null,null,null,null,null,{"$f":"IF(--ISNUMBER(SEARCH(Díjszámítás!$C$12,A228)),MAX($Q$1:Q227)+1,\"\")","v":227},{"$f":"IFERROR(INDEX($A$2:$A$302,MATCH(ROWS($Q$2:Q228),$Q$2:$Q$302,0)),\"\")","v":"6910 Jogi tevékenység"}]
["6920 Számviteli, könyvvizsgálói, adószakértői tevékenység",2,1,1,2,2,2,null,null,null,null,null,null,null,null,null,{"$f":"IF(--ISNUMBER(SEARCH(Díjszámítás!$C$12,A229)),MAX($Q$1:Q228)+1,\"\")","v":228},{"$f":"IFERROR(INDEX($A$2:$A$302,MATCH(ROWS($Q$2:Q229),$Q$2:$Q$302,0)),\"\")","v":"6920 Számviteli, könyvvizsgálói, adószakértői tevékenység"}]
["7021 PR, kommunikáció",2,1,1,2,2,2,null,null,null,null,null,null,null,null,null,{"$f":"IF(--ISNUMBER(SEARCH(Díjszámítás!$C$12,A230)),MAX($Q$1:Q229)+1,\"\")","v":229},{"$f":"IFERROR(INDEX($A$2:$A$302,MATCH(ROWS($Q$2:Q230),$Q$2:$Q$302,0)),\"\")","v":"7021 PR, kommunikáció"}]
["7022 Üzletviteli, egyéb vezetési tanácsadás",2,1,1,2,2,2,null,null,null,null,null,null,null,null,null,{"$f":"IF(--ISNUMBER(SEARCH(Díjszámítás!$C$12,A231)),MAX($Q$1:Q230)+1,\"\")","v":230},{"$f":"IFERROR(INDEX($A$2:$A$302,MATCH(ROWS($Q$2:Q231),$Q$2:$Q$302,0)),\"\")","v":"7022 Üzletviteli, egyéb vezetési tanácsadás"}]
["7111 Építészmérnöki tevékenység",2,1,1,2,2,2,null,null,null,null,null,null,null,null,null,{"$f":"IF(--ISNUMBER(SEARCH(Díjszámítás!$C$12,A232)),MAX($Q$1:Q231)+1,\"\")","v":231},{"$f":"IFERROR(INDEX($A$2:$A$302,MATCH(ROWS($Q$2:Q232),$Q$2:$Q$302,0)),\"\")","v":"7111 Építészmérnöki tevékenység"}]
["7112 Mérnöki tevékenység, műszaki tanácsadás",2,1,1,2,2,2,null,null,null,null,null,null,null,null,null,{"$f":"IF(--ISNUMBER(SEARCH(Díjszámítás!$C$12,A233)),MAX($Q$1:Q232)+1,\"\")","v":232},{"$f":"IFERROR(INDEX($A$2:$A$302,MATCH(ROWS($Q$2:Q233),$Q$2:$Q$302,0)),\"\")","v":"7112 Mérnöki tevékenység, műszaki tanácsadás"}]
["7120 Műszaki vizsgálat, elemzés",3,1,2,3,2,2,null,null,null,null,null,null,null,null,null,{"$f":"IF(--ISNUMBER(SEARCH(Díjszámítás!$C$12,A234)),MAX($Q$1:Q233)+1,\"\")","v":233},{"$f":"IFERROR(INDEX($A$2:$A$302,MATCH(ROWS($Q$2:Q234),$Q$2:$Q$302,0)),\"\")","v":"7120 Műszaki vizsgálat, elemzés"}]
["7211 Biotechnológiai kutatás, fejlesztés",3,1,2,3,2,2,null,null,null,null,null,null,null,null,null,{"$f":"IF(--ISNUMBER(SEARCH(Díjszámítás!$C$12,A235)),MAX($Q$1:Q234)+1,\"\")","v":234},{"$f":"IFERROR(INDEX($A$2:$A$302,MATCH(ROWS($Q$2:Q235),$Q$2:$Q$302,0)),\"\")","v":"7211 Biotechnológiai kutatás, fejlesztés"}]
["7219 Egyéb természettudományi, műszaki kutatás, fejlesztés",3,1,2,3,2,2,null,null,null,null,null,null,null,null,null,{"$f":"IF(--ISNUMBER(SEARCH(Díjszámítás!$C$12,A236)),MAX($Q$1:Q235)+1,\"\")","v":235},{"$f":"IFERROR(INDEX($A$2:$A$302,MATCH(ROWS($Q$2:Q236),$Q$2:$Q$302,0)),\"\")","v":"7219 Egyéb természettudományi, műszaki kutatás, fejlesztés"}]
["7220 Társadalomtudományi, humán kutatás, fejlesztés",3,1,2,3,2,2,null,null,null,null,null,null,null,null,null,{"$f":"IF(--ISNUMBER(SEARCH(Díjszámítás!$C$12,A237)),MAX($Q$1:Q236)+1,\"\")","v":236},{"$f":"IFERROR(INDEX($A$2:$A$302,MATCH(ROWS($Q$2:Q237),$Q$2:$Q$302,0)),\"\")","v":"7220 Társadalomtudományi, humán kutatás, fejlesztés"}]
["7311 Reklámügynöki tevékenység",2,1,1,2,2,2,null,null,null,null,null,null,null,null,null,{"$f":"IF(--ISNUMBER(SEARCH(Díjszámítás!$C$12,A238)),MAX($Q$1:Q237)+1,\"\")","v":237},{"$f":"IFERROR(INDEX($A$2:$A$302,MATCH(ROWS($Q$2:Q238),$Q$2:$Q$302,0)),\"\")","v":"7311 Reklámügynöki tevékenység"}]
["7312 Médiareklám",3,4,1,3,1,2,null,null,null,null,null,null,null,null,null,{"$f":"IF(--ISNUMBER(SEARCH(Díjszámítás!$C$12,A239)),MAX($Q$1:Q238)+1,\"\")","v":238},{"$f":"IFERROR(INDEX($A$2:$A$302,MATCH(ROWS($Q$2:Q239),$Q$2:$Q$302,0)),\"\")","v":"7312 Médiareklám"}]
["7320 Piac-, közvélemény-kutatás",2,1,1,2,2,2,null,null,null,null,null,null,null,null,null,{"$f":"IF(--ISNUMBER(SEARCH(Díjszámítás!$C$12,A240)),MAX($Q$1:Q239)+1,\"\")","v":239},{"$f":"IFERROR(INDEX($A$2:$A$302,MATCH(ROWS($Q$2:Q240),$Q$2:$Q$302,0)),\"\")","v":"7320 Piac-, közvélemény-kutatás"}]
["7420 Fényképészet",4,4,3,4,2,1,null,null,null,null,null,null,null,null,null,{"$f":"IF(--ISNUMBER(SEARCH(Díjszámítás!$C$12,A241)),MAX($Q$1:Q240)+1,\"\")","v":240},{"$f":"IFERROR(INDEX($A$2:$A$302,MATCH(ROWS($Q$2:Q241),$Q$2:$Q$302,0)),\"\")","v":"7420 Fényképészet"}]
["7430 Fordítás, tolmácsolás",2,1,1,2,2,2,null,null,null,null,null,null,null,null,null,{"$f":"IF(--ISNUMBER(SEARCH(Díjszámítás!$C$12,A242)),MAX($Q$1:Q241)+1,\"\")","v":241},{"$f":"IFERROR(INDEX($A$2:$A$302,MATCH(ROWS($Q$2:Q242),$Q$2:$Q$302,0)),\"\")","v":"7430 Fordítás, tolmácsolás"}]
["7490 M.n.s. egyéb szakmai, tudományos, műszaki tevékenység ",2,1,1,2,2,2,null,null,null,null,null,null,null,null,null,{"$f":"IF(--ISNUMBER(SEARCH(Díjszámítás!$C$12,A243)),MAX($Q$1:Q242)+1,\"\")","v":242},{"$f":"IFERROR(INDEX($A$2:$A$302,MATCH(ROWS($Q$2:Q243),$Q$2:$Q$302,0)),\"\")","v":"7490 M.n.s. egyéb szakmai, tudományos, műszaki tevékenység "}]
["7500 Állat-egészségügyi ellátás",2,1,1,2,2,2,null,null,null,null,null,null,null,null,null,{"$f":"IF(--ISNUMBER(SEARCH(Díjszámítás!$C$12,A244)),MAX($Q$1:Q243)+1,\"\")","v":243},{"$f":"IFERROR(INDEX($A$2:$A$302,MATCH(ROWS($Q$2:Q244),$Q$2:$Q$302,0)),\"\")","v":"7500 Állat-egészségügyi ellátás"}]
["7722 Videokazetta, lemez kölcsönzése",3,2,3,3,1,1,null,null,null,null,null,null,null,null,null,{"$f":"IF(--ISNUMBER(SEARCH(Díjszámítás!$C$12,A245)),MAX($Q$1:Q244)+1,\"\")","v":244},{"$f":"IFERROR(INDEX($A$2:$A$302,MATCH(ROWS($Q$2:Q245),$Q$2:$Q$302,0)),\"\")","v":"7722 Videokazetta, lemez kölcsönzése"}]
["7729 Egyéb személyi használatú, háztartási cikk kölcsönzése",3,2,3,3,1,1,null,null,null,null,null,null,null,null,null,{"$f":"IF(--ISNUMBER(SEARCH(Díjszámítás!$C$12,A246)),MAX($Q$1:Q245)+1,\"\")","v":245},{"$f":"IFERROR(INDEX($A$2:$A$302,MATCH(ROWS($Q$2:Q246),$Q$2:$Q$302,0)),\"\")","v":"7729 Egyéb személyi használatú, háztartási cikk kölcsönzése"}]
["7731 Mezőgazdasági gép kölcsönzése",3,2,3,3,1,1,null,null,null,null,null,null,null,null,null,{"$f":"IF(--ISNUMBER(SEARCH(Díjszámítás!$C$12,A247)),MAX($Q$1:Q246)+1,\"\")","v":246},{"$f":"IFERROR(INDEX($A$2:$A$302,MATCH(ROWS($Q$2:Q247),$Q$2:$Q$302,0)),\"\")","v":"7731 Mezőgazdasági gép kölcsönzése"}]
["7732 Építőipari gép kölcsönzése",3,2,3,3,4,1,null,null,null,null,null,null,null,null,null,{"$f":"IF(--ISNUMBER(SEARCH(Díjszámítás!$C$12,A248)),MAX($Q$1:Q247)+1,\"\")","v":247},{"$f":"IFERROR(INDEX($A$2:$A$302,MATCH(ROWS($Q$2:Q248),$Q$2:$Q$302,0)),\"\")","v":"7732 Építőipari gép kölcsönzése"}]
["7733 Irodagép kölcsönzése (beleértve: számítógép) ",3,2,3,3,2,2,null,null,null,null,null,null,null,null,null,{"$f":"IF(--ISNUMBER(SEARCH(Díjszámítás!$C$12,A249)),MAX($Q$1:Q248)+1,\"\")","v":248},{"$f":"IFERROR(INDEX($A$2:$A$302,MATCH(ROWS($Q$2:Q249),$Q$2:$Q$302,0)),\"\")","v":"7733 Irodagép kölcsönzése (beleértve: számítógép) "}]
["7911 Utazásközvetítés",2,1,1,2,2,2,null,null,null,null,null,null,null,null,null,{"$f":"IF(--ISNUMBER(SEARCH(Díjszámítás!$C$12,A250)),MAX($Q$1:Q249)+1,\"\")","v":249},{"$f":"IFERROR(INDEX($A$2:$A$302,MATCH(ROWS($Q$2:Q250),$Q$2:$Q$302,0)),\"\")","v":"7911 Utazásközvetítés"}]
["7912 Utazásszervezés",2,1,1,2,2,2,null,null,null,null,null,null,null,null,null,{"$f":"IF(--ISNUMBER(SEARCH(Díjszámítás!$C$12,A251)),MAX($Q$1:Q250)+1,\"\")","v":250},{"$f":"IFERROR(INDEX($A$2:$A$302,MATCH(ROWS($Q$2:Q251),$Q$2:$Q$302,0)),\"\")","v":"7912 Utazásszervezés"}]
["8110 Építményüzemeltetés",3,4,1,3,2,1,null,null,null,null,null,null,null,null,null,{"$f":"IF(--ISNUMBER(SEARCH(Díjszámítás!$C$12,A252)),MAX($Q$1:Q251)+1,\"\")","v":251},{"$f":"IFERROR(INDEX($A$2:$A$302,MATCH(ROWS($Q$2:Q252),$Q$2:$Q$302,0)),\"\")","v":"8110 Építményüzemeltetés"}]
["8121 Általános épülettakarítás",2,4,2,2,2,3,null,null,null,null,null,null,null,null,null,{"$f":"IF(--ISNUMBER(SEARCH(Díjszámítás!$C$12,A253)),MAX($Q$1:Q252)+1,\"\")","v":252},{"$f":"IFERROR(INDEX($A$2:$A$302,MATCH(ROWS($Q$2:Q253),$Q$2:$Q$302,0)),\"\")","v":"8121 Általános épülettakarítás"}]
["8129 Egyéb takarítás",2,4,2,2,2,3,null,null,null,null,null,null,null,null,null,{"$f":"IF(--ISNUMBER(SEARCH(Díjszámítás!$C$12,A254)),MAX($Q$1:Q253)+1,\"\")","v":253},{"$f":"IFERROR(INDEX($A$2:$A$302,MATCH(ROWS($Q$2:Q254),$Q$2:$Q$302,0)),\"\")","v":"8129 Egyéb takarítás"}]
["8211 Összetett adminisztratív szolgáltatás",2,1,1,2,2,2,null,null,null,null,null,null,null,null,null,{"$f":"IF(--ISNUMBER(SEARCH(Díjszámítás!$C$12,A255)),MAX($Q$1:Q254)+1,\"\")","v":254},{"$f":"IFERROR(INDEX($A$2:$A$302,MATCH(ROWS($Q$2:Q255),$Q$2:$Q$302,0)),\"\")","v":"8211 Összetett adminisztratív szolgáltatás"}]
["8219 Fénymásolás, egyéb irodai szolgáltatás",2,1,1,2,2,2,null,null,null,null,null,null,null,null,null,{"$f":"IF(--ISNUMBER(SEARCH(Díjszámítás!$C$12,A256)),MAX($Q$1:Q255)+1,\"\")","v":255},{"$f":"IFERROR(INDEX($A$2:$A$302,MATCH(ROWS($Q$2:Q256),$Q$2:$Q$302,0)),\"\")","v":"8219 Fénymásolás, egyéb irodai szolgáltatás"}]
["8220 Telefoninformáció",2,1,1,2,2,2,null,null,null,null,null,null,null,null,null,{"$f":"IF(--ISNUMBER(SEARCH(Díjszámítás!$C$12,A257)),MAX($Q$1:Q256)+1,\"\")","v":256},{"$f":"IFERROR(INDEX($A$2:$A$302,MATCH(ROWS($Q$2:Q257),$Q$2:$Q$302,0)),\"\")","v":"8220 Telefoninformáció"}]
["8291 Követelésbehajtás",2,1,1,2,2,2,null,null,null,null,null,null,null,null,null,{"$f":"IF(--ISNUMBER(SEARCH(Díjszámítás!$C$12,A258)),MAX($Q$1:Q257)+1,\"\")","v":257},{"$f":"IFERROR(INDEX($A$2:$A$302,MATCH(ROWS($Q$2:Q258),$Q$2:$Q$302,0)),\"\")","v":"8291 Követelésbehajtás"}]
["8411 Általános közigazgatás",2,4,2,2,2,3,null,null,null,null,null,null,null,null,null,{"$f":"IF(--ISNUMBER(SEARCH(Díjszámítás!$C$12,A259)),MAX($Q$1:Q258)+1,\"\")","v":258},{"$f":"IFERROR(INDEX($A$2:$A$302,MATCH(ROWS($Q$2:Q259),$Q$2:$Q$302,0)),\"\")","v":"8411 Általános közigazgatás"}]
["8510 Iskolai előkészítő oktatás",2,4,2,2,1,2,null,null,null,null,null,null,null,null,null,{"$f":"IF(--ISNUMBER(SEARCH(Díjszámítás!$C$12,A260)),MAX($Q$1:Q259)+1,\"\")","v":259},{"$f":"IFERROR(INDEX($A$2:$A$302,MATCH(ROWS($Q$2:Q260),$Q$2:$Q$302,0)),\"\")","v":"8510 Iskolai előkészítő oktatás"}]
["8520 Alapfokú oktatás",1,4,2,1,1,2,null,null,null,null,null,null,null,null,null,{"$f":"IF(--ISNUMBER(SEARCH(Díjszámítás!$C$12,A261)),MAX($Q$1:Q260)+1,\"\")","v":260},{"$f":"IFERROR(INDEX($A$2:$A$302,MATCH(ROWS($Q$2:Q261),$Q$2:$Q$302,0)),\"\")","v":"8520 Alapfokú oktatás"}]
["8531 Általános középfokú oktatás",2,4,2,2,1,2,null,null,null,null,null,null,null,null,null,{"$f":"IF(--ISNUMBER(SEARCH(Díjszámítás!$C$12,A262)),MAX($Q$1:Q261)+1,\"\")","v":261},{"$f":"IFERROR(INDEX($A$2:$A$302,MATCH(ROWS($Q$2:Q262),$Q$2:$Q$302,0)),\"\")","v":"8531 Általános középfokú oktatás"}]
["8532 Szakmai középfokú oktatás",2,4,2,2,1,2,null,null,null,null,null,null,null,null,null,{"$f":"IF(--ISNUMBER(SEARCH(Díjszámítás!$C$12,A263)),MAX($Q$1:Q262)+1,\"\")","v":262},{"$f":"IFERROR(INDEX($A$2:$A$302,MATCH(ROWS($Q$2:Q263),$Q$2:$Q$302,0)),\"\")","v":"8532 Szakmai középfokú oktatás"}]
["8541 Felső szintű, nem felsőfokú oktatás",2,4,2,2,1,1,null,null,null,null,null,null,null,null,null,{"$f":"IF(--ISNUMBER(SEARCH(Díjszámítás!$C$12,A264)),MAX($Q$1:Q263)+1,\"\")","v":263},{"$f":"IFERROR(INDEX($A$2:$A$302,MATCH(ROWS($Q$2:Q264),$Q$2:$Q$302,0)),\"\")","v":"8541 Felső szintű, nem felsőfokú oktatás"}]
["8542 Felsőfokú oktatás",2,4,2,2,1,1,null,null,null,null,null,null,null,null,null,{"$f":"IF(--ISNUMBER(SEARCH(Díjszámítás!$C$12,A265)),MAX($Q$1:Q264)+1,\"\")","v":264},{"$f":"IFERROR(INDEX($A$2:$A$302,MATCH(ROWS($Q$2:Q265),$Q$2:$Q$302,0)),\"\")","v":"8542 Felsőfokú oktatás"}]
["8551 Sport, szabadidős képzés",2,4,2,2,1,1,null,null,null,null,null,null,null,null,null,{"$f":"IF(--ISNUMBER(SEARCH(Díjszámítás!$C$12,A266)),MAX($Q$1:Q265)+1,\"\")","v":265},{"$f":"IFERROR(INDEX($A$2:$A$302,MATCH(ROWS($Q$2:Q266),$Q$2:$Q$302,0)),\"\")","v":"8551 Sport, szabadidős képzés"}]
["8552 Kulturális képzés",2,4,2,2,1,1,null,null,null,null,null,null,null,null,null,{"$f":"IF(--ISNUMBER(SEARCH(Díjszámítás!$C$12,A267)),MAX($Q$1:Q266)+1,\"\")","v":266},{"$f":"IFERROR(INDEX($A$2:$A$302,MATCH(ROWS($Q$2:Q267),$Q$2:$Q$302,0)),\"\")","v":"8552 Kulturális képzés"}]
["8553 Járművezető-oktatás",2,4,2,2,1,1,null,null,null,null,null,null,null,null,null,{"$f":"IF(--ISNUMBER(SEARCH(Díjszámítás!$C$12,A268)),MAX($Q$1:Q267)+1,\"\")","v":267},{"$f":"IFERROR(INDEX($A$2:$A$302,MATCH(ROWS($Q$2:Q268),$Q$2:$Q$302,0)),\"\")","v":"8553 Járművezető-oktatás"}]
["8559 M.n.s. egyéb oktatás ",2,4,2,2,1,1,null,null,null,null,null,null,null,null,null,{"$f":"IF(--ISNUMBER(SEARCH(Díjszámítás!$C$12,A269)),MAX($Q$1:Q268)+1,\"\")","v":268},{"$f":"IFERROR(INDEX($A$2:$A$302,MATCH(ROWS($Q$2:Q269),$Q$2:$Q$302,0)),\"\")","v":"8559 M.n.s. egyéb oktatás "}]
["8560 Oktatást kiegészítő tevékenység",2,4,2,2,1,3,null,null,null,null,null,null,null,null,null,{"$f":"IF(--ISNUMBER(SEARCH(Díjszámítás!$C$12,A270)),MAX($Q$1:Q269)+1,\"\")","v":269},{"$f":"IFERROR(INDEX($A$2:$A$302,MATCH(ROWS($Q$2:Q270),$Q$2:$Q$302,0)),\"\")","v":"8560 Oktatást kiegészítő tevékenység"}]
["8621 Általános járóbeteg-ellátás",3,1,3,3,3,3,null,null,null,null,null,null,null,null,null,{"$f":"IF(--ISNUMBER(SEARCH(Díjszámítás!$C$12,A271)),MAX($Q$1:Q270)+1,\"\")","v":270},{"$f":"IFERROR(INDEX($A$2:$A$302,MATCH(ROWS($Q$2:Q271),$Q$2:$Q$302,0)),\"\")","v":"8621 Általános járóbeteg-ellátás"}]
["8622 Szakorvosi járóbeteg-ellátás",3,1,3,3,3,3,null,null,null,null,null,null,null,null,null,{"$f":"IF(--ISNUMBER(SEARCH(Díjszámítás!$C$12,A272)),MAX($Q$1:Q271)+1,\"\")","v":271},{"$f":"IFERROR(INDEX($A$2:$A$302,MATCH(ROWS($Q$2:Q272),$Q$2:$Q$302,0)),\"\")","v":"8622 Szakorvosi járóbeteg-ellátás"}]
["8623 Fogorvosi járóbeteg-ellátás",2,1,3,2,3,3,null,null,null,null,null,null,null,null,null,{"$f":"IF(--ISNUMBER(SEARCH(Díjszámítás!$C$12,A273)),MAX($Q$1:Q272)+1,\"\")","v":272},{"$f":"IFERROR(INDEX($A$2:$A$302,MATCH(ROWS($Q$2:Q273),$Q$2:$Q$302,0)),\"\")","v":"8623 Fogorvosi járóbeteg-ellátás"}]
["8690 Egyéb humán-egészségügyi ellátás",3,1,3,3,3,3,null,null,null,null,null,null,null,null,null,{"$f":"IF(--ISNUMBER(SEARCH(Díjszámítás!$C$12,A274)),MAX($Q$1:Q273)+1,\"\")","v":273},{"$f":"IFERROR(INDEX($A$2:$A$302,MATCH(ROWS($Q$2:Q274),$Q$2:$Q$302,0)),\"\")","v":"8690 Egyéb humán-egészségügyi ellátás"}]
["8710 Bentlakásos, nem kórházi ápolás",3,1,2,3,2,1,null,null,null,null,null,null,null,null,null,{"$f":"IF(--ISNUMBER(SEARCH(Díjszámítás!$C$12,A275)),MAX($Q$1:Q274)+1,\"\")","v":274},{"$f":"IFERROR(INDEX($A$2:$A$302,MATCH(ROWS($Q$2:Q275),$Q$2:$Q$302,0)),\"\")","v":"8710 Bentlakásos, nem kórházi ápolás"}]
["8790 Egyéb bentlakásos ellátás",3,1,2,3,2,1,null,null,null,null,null,null,null,null,null,{"$f":"IF(--ISNUMBER(SEARCH(Díjszámítás!$C$12,A276)),MAX($Q$1:Q275)+1,\"\")","v":275},{"$f":"IFERROR(INDEX($A$2:$A$302,MATCH(ROWS($Q$2:Q276),$Q$2:$Q$302,0)),\"\")","v":"8790 Egyéb bentlakásos ellátás"}]
["8810 Idősek, fogyatékosok szociális ellátása bentlakás nélkül",3,1,3,3,3,3,null,null,null,null,null,null,null,null,null,{"$f":"IF(--ISNUMBER(SEARCH(Díjszámítás!$C$12,A277)),MAX($Q$1:Q276)+1,\"\")","v":276},{"$f":"IFERROR(INDEX($A$2:$A$302,MATCH(ROWS($Q$2:Q277),$Q$2:$Q$302,0)),\"\")","v":"8810 Idősek, fogyatékosok szociális ellátása bentlakás nélkül"}]
["8891 Gyermekek napközbeni ellátása",2,4,2,2,1,2,null,null,null,null,null,null,null,null,null,{"$f":"IF(--ISNUMBER(SEARCH(Díjszámítás!$C$12,A278)),MAX($Q$1:Q277)+1,\"\")","v":277},{"$f":"IFERROR(INDEX($A$2:$A$302,MATCH(ROWS($Q$2:Q278),$Q$2:$Q$302,0)),\"\")","v":"8891 Gyermekek napközbeni ellátása"}]
["8899 M.n.s. egyéb szociális ellátás bentlakás nélkül",3,1,3,3,3,3,null,null,null,null,null,null,null,null,null,{"$f":"IF(--ISNUMBER(SEARCH(Díjszámítás!$C$12,A279)),MAX($Q$1:Q278)+1,\"\")","v":278},{"$f":"IFERROR(INDEX($A$2:$A$302,MATCH(ROWS($Q$2:Q279),$Q$2:$Q$302,0)),\"\")","v":"8899 M.n.s. egyéb szociális ellátás bentlakás nélkül"}]
["9004 Művészeti létesítmények működtetése",3,1,1,3,4,3,null,null,null,null,null,null,null,null,null,{"$f":"IF(--ISNUMBER(SEARCH(Díjszámítás!$C$12,A280)),MAX($Q$1:Q279)+1,\"\")","v":279},{"$f":"IFERROR(INDEX($A$2:$A$302,MATCH(ROWS($Q$2:Q280),$Q$2:$Q$302,0)),\"\")","v":"9004 Művészeti létesítmények működtetése"}]
["9101 Könyvtári, levéltári tevékenység",4,1,1,4,1,1,null,null,null,null,null,null,null,null,null,{"$f":"IF(--ISNUMBER(SEARCH(Díjszámítás!$C$12,A281)),MAX($Q$1:Q280)+1,\"\")","v":280},{"$f":"IFERROR(INDEX($A$2:$A$302,MATCH(ROWS($Q$2:Q281),$Q$2:$Q$302,0)),\"\")","v":"9101 Könyvtári, levéltári tevékenység"}]
["9200 Szerencsejáték, fogadás",3,4,4,3,2,3,null,null,null,null,null,null,null,null,null,{"$f":"IF(--ISNUMBER(SEARCH(Díjszámítás!$C$12,A282)),MAX($Q$1:Q281)+1,\"\")","v":281},{"$f":"IFERROR(INDEX($A$2:$A$302,MATCH(ROWS($Q$2:Q282),$Q$2:$Q$302,0)),\"\")","v":"9200 Szerencsejáték, fogadás"}]
["9311 Sportlétesítmény működtetése",4,1,3,4,2,2,null,null,null,null,null,null,null,null,null,{"$f":"IF(--ISNUMBER(SEARCH(Díjszámítás!$C$12,A283)),MAX($Q$1:Q282)+1,\"\")","v":282},{"$f":"IFERROR(INDEX($A$2:$A$302,MATCH(ROWS($Q$2:Q283),$Q$2:$Q$302,0)),\"\")","v":"9311 Sportlétesítmény működtetése"}]
["9312 Sportegyesületi tevékenység",4,1,3,4,2,2,null,null,null,null,null,null,null,null,null,{"$f":"IF(--ISNUMBER(SEARCH(Díjszámítás!$C$12,A284)),MAX($Q$1:Q283)+1,\"\")","v":283},{"$f":"IFERROR(INDEX($A$2:$A$302,MATCH(ROWS($Q$2:Q284),$Q$2:$Q$302,0)),\"\")","v":"9312 Sportegyesületi tevékenység"}]
["9313 Testedzési szolgáltatás ",3,1,2,3,2,2,null,null,null,null,null,null,null,null,null,{"$f":"IF(--ISNUMBER(SEARCH(Díjszámítás!$C$12,A285)),MAX($Q$1:Q284)+1,\"\")","v":284},{"$f":"IFERROR(INDEX($A$2:$A$302,MATCH(ROWS($Q$2:Q285),$Q$2:$Q$302,0)),\"\")","v":"9313 Testedzési szolgáltatás "}]
["9319 Egyéb sporttevékenység",4,1,3,4,2,2,null,null,null,null,null,null,null,null,null,{"$f":"IF(--ISNUMBER(SEARCH(Díjszámítás!$C$12,A286)),MAX($Q$1:Q285)+1,\"\")","v":285},{"$f":"IFERROR(INDEX($A$2:$A$302,MATCH(ROWS($Q$2:Q286),$Q$2:$Q$302,0)),\"\")","v":"9319 Egyéb sporttevékenység"}]
["9329 M.n.s. egyéb szórakoztatás, szabadidős tevékenység",4,1,2,4,2,1,null,null,null,null,null,null,null,null,null,{"$f":"IF(--ISNUMBER(SEARCH(Díjszámítás!$C$12,A287)),MAX($Q$1:Q286)+1,\"\")","v":286},{"$f":"IFERROR(INDEX($A$2:$A$302,MATCH(ROWS($Q$2:Q287),$Q$2:$Q$302,0)),\"\")","v":"9329 M.n.s. egyéb szórakoztatás, szabadidős tevékenység"}]
["9411 Vállalkozói, munkaadói érdekképviselet",2,1,1,2,2,2,null,null,null,null,null,null,null,null,null,{"$f":"IF(--ISNUMBER(SEARCH(Díjszámítás!$C$12,A288)),MAX($Q$1:Q287)+1,\"\")","v":287},{"$f":"IFERROR(INDEX($A$2:$A$302,MATCH(ROWS($Q$2:Q288),$Q$2:$Q$302,0)),\"\")","v":"9411 Vállalkozói, munkaadói érdekképviselet"}]
["9412 Szakmai érdekképviselet",2,1,1,2,2,2,null,null,null,null,null,null,null,null,null,{"$f":"IF(--ISNUMBER(SEARCH(Díjszámítás!$C$12,A289)),MAX($Q$1:Q288)+1,\"\")","v":288},{"$f":"IFERROR(INDEX($A$2:$A$302,MATCH(ROWS($Q$2:Q289),$Q$2:$Q$302,0)),\"\")","v":"9412 Szakmai érdekképviselet"}]
["9420 Szakszervezeti tevékenység",2,1,1,2,2,2,null,null,null,null,null,null,null,null,null,{"$f":"IF(--ISNUMBER(SEARCH(Díjszámítás!$C$12,A290)),MAX($Q$1:Q289)+1,\"\")","v":289},{"$f":"IFERROR(INDEX($A$2:$A$302,MATCH(ROWS($Q$2:Q290),$Q$2:$Q$302,0)),\"\")","v":"9420 Szakszervezeti tevékenység"}]
["9492 Politikai tevékenység",2,1,1,2,2,2,null,null,null,null,null,null,null,null,null,{"$f":"IF(--ISNUMBER(SEARCH(Díjszámítás!$C$12,A291)),MAX($Q$1:Q290)+1,\"\")","v":290},{"$f":"IFERROR(INDEX($A$2:$A$302,MATCH(ROWS($Q$2:Q291),$Q$2:$Q$302,0)),\"\")","v":"9492 Politikai tevékenység"}]
["9499 M.n.s. egyéb közösségi, társadalmi tevékenység",4,1,2,4,2,1,null,null,null,null,null,null,null,null,null,{"$f":"IF(--ISNUMBER(SEARCH(Díjszámítás!$C$12,A292)),MAX($Q$1:Q291)+1,\"\")","v":291},{"$f":"IFERROR(INDEX($A$2:$A$302,MATCH(ROWS($Q$2:Q292),$Q$2:$Q$302,0)),\"\")","v":"9499 M.n.s. egyéb közösségi, társadalmi tevékenység"}]
["9511 Számítógép, -periféria javítása",3,5,3,3,1,2,null,null,null,null,null,null,null,null,null,{"$f":"IF(--ISNUMBER(SEARCH(Díjszámítás!$C$12,A293)),MAX($Q$1:Q292)+1,\"\")","v":292},{"$f":"IFERROR(INDEX($A$2:$A$302,MATCH(ROWS($Q$2:Q293),$Q$2:$Q$302,0)),\"\")","v":"9511 Számítógép, -periféria javítása"}]
["9512 Kommunikációs eszköz javítása",3,4,3,3,1,1,null,null,null,null,null,null,null,null,null,{"$f":"IF(--ISNUMBER(SEARCH(Díjszámítás!$C$12,A294)),MAX($Q$1:Q293)+1,\"\")","v":293},{"$f":"IFERROR(INDEX($A$2:$A$302,MATCH(ROWS($Q$2:Q294),$Q$2:$Q$302,0)),\"\")","v":"9512 Kommunikációs eszköz javítása"}]
["9521 Szórakoztatóelektronikai cikk javítása",3,4,3,3,1,1,null,null,null,null,null,null,null,null,null,{"$f":"IF(--ISNUMBER(SEARCH(Díjszámítás!$C$12,A295)),MAX($Q$1:Q294)+1,\"\")","v":294},{"$f":"IFERROR(INDEX($A$2:$A$302,MATCH(ROWS($Q$2:Q295),$Q$2:$Q$302,0)),\"\")","v":"9521 Szórakoztatóelektronikai cikk javítása"}]
["9522 Háztartási gép, háztartási, kerti eszköz javítása",3,4,2,3,1,1,null,null,null,null,null,null,null,null,null,{"$f":"IF(--ISNUMBER(SEARCH(Díjszámítás!$C$12,A296)),MAX($Q$1:Q295)+1,\"\")","v":295},{"$f":"IFERROR(INDEX($A$2:$A$302,MATCH(ROWS($Q$2:Q296),$Q$2:$Q$302,0)),\"\")","v":"9522 Háztartási gép, háztartási, kerti eszköz javítása"}]
["9523 Lábbeli, egyéb bőráru javítása",4,4,3,4,1,1,null,null,null,null,null,null,null,null,null,{"$f":"IF(--ISNUMBER(SEARCH(Díjszámítás!$C$12,A297)),MAX($Q$1:Q296)+1,\"\")","v":296},{"$f":"IFERROR(INDEX($A$2:$A$302,MATCH(ROWS($Q$2:Q297),$Q$2:$Q$302,0)),\"\")","v":"9523 Lábbeli, egyéb bőráru javítása"}]
["9524 Bútor, lakberendezési tárgy javítása",6,4,2,6,1,1,null,null,null,null,null,null,null,null,null,{"$f":"IF(--ISNUMBER(SEARCH(Díjszámítás!$C$12,A298)),MAX($Q$1:Q297)+1,\"\")","v":297},{"$f":"IFERROR(INDEX($A$2:$A$302,MATCH(ROWS($Q$2:Q298),$Q$2:$Q$302,0)),\"\")","v":"9524 Bútor, lakberendezési tárgy javítása"}]
["9529 Egyéb személyi-, háztartási cikk javítása",3,4,3,3,1,1,null,null,null,null,null,null,null,null,null,{"$f":"IF(--ISNUMBER(SEARCH(Díjszámítás!$C$12,A299)),MAX($Q$1:Q298)+1,\"\")","v":298},{"$f":"IFERROR(INDEX($A$2:$A$302,MATCH(ROWS($Q$2:Q299),$Q$2:$Q$302,0)),\"\")","v":"9529 Egyéb személyi-, háztartási cikk javítása"}]
["9601 Textil, szőrme mosása, tisztítása",4,4,2,4,3,1,null,null,null,null,null,null,null,null,null,{"$f":"IF(--ISNUMBER(SEARCH(Díjszámítás!$C$12,A300)),MAX($Q$1:Q299)+1,\"\")","v":299},{"$f":"IFERROR(INDEX($A$2:$A$302,MATCH(ROWS($Q$2:Q300),$Q$2:$Q$302,0)),\"\")","v":"9601 Textil, szőrme mosása, tisztítása"}]
["9602 Fodrászat, szépségápolás",2,4,1,2,1,1,null,null,null,null,null,null,null,null,null,{"$f":"IF(--ISNUMBER(SEARCH(Díjszámítás!$C$12,A301)),MAX($Q$1:Q300)+1,\"\")","v":300},{"$f":"IFERROR(INDEX($A$2:$A$302,MATCH(ROWS($Q$2:Q301),$Q$2:$Q$302,0)),\"\")","v":"9602 Fodrászat, szépségápolás"}]
["9603 Temetkezés, temetkezést kiegészítő szolgáltatás",3,4,1,3,1,1,null,null,null,null,null,null,null,null,null,{"$f":"IF(--ISNUMBER(SEARCH(Díjszámítás!$C$12,A302)),MAX($Q$1:Q301)+1,\"\")","v":301},{"$f":"IFERROR(INDEX($A$2:$A$302,MATCH(ROWS($Q$2:Q302),$Q$2:$Q$302,0)),\"\")","v":"9603 Temetkezés, temetkezést kiegészítő szolgáltatás"}]

{"sheet":"Díjszámítás","index":2,"n_rows":983,"n_cols":22,"rows_kept":983,"cut":false,"hidden":false,"merged":[[88,0,88,3],[89,0,89,3],[90,0,90,3],[91,0,91,3],[92,0,92,3],[93,0,93,3],[9,2,9,10],[78,0,78,3],[79,0,79,3],[80,0,80,3],[81,0,81,3],[82,0,82,3],[83,0,83,3],[84,0,84,3],[85,0,85,3],[86,0,86,3],[61,0,61,1],[61,2,61,3],[56,0,56,10],[60,0,60,1],[60,2,60,3],[60,7,60,10],[58,9,58,10],[61,7,61,10],[45,17,45,20],[2,0,2,10],[104,0,104,8],[79,8,79,10],[80,8,80,10],[27,0,27,10],[42,0,42,10],[51,8,51,10],[58,7,58,8],[44,0,44,6],[53,7,53,10],[54,0,54,1],[54,2,54,3],[55,0,55,10],[54,7,54,10],[53,2,53,3],[66,1,66,3],[49,1,49,3],[49,7,49,9],[50,0,50,10],[51,2,51,3],[53,0,53,1],[78,8,78,10],[58,1,58,3],[118,0,118,1],[118,7,118,10],[98,7,98,10],[109,9,109,10],[114,2,114,3],[114,4,114,5],[108,7,108,8],[98,0,98,6],[116,4,116,5],[64,0,64,10],[68,0,68,1],[107,5,107,6],[107,9,107,10],[108,9,108,10],[82,8,82,10],[85,8,85,10],[86,8,86,10],[107,2,107,3],[106,2,106,3],[84,8,84,10],[91,8,91,10],[92,8,92,10],[93,8,93,10],[105,0,105,3],[105,7,105,8],[101,7,101,10],[102,0,102,6],[102,7,102,10],[68,2,68,3],[68,7,68,10],[89,8,89,10],[87,0,87,3],[75,8,75,10],[40,7,40,10],[41,7,41,10],[69,7,69,10],[66,9,66,10],[44,7,44,10],[15,0,15,10],[28,0,28,10],[26,0,26,1],[26,2,26,3],[21,0,21,2],[23,2,23,3],[19,6,19,8],[30,9,31,10],[25,2,25,3],[35,6,35,8],[35,9,35,10],[38,2,38,3],[41,0,41,1],[41,2,41,3],[40,0,40,1],[35,3,35,5],[34,3,34,5],[36,0,36,2],[62,0,62,10],[33,9,33,10],[32,0,32,2],[36,3,36,5],[32,6,32,8],[34,0,34,2],[32,3,32,5],[12,0,12,10],[17,3,17,8],[17,0,18,2],[18,3,18,5],[18,6,18,8],[16,0,16,10],[19,0,19,2],[20,0,20,2],[29,0,29,10],[25,0,25,1],[25,7,25,10],[26,7,26,10],[19,3,19,5],[20,3,20,5],[20,6,20,8],[19,9,19,10],[20,9,20,10],[76,0,76,1],[76,2,76,3],[77,0,77,10],[76,8,76,10],[81,8,81,10],[83,8,83,10],[45,0,45,10],[21,9,21,10],[21,3,21,5],[21,6,21,8],[30,0,31,2],[30,3,30,8],[31,3,31,5],[31,6,31,8],[34,6,34,8],[43,0,43,10],[36,6,36,8],[36,9,36,10],[33,3,33,5],[40,2,40,3],[35,0,35,2],[32,9,32,10],[34,9,34,10],[33,6,33,8],[127,0,127,10],[95,0,95,10],[108,2,108,3],[100,0,100,6],[100,7,100,10],[101,0,101,6],[104,9,104,10],[105,9,105,10],[99,0,99,6],[115,9,115,10],[97,0,97,6],[97,7,97,10],[114,9,114,10],[113,9,113,10],[112,7,112,8],[112,9,112,10],[113,2,113,8],[106,9,106,10],[111,7,111,8],[111,9,111,10],[110,0,110,8],[110,9,110,10],[109,2,109,3],[107,0,107,1],[1,7,1,10],[99,7,99,10],[94,0,94,7],[94,8,94,10],[96,0,96,6],[48,0,48,1],[96,7,96,10],[48,2,48,3],[48,7,48,10],[46,0,46,10],[47,0,47,1],[47,2,47,4],[47,7,47,10],[87,8,87,10],[88,8,88,10],[90,8,90,10],[17,9,18,10],[69,0,69,1],[69,2,69,3],[70,0,70,10],[73,1,73,3],[71,0,71,10],[75,0,75,1],[75,2,75,3]]}
[]
[null,null,null,null,null,null,null,"UNION-Business Class"]
["DÍJKALKULÁCIÓS PROGRAM! NEM MINŐSÜL BIZTOSÍTÁSI AJÁNLATNAK!!!"]
[]
[]
[]
[]
[]
[]
["Szerződő / Biztosított:"]
[]
["Jellemző tevékenység:",null,"","s",null,null,null,null,null,null,null,null,null,null,{"$f":"IF(C12=\"Önkormányzat\",1,0)","v":0}]
[]
["Kockázati osztály tűz",null,null,{"$f":"IF(C12=\"\",\"\",VLOOKUP($C12,Munka3!$A$2:$G$302,2,FALSE))","v":""},null,"Kockázati osztály betörés",null,null,{"$f":"IF(C12=\"\",\"\",VLOOKUP($C12,Munka3!$A$2:$G$302,4,FALSE))","v":""}]
[]
["Épületbiztosítás"]
[{"$f":"IF(AND(C24>0,A27>0,ÉpületIngóság!P26=0),\"Kérjük töltse ki az Épület munkalapot!\",0)","v":0}]
["Biztosított vagyontárgyak",null,null,"Biztosítási összeg eFt",null,null,null,null,null,"Összesen"]
[null,null,null,"Saját tulajdon",null,null,"Idegen tulajdon"]
["Épület",null,null,{"$f":"ÉpületIngóság!E26","v":5000},null,null,{"$f":"ÉpületIngóság!G26","v":0},null,null,{"$f":"SUM(D20:I20)","v":5000}]
["Építmény",null,null,{"$f":"ÉpületIngóság!I26","v":2000},null,null,{"$f":"ÉpületIngóság!K26","v":0},null,null,{"$f":"SUM(D21:I21)","v":2000}]
["Összesen",null,null,{"$f":"SUM(D20:F21)","v":7000},null,null,{"$f":"SUM(G20:I21)","v":0},null,null,{"$f":"C27","v":10000}]
[null,null,null,null,null,null,null,null,null,null,null,null,"Önr"]
["Választott önrész",null,25000,null,"Ft",null,null,"Ft",null,null,null,null,{"$f":"IF(C24=\"0\",1,IF(C24=5000,2,IF(C24=10000,3,IF(C24=25000,4,IF(C24=50000,5,IF(C24=100000,6,IF(C24=200000,7)))))))","v":4}]
[]
["Választott módozat",null,"Biztosítási összeg eFt",null,"Kockázati osztály","Díjtétel","Módozati szorzó","Éves díj Ft",null,null,null,null,"Mód","Vol","Volumen osztály",null,null,"Kockázati osztály","Díjtétel","Módozati szorzó","Volumen-szorzó","Önrész szorzó"]
["Extra",null,10000,null,null,null,null,{"$f":"SUM(C27*S27*T27*U27*V27)","v":{"$error":"#VALUE!"}},null,null,null,null,{"$f":"IF(A27=\"Alap\",1,IF(A27=\"Teljes\",2,IF(A27=\"Extra\",3,IF(A27=\"All Risks\",4))))","v":3},{"$f":"SUM(C27,C42)","v":20000},{"$f":"IF(N27<=10000,1,IF(AND(N27<=25000,N27>10),2,IF(AND(N27<=50000,N27>25),3,IF(AND(N27<=100000,N27>50),4,IF(AND(N27<=200000,N27>100),5,IF(AND(N27<=500000,N27>200),6))))))","v":2},null,null,{"$f":"IF(OR(A27=0,C27=0,C24=0),0,D14)","v":""},{"$f":"IF(OR(A27=0,C27=0,C24=0),0,INDEX(Tűz,R27))","v":{"$error":"#VALUE!"}},{"$f":"IF(OR(A27=0,C27=0,C24=0),0,INDEX(Tmód,M27))","v":1},{"$f":"IF(OR(A27=0,C27=0,C24=0),0,4.1646*(N27/1000)^-0.348)","v":1.4683001944145508},{"$f":"IF(OR(A27=0,C27=0,C24=0),0,INDEX(Tönr,M24))","v":1}]
[{"$f":"IF(AND(C24>0,A27>0,ÉpületIngóság!T26=0),\"Kérjük, töltse ki az Épület munkalapot!\",IF(AND(C27>0,A27=0),\"Kitöltötte az épület biztosítási összeget és nem választotta ki a módozatot\",0))","v":0},null,null,null,null,null,null,null,null,null,null,null,null,null,{"$f":"IF(O27=4,1,IF(O27=5,2,IF(O27=6,3)))","v":false},{"$f":"IF(O28=0,1,INDEX(bvol,O28))","v":{"$error":"#VALUE!"}}]
["Ingóság (Gép, berendezés, készlet biztosítás)",null,null,null,null,null,null,null,null,null,null,null,null,{"$f":"C42-50000","v":-40000}]
[{"$f":"IF(AND(C39>0,A42>0,'Gép,berendezés'!L33=0),\"Kérjük töltse ki a Gép, berendezés munkalapot!\",0)","v":"Kérjük töltse ki a Gép, berendezés munkalapot!"}]
["Biztosított vagyontárgyak",null,null,"Biztosítási összeg",null,null,null,null,null,"Összesen"]
[null,null,null,"Saját tulajdon",null,null,"Idegen tulajdon"]
["Gép, berendezés",null,null,{"$f":"'Gép,berendezés'!E33","v":0},null,null,{"$f":"'Gép,berendezés'!F33","v":0},null,null,{"$f":"SUM(D33:I33)","v":0}]
["Egyéb nevesített vagyontárgy",null,null,{"$f":"'Gép,berendezés'!G33","v":0},null,null,{"$f":"'Gép,berendezés'!H33","v":0},null,null,{"$f":"SUM(D34:I34)","v":0}]
["Készlet",null,null,{"$f":"'Gép,berendezés'!I33","v":0},null,null,{"$f":"'Gép,berendezés'!J33","v":0},null,null,{"$f":"SUM(D35:I35)","v":0}]
["Készpénz",null,null,{"$f":"'Gép,berendezés'!K33","v":0},null,null,null,null,null,{"$f":"SUM(D36:I36)","v":0}]
["Összesen",null,null,{"$f":"SUM(D33:F36)","v":0},null,null,{"$f":"SUM(G33:I36)","v":0},null,null,{"$f":"C42","v":10000}]
[]
["Választott önrész",null,10000,null,null,null,null,"Ft",null,null,null,null,{"$f":"IF(C39=\"0\",1,IF(C39=5000,2,IF(C39=10000,3,IF(C39=25000,4,IF(C39=50000,5,IF(C39=100000,6,IF(C39=200000,7)))))))","v":3}]
[]
["Választott módozat",null,"Biztosítási összeg eFt",null,"Kockázati osztály","Díjtétel","Módozati szorzó","Éves díj Ft",null,null,null,null,null,null,null,null,null,"Kockázati osztály","Díjtétel","Módozati szorzó","Volumen-szorzó","Önrész szorzó"]
["Extra csomag betöréses lopással",null,10000,null,null,null,null,{"$f":"IF(A42=0,0,IF(AND(N29>0,N42<>7),T42*V42*(C42*S44*U42+50000*S45*U42+N29*S45*U44),C42*S42*T42*U42*V42))","v":{"$error":"#VALUE!"}},null,null,null,null,{"$f":"IF(A42=\"Alap csomag betöréses lopással\",1,IF(A42=\"Teljes csomag betöréses lopással\",2,IF(A42=\"Extra csomag betöréses lopással\",3,IF(A42=\"All Risks csomag betöréses lopással\",4,IF(A42=\"Alap csomag betöréses lopás nélkül\",5,IF(A42=\"Teljes csomag betöréses lopás nélkül\",6,IF(A42=\"Extra csomag betöréses lopás nélkül\",7,IF(A42=\"All Risks csomag betöréses lopás nélkül\",8))))))))","v":3},{"$f":"IF(M42=1,1,IF(M42=2,2,IF(M42=3,3,IF(M42=4,4,7))))","v":3},null,null,null,{"$f":"IF(OR(A42=0,C42=0,C39=0),0,D14)","v":""},{"$f":"IF(OR(A42=0,C42=0,C39=0),0,IF(N42=7,INDEX(Itűz,D14),IF(N42<7,SUM(INDEX(Itűz,D14),INDEX(Bet,I14)))))","v":{"$error":"#VALUE!"}},{"$f":"IF(OR(A42=0,C42=0,C39=0),0,IF(M42=0,0,IF(M42<=4,INDEX(Bmód,M42),IF(M42>4,INDEX(Tmód,(M42-4)),))))","v":1},{"$f":"IF(A42=0,0,4.1646*(N27/1000)^-0.348)","v":1.4683001944145508},{"$f":"IF(OR(A42=0,C42=0,C39=0),0,INDEX(Tönr,M39))","v":1.1200000000000001}]
[{"$f":"IF(AND(C39>0,A42>0,ÉpületIngóság!U26=0),\"Kérjük, töltse ki az Épület munkalapot!\",IF(AND(C42>0,A42=0),\"Kitöltötte az ingóság biztosítási összeget és nem választotta ki a módozatot\",0))","v":0},null,null,null,null,null,null,null,null,null,null,null,null,{"$f":"IF(M42=4,4,IF(M42=5,5,IF(M42=6,6,7)))","v":7},{"$f":"IF(OR(N43=0,N43=7),0,IF(N43=4,1,IF(N43=5,2,IF(N43=6,3))))","v":0}]
["Vagyonbiztosítás összesen",null,null,null,null,null,null,null,null,null,null,null,null,null,null,null,null,null,{"$f":"INDEX(Itűz,D14)","v":{"$error":"#VALUE!"}},null,{"$f":"IF(C42<=50000,\"50MFt feletti bet. Lop. volumen szorzó kerül ide, ha van!\",VLOOKUP(C42*1000,Munka4!E25:H27,4,TRUE))","v":"50MFt feletti bet. Lop. volumen szorzó kerül ide, ha van!"}]
["Épület és Ingóság biztosítás éves díja összesen",null,null,null,null,null,null,{"$f":"IF(M45<0,0,IF(AND(M45>0,M45<15000),15000,M45))","v":{"$error":"#VALUE!"}},null,null,null,null,{"$f":"SUM(H27+H42)","v":{"$error":"#VALUE!"}},null,"Alap csomag: 3 hó, max. 25 M Ft",null,null,null,{"$f":"INDEX(Bet,I14)","v":{"$error":"#VALUE!"}}]
[{"$f":"IF(N27<1000000,0,IF(N27>1000000,\"500.000 eFt vagyonérték felett nem köthető Business Class biztosítás\"))","v":0},null,null,null,null,null,null,null,null,null,null,null,null,null,"Bővített csomag: 6 hó, max. 50 M Ft"]
["Kiegészítő üvegbiztosítás",null,null,null,null,null,null,null,null,null,null,null,null,null,"Bővített csomag: 12 hó, max. 100 M Ft"]
["Választott módozat",null,"Limit eFt",null,null,null,null,"Éves díj Ft",null,null,null,null,null,null,"Bővített csomag: 12 hó, max. 150 M Ft"]
["Normál és speciális üveg",null,100,null,null,null,null,{"$f":"IF(OR(H45=0,A49=0,C49=0),0,IF(A49=\"Normál üveg\",VLOOKUP(C49,Munka4!AD5:AF19,2,FALSE),IF(A49=\"Normál és speciális üveg\",VLOOKUP(C49,Munka4!AD5:AF19,3,FALSE))))","v":{"$error":"#VALUE!"}}]
[]
["Üzemszünetbiztosítás"]
["Választott önrész",null,"7 nap",null,null,null,null,"Limit",{"$f":"IF(A55=0,0,IF(A55=\"Alap csomag: 3 hó, max. 25 M Ft\",A157,IF(A55=\"Bővített csomag: 6 hó, max. 50 M Ft\",A158,IF(A55=\"Bővített csomag: 12 hó, max. 100 M Ft\",A159,IF(A55=\"Bővített csomag: 12 hó, max. 150 M Ft\",A160,0)))))","v":"6 hónap, max. 50 MFt"},null,null,null,{"$f":"IF(C52=\"3 nap\",1,IF(C52=\"5 nap\",2,IF(C52=\"7 nap\",3)))","v":3},null,{"$f":"IF(Díjszámítás!M27=1,1,IF(Díjszámítás!M27=2,2,IF(Díjszámítás!M27=3,3,IF(M27=4,4,0))))","v":3},{"$f":"IF(OR(M42=5,M42=1),1,IF(OR(M42=6,M42=2),2,IF(OR(M42=7,M42=3),3,IF(OR(M42=8,M42=4),4,0))))","v":3}]
[]
["Választott módozat",null,"Díjszámítás alapja eFt",null,"Kockázati osztály","Díjtétel","Módozati szorzó","Éves díj Ft",null,null,null,null,"Mód","Vol",null,{"$f":"IF(AND(O52>0,P52>O52),O52,P52)","v":3},null,"Kockázati osztály","Díjtétel","Módozati szorzó","Volumen-szorzó","Önrész szorzó"]
["Bővített csomag: 6 hó, max. 50 M Ft",null,{"$f":"IF(OR(A42=0,A55=0),0,IF(AND(M42=1,M55>1),0,IF(AND(M27=1,M55>1),0,Díjszámítás!N27)))","v":20000},null,null,null,null,{"$f":"IF(H42=0,0,IF(AND(C52=0,A55=0),0,(C55*S55*T55*U55*V55)))","v":{"$error":"#VALUE!"}},null,null,null,null,{"$f":"IF(A55=\"Alap csomag: 3 hó, max. 25 M Ft\",1,IF(A55=\"Bővített csomag: 6 hó, max. 50 M Ft\",2,IF(A55=\"Bővített csomag: 12 hó, max. 100 M Ft\",3,IF(A55=\"Bővített csomag: 12 hó, max. 150 M Ft\",4))))","v":2},{"$f":"Díjszámítás!N27","v":20000},{"$f":"IF(N55<=10000,1,IF(AND(N55<=25000,N55>10),2,IF(AND(N55<=50000,N55>25),3,IF(AND(N55<=100000,N55>50),4,IF(AND(N55<=200000,N55>100),5,IF(AND(N55<=500000,N55>200),6))))))","v":2},null,null,{"$f":"IF(OR(A55=0,C55=0,C52=0),0,IF(Díjszámítás!C12=\"\",\"\",VLOOKUP(Díjszámítás!C12,Munka3!$A$2:$G$302,5,FALSE)))","v":""},{"$f":"IF(OR(A55=0,C55=0,C52=0),0,IF(R55=\"vig\",0,INDEX(Üzem,R55)))","v":{"$error":"#VALUE!"}},{"$f":"IF(OR(A55=0,C55=0,C52=0),0,INDEX(Ümód,M55))","v":1},{"$f":"IF(OR(A55=0,C55=0,C52=0),0,4.1646*(N55/1000)^-0.348)","v":1.4683001944145508},{"$f":"IF(OR(A55=0,C55=0,C52=0),0,INDEX(Üönr,M52,))","v":0.8}]
[{"$f":"IF(AND(H45>0,H42>0,R55=\"vig\"),\"Üzemszünet biztosítás csak a vagyonigazgatóság engedélyével köthető\",IF(AND(H45=0,C52>0,A55>0),\"Az üzemszünetbiztosítás csak a vagyonbiztosítás kiegészítőjeként köthető\",IF(AND(A55>0,H42=0),\"Üzemszünet biztosítás csak az Ingóságbiztosítás kiegészítőjeként köthető\",0)))","v":{"$error":"#VALUE!"}}]
["Géptörés biztosítás"]
[]
["Önrész",null,null,null,null,null,null,"Gépek átlagéletkora",null,null,null,null,{"$f":"IF(B59=\"\",\"\",VLOOKUP($B59,Összesítő!$E$63:$H$70,4,FALSE))","v":""},{"$f":"IF(J59<=2,1,IF(AND(J59<=5,J59>2),2,IF(AND(J59<=10,J59>5),3,IF(AND(J59<=15,J59>10),4,IF(OR(J59>15,J59=\"15 felett\"),5)))))","v":1},{"$f":"IF(J59=0,0,IF(J59=\"0-2\",1,IF(J59=\"2,01-5\",2,IF(J59=\"5,01-10\",3,IF(J59=\"10,01-15\",4,IF(J59=\"15 felett\",5))))))","v":0}]
[]
["Választott módozat",null,"Biztosítási összeg eFt",null,"Kockázati osztály","Díjtétel","Átlagélet-kor eng.","Éves díj Ft",null,null,null,null,{"$f":"INDEX(Gkor,O59)","v":{"$error":"#VALUE!"}},null,{"$f":"IF(C62<=10000,1,IF(AND(C62<=25000,C62>10),2,IF(AND(C62<=50000,C62>25),3,IF(AND(C62<=100000,C62>50),4,IF(AND(C62<=200000,C62>100),5,IF(AND(C62<=500000,C62>200),6))))))","v":1},null,null,"Kockázati osztály","Díjtétel","Átlagélet-kor eng.","Volumen-szorzó","Önrész szorzó"]
["Géptörés",null,null,null,null,null,null,{"$f":"IF(OR(H42=0,H45=0),0,IF(C42<C62,0,IF(B59=0,0,(C62*S62*T62*U62*V62))))","v":{"$error":"#VALUE!"}},null,null,null,null,{"$f":"IF(A62=\"Alap\",1,IF(A62=\"Teljes\",2,IF(A62=\"Extra\",3)))","v":false},null,null,null,null,{"$f":"IF(OR(C62=0,B59=0),0,IF(Díjszámítás!C12=\"\",\"\",VLOOKUP(Díjszámítás!$C12,Munka3!$A$2:$G$302,6,FALSE)))","v":0},{"$f":"IF(OR(C62=0,B59=0,R62=0),0,IF(R62=\"vig\",0,INDEX(Gép,R62)))","v":0},{"$f":"IF(OR(C62=0,B59=0,J59=0),0,M61)","v":0},{"$f":"IF(OR(C62=0,B59=0),0,INDEX(Gvol,O61))","v":0},{"$f":"IF(OR(B59=0,C62=0),0,INDEX(Gönr,M59))","v":0}]
[{"$f":"IF(AND(H42=0,C62>0),\"A géptörésbiztosítás csak az ingóságbiztosítás kiegészítőjeként köthető\",IF(C62>C42,\"A géptörésbiztosítási összeg nem lehet magasabb, mint a gépek berendezések biztosítási összege\",0))","v":{"$error":"#VALUE!"}}]
[]
["Elektromos berendezések biztosítása"]
[]
["Önrész",null,null,null,null,null,null,"Gépek átlagéletkora",null,null,null,null,{"$f":"IF(B67=\"\",\"\",VLOOKUP($B67,Összesítő!$E$63:$H$70,4,FALSE))","v":""},{"$f":"IF(J67<=2,1,IF(AND(J67<=3,J67>2),2,IF(AND(J67<=5,J67>3),3,IF(OR(J67>5,J67=\"5 felett\"),4))))","v":1},{"$f":"IF(J67=\"0-2\",1,IF(J67=\"2,01-3\",2,IF(J67=\"3,01-5\",3,IF(J67=\"5,01-\",4))))","v":false}]
[]
["Választott módozat",null,"Biztosítási összeg eFt",null,"Kockázati osztály","Díjtétel","Átlagélet-kor eng.","Éves díj Ft",null,null,null,null,{"$f":"INDEX(Ekor,O67)","v":{"$error":"#VALUE!"}},null,{"$f":"IF(C70<=10000,1,IF(AND(C70<=25000,C70>10),2,IF(AND(C70<=50000,C70>25),3,IF(AND(C70<=100000,C70>50),4,IF(AND(C70<=200000,C70>100),5,IF(AND(C70<=500000,C70>200),6))))))","v":1},null,null,"Kockázati osztály","Díjtétel","Átlagélet-kor eng.","Volumen-szorzó","Önrész szorzó"]
["ELBER",null,null,null,null,null,null,{"$f":"IF(OR(H42=0,H45=0),0,IF(C42<C70,0,IF(AND(B67=0,C70=0),0,(C70*S70*T70*U70*V70))))","v":{"$error":"#VALUE!"}},null,null,null,null,null,null,null,null,null,{"$f":"IF(OR(C70=0,B67=0),0,IF(Díjszámítás!C12=\"\",\"\",VLOOKUP(Díjszámítás!$C12,Munka3!$A$2:$G$302,7,FALSE)))","v":0},{"$f":"IF(OR(C70=0,B67=0),0,IF(R70=\"vig\",0,INDEX(ELBER,R70)))","v":0},{"$f":"IF(OR(C70=0,B67=0,J67=0),0,M69)","v":0},{"$f":"IF(OR(C70=0,B67=0),0,INDEX(Evol,O69))","v":0},{"$f":"IF(OR(B67=0,A70=0),0,INDEX(Eönr,M67))","v":0}]
[{"$f":"IF(AND(H42=0,C70>0),\"Elektromos berendezések biztosítása csak az ingóság kiegészítőjeként köthető\",IF(C70>C42,\"Az elektromos berendezések biztosítási összege nem lehet magasabb, mint a gép, berendezés biztosítási összege\",0))","v":{"$error":"#VALUE!"}}]
["Felelősségbiztosítás"]
[]
["Önrész",null,null,null,null,null,null,"Forgalom:",null,"M Ft",null,null,{"$f":"IF(B74=\"\",\"\",VLOOKUP($B74,Összesítő!$E$63:$H$70,4,FALSE))","v":""}]
[]
["Felelősségbiztosítás",null,"Kártérítési limit MFt/kár/év",null,"Kockázati osztály","Díjtétel","Módozati szorzó",null,"Éves díj Ft",null,null,null,null,null,"Ha kockázati osztály 5. minimál díj nagyobb",null,null,"Kockázati osztály","Díjtétel","Módozati szorzó",null,"Önrész szorzó"]
["Általános felelősségbiztosítás",null,null,null,null,null,null,null,{"$f":"IF(OR(I74=0,B74=0,C77=0),0,IF(U80*S77*T77*V77<O77,O77,U80*S77*T77*V77))","v":0},null,null,null,{"$f":"IF(C77=\"5 MFt/kár; 15 MFt/év\",1,IF(C77=\"15 MFt/kár; 45 MFt/év\",2,IF(C77=\"50 MFt/kár; 100 MFt/év\",3)))","v":false},null,{"$f":"IF(R77=5,67500,15000)","v":15000},null,null,{"$f":"IF(OR(A77=0,C77=0,B74=0),0,IF(Díjszámítás!C12=\"\",\"\",VLOOKUP(Díjszámítás!$C12,Munka3!$A$2:$G$302,3,FALSE)))","v":0},{"$f":"IF(OR(A77=0,C77=0,B74=0),0,IF(R77=\"vig\",0,INDEX(Fel,R77)))","v":0},{"$f":"IF(OR(A77=0,C77=0,B74=0),0,INDEX(Felmód,M77))","v":0},null,{"$f":"IF(OR(A77=0,C77=0,B74=0),0,INDEX(Felönr,M74))","v":0}]
["Kiegészítő felelősségbiztosítások"]
["Munkáltatói felelősségbiztosítás",null,null,null,null,null,null,null,{"$f":"IF(H79=0,0,IF(I77=0,0,IF(AND(I77>0,H79=\"kérem\"),(I77*0.6),IF(AND(I77>0,H79=\"nem kérem\"),0))))","v":0},null,null,null,null,null,"Csak akkor törölje épszer kötelezőt, ha előzőleg 5 volt",null,null,"Forgkorr. Szorzó","Vagyon alapú engedmény","Forgalom eFt"]
["Termékfelelősség-biztosítás",null,null,null,null,null,null,null,{"$f":"IF(H80=0,0,IF(I77=0,0,IF(AND(I77>0,H80=\"kérem\"),(I77*0.8),IF(AND(I77>0,H80=\"nem kérem\"),0))))","v":0},null,null,null,{"$f":"IF(I80=0,1,IF(I80>0,2))","v":1},null,0,null,null,{"$f":"-0.262*(LN(I74))+2.2125","v":{"$error":"#NUM!"}},{"$f":"IF((C27+C42)<S83,1,(1.0022*EXP(-0.002*(C27+C42)/10000)-0.3))","v":0.69819920692054827},{"$f":"+I74*1000","v":0},{"$f":"T80*R80*S80","v":{"$error":"#NUM!"}}]
["Szolgáltatói felelősségbiztosítás",null,null,null,null,null,null,null,{"$f":"IF(H81=0,0,IF(I77=0,0,IF(AND(I77>0,H81=\"kérem\"),(I77*0.8),IF(AND(I77>0,H81=\"nem kérem\"),0))))","v":0},null,null,null,{"$f":"IF(I81=0,1,IF(I81>0,2))","v":1}]
["Ingatlan-bérlői felelősségbiztosítás",null,null,null,null,null,null,null,{"$f":"IF(H82=0,0,IF(I77=0,0,IF(AND(I77>0,H82=\"kérem\"),(I77*0.3),IF(AND(I77>0,H82=\"nem kérem\"),0))))","v":0},null,null,null,null,null,null,null,null,null,"Ha 5 kockázati besorolás, akkor min 100 az engedmény határa"]
["Ingatlan-bérbeadói felelősségbiztosítás",null,null,null,null,null,null,null,{"$f":"IF(H83=0,0,IF(I77=0,0,IF(AND(I77>0,H83=\"kérem\"),(I77*0.3),IF(AND(I77>0,H83=\"nem kérem\"),0))))","v":0},null,null,null,null,null,null,"sd",null,null,{"$f":"IF(R77=5,100000,11000)","v":11000}]
["Kiterjesztett termékfelelősség-biztosítás",null,null,null,null,null,null,null,{"$f":"IF(H84=0,0,IF(OR(I77=0,I80=0,H84=\"Nem köthető\"),0,IF(AND(I77>0,H84=\"kérem\"),(I77*1),IF(AND(I77>0,H84=\"nem kérem\"),0))))","v":0}]
["Szállodai szolgáltatók felelősségbiztosítása",null,null,null,null,null,null,null,{"$f":"IF(H85=0,0,IF(I77=0,0,IF(AND(I77>0,H85=\"kérem\"),(I77*0.3),IF(AND(I77>0,H85=\"nem kérem\"),0))))","v":0},null,null,null,{"$f":"IF(I85=0,1,IF(I85>0,2))","v":1},null,null,null,null,{"$f":"-0.218*(LN(I74))+1.895","v":{"$error":"#NUM!"}}]
["Szállodai szolg. fel.bizt. kiterjesztése gépjárművek őrzésére",null,null,null,null,null,null,null,{"$f":"IF(H86=0,0,IF(OR(I77=0,I85=0,H86=\"Nem köthető\"),0,IF(AND(I77>0,H86=\"kérem\"),(I77*0.8),IF(AND(I77>0,H86=\"nem kérem\"),0))))","v":0}]
["Környezetszennyezési felelősségbiztosítás",null,null,null,null,null,null,null,{"$f":"IF(H87=0,0,IF(I77=0,0,IF(AND(I77>0,H87=\"kérem\"),(I77*0.5),IF(AND(I77>0,H87=\"nem kérem\"),0))))","v":0}]
["Fel.biztosítások területi hatályának kiterjesztése az EU-ra",null,null,null,null,null,null,null,{"$f":"IF(H88=0,0,IF(I77=0,0,IF(AND(I77>0,H88=\"kérem\"),(I77*0.5),IF(AND(I77>0,H88=\"nem kérem\"),0))))","v":0}]
["Szolgáltatói fel.bizt. kiterjesztése idegen jármű rakodására",null,null,null,null,null,null,null,{"$f":"IF(H89=0,0,IF(OR($I$77=0,$I$81=0,H89=\"Nem köthető\"),0,IF(AND($I$77>0,H89=\"kérem\"),($I$77*0.4),IF(AND($I$77>0,H89=\"nem kérem\"),0))))","v":0},null,null,null,null,"1.sz.Záradék /Hűtőtt árúk/"]
["Oktatói, gyakorlati képzést szervezők felelősségbiztosítása",null,null,null,null,null,null,null,{"$f":"IF(H90=0,0,IF(I77=0,0,IF(AND(I77>0,H90=\"kérem\"),(I77*0.2),IF(AND(I77>0,H90=\"nem kérem\"),0))))","v":0},null,null,null,null,"2.sz.Záradék /Vandalizmus/"]
["Gépjárműszerviz üzemeltetői felelősségbiztosítás",null,null,null,null,null,null,null,{"$f":"IF(H91=0,0,IF(I77=0,0,IF(AND(I77>0,H91=\"kérem\"),(I77*0.6),IF(AND(I77>0,H91=\"nem kérem\"),0))))","v":0},null,null,null,null,"3.sz.Záradék /Alvállalkozói/",null,"sd"]
["Szolgáltatói fel.bizt. kiterjesztése alvállalkozókra",null,null,null,null,null,null,null,{"$f":"IF(H92=0,0,IF(OR($I$77=0,$I$81=0,H92=\"Nem köthető\"),0,IF(AND($I$77>0,H92=\"kérem\"),($I$77*0.2),IF(AND($I$77>0,H92=\"nem kérem\"),0))))","v":0}]
["Szolgáltatói fel.bizt. kiterj. a szolg. tárgyában okozott károkra",null,null,null,null,null,null,null,{"$f":"IF(H93=0,0,IF(OR($I$77=0,$I$81=0,H93=\"Nem köthető\"),0,IF(AND($I$77>0,H93=\"kérem\"),($I$77*0.4),IF(AND($I$77>0,H93=\"nem kérem\"),0))))","v":0}]
["Szolgáltatói fel.bizt. kiterjesztése építés-szerelési tevékenységre",null,null,null,null,null,null,null,{"$f":"IF(H94=0,0,IF(OR($I$77=0,$I$81=0,H94=\"Nem köthető\"),0,IF(AND($I$77>0,H94=\"kérem\"),($I$77*0.1),IF(AND($I$77>0,H94=\"nem kérem\"),0))))","v":0}]
["Felelősségbiztosítás  összesen",null,null,null,null,null,null,null,{"$f":"IF(H45=0,0,IF(AND(C74=0,A77=0),0,SUM(I79:K94,I77)))","v":{"$error":"#VALUE!"}},null,null,null,null,"4.sz.Záradék /Szolgált. tárgya/"]
[null,null,null,null,null,null,null,null,null,null,null,null,null,"5.sz.Záradék /Építőipari tev./"]
["Vagyonbiztosítás összesen",null,null,null,null,null,null,{"$f":"H45","v":{"$error":"#VALUE!"}},null,null,null,null,null,{"$f":"H27","v":{"$error":"#VALUE!"}}]
["Épületbiztosítás",null,null,null,null,null,null,{"$f":"H27","v":{"$error":"#VALUE!"}},null,null,null,null,null,{"$f":"H42","v":{"$error":"#VALUE!"}}]
["Gép, berendezés biztosítás",null,null,null,null,null,null,{"$f":"H42","v":{"$error":"#VALUE!"}},null,null,null,null,{"$f":"COUNTIF(N97:N102,\">0\")","v":0},{"$f":"H55","v":{"$error":"#VALUE!"}}]
["Üzemszünetbiztosítás",null,null,null,null,null,null,{"$f":"H55","v":{"$error":"#VALUE!"}},null,null,null,null,null,{"$f":"H62","v":{"$error":"#VALUE!"}}]
["Géptörés biztosítás",null,null,null,null,null,null,{"$f":"H62","v":{"$error":"#VALUE!"}},null,null,null,null,null,{"$f":"H70","v":{"$error":"#VALUE!"}}]
["Elektromos gépek, berendezések biztosítása",null,null,null,null,null,null,{"$f":"H70","v":{"$error":"#VALUE!"}},null,null,null,null,null,{"$f":"I95","v":{"$error":"#VALUE!"}}]
["Felelősségbiztosítás",null,null,null,null,null,null,{"$f":"I95","v":{"$error":"#VALUE!"}}]
[]
["Éves díj ",null,null,null,null,null,null,null,null,{"$f":"IF(B105>0,0,IF(B105=0,SUM(I95,H70,H62,H55,H49,H45)))","v":{"$error":"#VALUE!"}},null,null,null,"5.sz.Záradék /Építőipari tev./"]
["\nPótdíjak",null,null,null,null,null,null,0,null,{"$f":"IF(H106>0,1+H106,1)","v":1}]
["Engedmények",null,"Csomag engedmény",null,null,null,null,null,null,{"$f":"IF(M99<4,0,IF(M99=4,0.95,IF(OR(M99=5,M99=6),0.9)))","v":0}]
[{"$f":"IF(N108=0,0,IF(AND(N108=1,I108=0),0,IF(AND(N108=1,I108>0),\"Törölje a speciális engedmény mértékét!\",IF(AND(N108=2,I108=0),\"Adja meg a speciális engedmény mértékét!\",IF(AND(N108=2,I108>0),0)))))","v":0},null,"Üzleti engedmények",null,null,null,null,null,null,{"$f":"IF(J105=0,0,M108)","v":{"$error":"#VALUE!"}},null,null,{"$f":"IF(H108=0,0,IF(H108=\"speciális\",(100-I108)/100,IF(H108=\"üzleti\",0.8)))","v":0},{"$f":"IF(H108=0,0,IF(H108=\"üzleti\",1,IF(H108=\"speciális\",2)))","v":0}]
[null,null,"Tartamengedmény",null,null,null,null,null,null,{"$f":"IF(OR(H109=0,H109=\"nem\"),0,IF(H109=\"igen\",0.9,0))","v":0},null,null,null,{"$f":"IF(AND(J107=0,J108=0,J109=0,J110=0),0,IF(AND(J107>0,J108>0,J109>0,J110>0),(J107*J108*J109*J110),IF(AND(J107>0,J108=0,J109=0,J110=0),J107,IF(AND(J107>0,J108>0,J109=0,J110=0),(J107*J108),IF(AND(J107>0,J108>0,J109>0,J110=0),(J107*J108*J109),IF(AND(J107=0,J108>0,J109>0,J110>0),(J108*J109*J110),IF(AND(J107=0,J108=0,J109>0,J110>0),(J109*J110),0)))))))","v":{"$error":"#VALUE!"}},null,{"$f":"IF(H112>0,1,0)","v":0},null,{"$f":"P109","v":0}]
[null,null,"Egyedi engedmény",null,null,null,null,null,null,null,null,null,{"$f":"IF(H112>0,1,0)","v":0},{"$f":"IF(AND(J107=0,J108=0,J109=0,J110>0),J110,IF(AND(J107=0,J108>0,J109=0,J110=0),J108,IF(AND(J107=0,J108=0,J109>0,J110=0),J109,IF(AND(J107=0,J108>0,J109>0,J110=0),(J108*J109),IF(AND(J107>0,J108=0,J109=0,J110>0),(J107*J110),IF(AND(J107>0,J108=0,J109>0,J110=0),(J107*J109),0))))))","v":{"$error":"#VALUE!"}},null,{"$f":"Ajánlat1!E28","v":"Felmondási jog 3 évre kizárva"},null,{"$f":"IF(P110=\"Felmondási jog 3 évre kizárva\",1,0)","v":1}]
["Éves díj összesen",null,null,null,null,null,null,null,null,{"$f":"IF(J105=0,0,MAX(15000,IF(N113=0,(J105*J106),IF(N113>0,(J105*N113*J106)))))","v":{"$error":"#VALUE!"}},null,null,{"$f":"J111/360","v":{"$error":"#VALUE!"}},{"$f":"IF(AND(J107>0,J108=0,J109>0,J110>0),(J107*J109*J110),IF(AND(J107>0,J108>0,J109=0,J110>0),(J107*J108*J110),IF(AND(J107=0,J108>0,J109=0,J110>0),(J108*J110),0)))","v":{"$error":"#VALUE!"}},null,null,null,{"$f":"IF(OR(R109>0,R110>0),1,0)","v":1}]
["Lejárat, ha a tartam rövidebb mint 1 év",null,null,null,null,null,null,null,null,{"$f":"IF(OR(H113=0,R109>0,H113=\"egyszeri\"),0,IF(AND(J111>15000,H113=\"éves\"),J111*0.95,IF(AND(J111>15000,H113=\"féléves\"),(J111/2)*0.975,IF(AND(J111>15000,H113=\"negyedéves\"),J111/4,IF(AND(J111=15000,H113=\"éves\"),J111,IF(AND(J111=15000,H113=\"féléves\"),J111/2,IF(AND(J111=15000,H113=\"negyedéves\"),J111/4,)))))))","v":0}]
["Gyakorisági díj",{"$f":"IF(R109>0,0,IF(AND(R109=0,H113=\"éves\"),\"5% engedmény\",IF(AND(R109=0,H113=\"féléves\"),\"2,5% engedmény\",0)))","v":0},"Díjfizetés gyakorisága",null,null,null,null,null,null,{"$f":"IF(OR(J105=0,R109>0,H113=0,H113=\"egyszeri\"),0,IF(AND(J112<=15000,H113=\"éves\"),15000,IF(AND(J112<=7500,H113=\"féléves\"),7500,IF(AND(J112<=3750,H113=\"negyedéves\"),3750,J112))))","v":{"$error":"#VALUE!"}},null,null,{"$f":"IF(H113=\"negyedéves\",J113*4,IF(H113=\"féléves\",J113*2,IF(H113=\"éves\",J113,IF(H113=\"egyszeri\",0))))","v":false},{"$f":"IF(AND(N109=0,N110=0,N111=0),0,IF(AND(N109>0,N110=0,N111=0),N109,IF(AND(N109=0,N110>0,N111=0),N110,IF(AND(N109=0,N110=0,N111>0),N111))))","v":{"$error":"#VALUE!"}}]
["Fizetendő első díj / Tartamdíj",null,{"$f":"IF(AND(R109>0,H113=\"egyszeri\"),0,IF(AND(R109>0,M115=1),\"A díjfizetés gyakorisága csak egyszeri lehet!\",IF(AND(R109>0,H113=0),\"A gyakoriság csak egyszeri lehet!\",IF(AND(R109=0,H113=\"egyszeri\"),\"Kérjük, válasszon más gyakoriságot!\",IF(AND(R109=0,H113=0),\"Kérjük, válasszon gyakoriságot!\",IF(AND(R109=0,M115=1),0))))))","v":"Kérjük, válasszon gyakoriságot!"},null,null,null,null,null,null,{"$f":"IF(AND(H112=0,DAY(P232)=1),J113,J115)","v":{"$error":"#VALUE!"}},null,null,{"$f":"M113/360","v":0}]
["Fizetendő díj ",null,{"$f":"IF(DAY(C117)=1,C117,IF(MONTH(C117)=12,DATE(YEAR(C117)+1,1,1),DATE(YEAR(C117),MONTH(C117)+1,1)))","v":"2021-04-01"},null,{"$f":"IF(OR(H112=\"\",G115>364),DATEVALUE(CONCATENATE(YEAR(C115),\".\",MONTH(C115)+1,\".01\")),\"\")","v":"2021-05-01"},null,{"$f":"IF(OR(MOD(YEAR(C117)-2000,4)=0,H112=\"\"),365,IF(H112-C117=364,365,H112-C117+1))","v":365},{"$f":"SUM(C115-C117)","v":1},{"$f":"H112-C117","v":-44286},{"$f":"IF(AND(R109>0,I115<90),((I115*M111)+(M111*30*3)),IF(AND(R109>0,I115>90,I115<240),((I115*M111)+(M111*30)),IF(AND(R109>0,I115>240),J111,((M114*P124)+J113))))","v":{"$error":"#VALUE!"}},null,null,{"$f":"IF(OR(H113=\"éves\",H113=\"féléves\",H113=\"negyedéves\"),1,0)","v":0}]
["Fizetendő éves díj",null,null,null,null,null,null,null,null,{"$f":"IF(J113=0,0,IF(H113=\"negyedéves\",(J113*4),IF(H113=\"féléves\",(J113*2),IF(H113=\"éves\",J113,IF(H113=\"egyszeri\",0)))))","v":{"$error":"#VALUE!"}}]
["Kelt.",{"$f":"Ajánlat1!C90","v":0},{"$f":"Dátum","v":"2021-03-31"}]
[null,null,null,null,null,null,null,null,null,null,null,null,null,{"$f":"IF(B106=0,0,VALUE(LEFT(B106,1)))","v":0},{"$f":"IF(N118=0,1,IF(N118=1,1.03))","v":1}]
[null,null,null,null,null,null,null,null,null,null,null,null,null,{"$f":"IF(C106=0,0,VALUE(LEFT(C106,1)))","v":0},{"$f":"IF(N119=0,1,IF(N119=2,1.03))","v":1}]
[{"$f":"\"Verzió:  \"&lejar.verzio","v":"Verzió:  1.18"},null,null,null,null,null,null,null,null,null,null,null,null,{"$f":"IF(D106=0,0,VALUE(LEFT(D106,1)))","v":0},{"$f":"IF(N120=0,1,IF(N120=3,1.05))","v":1}]
["UNION-Business Class Érvényes: 2021.06.30-ig",null,null,null,null,null,null,null,null,null,null,null,null,{"$f":"IF(H106=0,0,VALUE(LEFT(H106,1)))","v":0},{"$f":"IF(N121=0,1,IF(N121=4,1.05))","v":1}]
[null,null,null,null,null,null,null,null,null,null,null,null,null,{"$f":"IF(I106=0,0,VALUE(LEFT(I106,1)))","v":0},{"$f":"IF(N122=0,1,IF(N122=5,1.05))","v":1}]
["í",null,null,null,null,null,null,null,null,null,null,null,null,null,{"$f":"O118*O119*O120*O121*O122","v":1},{"$f":"Dátum+1","v":"2021-04-01"}]
[null,null,null,null,null,null,null,null,null,null,null,null,null,null,null,{"$f":"SUM(1+(30-DAY(P123)))","v":30}]
[]
[null,"igen",null,null,null,null,null,"speciális"]
[null,"nem",null,null,null,null,null,"üzleti"]
[{"$f":"IF(AND(M27=1,M42>1,M55>1),\"Az üzemszünet biztosítás csak Small módozat lehet\",IF(AND(M27>1,M42=1,M55>1),\"Az üzemszünet biztosítás csak Small lehet\",IF(AND(M27=1,M42=1,M55=1),0,IF(AND(M27>1,M42>1,M55>1),0,IF(AND(M27=1,M42=1,M55>0),\"Az üzemszünet biztosítás csak Small módozat lehet\",IF(OR(M27>1,M42>1,M55=1),0,IF(AND(M27>1,M42>1,M55=1),0)))))))","v":0}]
[]
[]
[]
[]
[]
["Lejárati Dátum","verzió","Lejárati Jelszó"]
["2021-06-30","1.18","Bukta"]
[]
[]
[]
[]
[]
[]
[]
[0,null,"3 nap",null,"10%, de minimum 25.000 Ft",null,null,1,1,null,1]
[5000,null,"5 nap",null,"10%, de minimum 50.000 Ft",null,null,2,0.95,null,0.95]
[10000,null,"7 nap",null,"10%, de minimum 100.000 Ft",null,null,3,0.85,null,0.85]
[25000,null,null,null,"10%, de minimum 200.000 Ft",null,null,4,0.7,null,0.7]
[50000,null,null,null,"20%, de minimum 25.000 Ft",null,null,5,0.92,null,0.92]
[100000,null,null,null,"20%, de minimum 50.000 Ft",null,null,6,0.87,null,0.87]
[200000,null,null,null,"20%, de minimum 100.000 Ft",null,null,7,0.78,null,0.78]
[null,null,null,null,"20%, de minimum 200.000 Ft",null,null,8,0.64,null,0.64]
["Alap","Alap"]
["Teljes",null,null,"0-2",null,"kérem",null,"éves",null,"Nem köthető"]
["Extra",null,null,"2,01-3",null,"nem kérem",null,"féléves"]
["All Risks",null,null,"3,01-5",null,null,null,"negyedéves"]
[null,null,null,"5,01-",null,"üzleti",null,"egyszeri"]
[null,null,null,null,null,"üzletpolitikai",null,"igen"]
["3 hónap, max. 25 MFt",null,null,null,null,null,null,"nem"]
["6 hónap, max. 50 MFt",null,"5 MFt/kár; 15 MFt/év",null,null,"0-2"]
["12 hónap, max 100 MFt",null,"15 MFt/kár; 45 MFt/év",null,null,"2,01-5"]
["12 hónap, max 150 MFt",null,"50 MFt/kár; 100 MFt/év",null,null,"5,01-10"]
[null,null,null,null,null,"10,01-15"]
[null,null,null,null,null,"15 felett"]
[]
[]
[]
["Alap csomag: 3 hó, max. 25 M Ft"]
["Bővített csomag: 6 hó, max. 50 M Ft"]
["Bővített csomag: 12 hó, max. 100 M Ft"]
["Bővített csomag: 12 hó, max. 150 M Ft"]
[]
[]
[]
[]
[]
[]
[]
[]
[]
[]
[]
[]
[]
[]
[]
[]
[]
[]
[]
[]
["0"]
[5000,"Normál üveg",null,null,null,null,null,50]
[10000,"Normál és speciális üveg",null,null,null,null,null,100]
[25000,null,null,null,null,null,null,150]
[50000,null,null,null,null,null,null,200]
[100000,null,null,null,null,null,null,250]
[200000,null,null,null,null,null,null,300]
["Alap",null,null,null,null,null,null,350]
["Teljes",null,null,null,null,null,null,400]
["Extra",null,null,null,null,null,null,450]
[null,null,null,null,null,null,null,500]
[null,null,null,null,null,null,null,600]
["Alap csomag betöréses lopással",null,null,null,null,null,null,700]
["Alap csomag betöréses lopás nélkül",null,null,null,null,null,null,800]
["Teljes csomag betöréses lopással",null,null,null,null,null,null,900]
["Teljes csomag betöréses lopás nélkül",null,null,null,null,null,null,1000]
["Extra csomag betöréses lopással"]
["Extra csomag betöréses lopás nélkül"]
["All Risks csomag betöréses lopással"]
["All Risks csomag betöréses lopás nélkül"]
[]
[]
[]
[]
[]
[]
[]
[]
[]
[]
[]
[]
[]
[]
[]
[]
[]
[]
[]
[]
[]
[]
[null,null,null,null,null,null,null,null,null,null,null,null,null,null,null,{"$f":"Ajánlat1!J30","v":"2022-04-01"}]
[]
[]
[]
[]
[]
[]
[]
[]
[]
["0-2","0-2"]
["2,01-5","2,01-3"]
["5,01-10","3,01-5"]
["10,01-15","5,01-"]
["15 felett"]
[]
[]
[]
[]
[]
[]
[]
[]
[]
[]
[]
[]
[]
[]
[]
[]
[]
[]
[]
[]
[]
[]
[]
[]
[]
[]
[]
[]
[]
[]
[]
[]
[]
[]
[]
[]
[]
[]
[]
[]
[]
[]
[]
[]
[]
[]
[]
[]
[]
[]
[]
[]
[]
[]
[]
[]
[]
[]
[]
[]
[]
[]
[]
[]
[]
[]
[]
[]
[]
[]
[]
[]
[]
[]
[]
[]
[]
[]
[]
[]
[]
[]
[]
[]
[]
[]
[]
[]
[]
[]
[]
[]
[]
[]
[]
[]
[]
[]
[]
[]
[]
[]
[]
[]
[]
[]
[]
[]
[]
[]
[]
[]
[]
[]
[]
[]
[]
[]
[]
[]
[]
[]
[]
[]
[]
[]
[]
[]
[]
[]
[]
[]
[]
[]
[]
[]
[]
[]
[]
[]
[]
[]
[]
[]
[]
[]
[]
[]
[]
[]
[]
[]
[]
[]
[]
[]
[]
[]
[]
[]
[]
[]
[]
[]
[]
[]
[]
[]
[]
[]
[]
[]
[]
[]
[]
[]
[]
[]
[]
[]
[]
[]
[]
[]
[]
[]
[]
[]
[]
[]
[]
[]
[]
[]
[]
[]
[]
[]
[]
[]
[]
[]
[]
[]
[]
[]
[]
[]
[]
[]
[]
[]
[]
[]
[]
[]
[]
[]
[]
[]
[]
[]
[]
[]
[]
[]
[]
[]
[]
[]
[]
[]
[]
[]
[]
[]
[]
[]
[]
[]
[]
[]
[]
[]
[]
[]
[]
[]
[]
[]
[]
[]
[]
[]
[]
[]
[]
[]
[]
[]
[]
[]
[]
[]
[]
[]
[]
[]
[]
[]
[]
[]
[]
[]
[]
[]
[]
[]
[]
[]
[]
[]
[]
[]
[]
[]
[]
[]
[]
[]
[]
[]
[]
[]
[]
[]
[]
[]
[]
[]
[]
[]
[]
[]
[]
[]
[]
[]
[]
[]
[]
[]
[]
[null,null,null,null,null,null,null,null,null,null,null,null,null,null,null,null,{"$f":"Munka3!A2","v":"1011 Húsfeldolgozás, -tartósítás"}]
[null,null,null,null,null,null,null,null,null,null,null,null,null,null,null,null,{"$f":"Munka3!A3","v":"1012 Baromfihús feldolgozása, tartósítása"}]
[null,null,null,null,null,null,null,null,null,null,null,null,null,null,null,null,{"$f":"Munka3!A4","v":"1013 Hús-, baromfihús-készítmény gyártása"}]
[null,null,null,null,null,null,null,null,null,null,null,null,null,null,null,null,{"$f":"Munka3!A5","v":"1020 Halfeldolgozás, -tartósítás"}]
[null,null,null,null,null,null,null,null,null,null,null,null,null,null,null,null,{"$f":"Munka3!A6","v":"1031 Burgonyafeldolgozás, -tartósítás"}]
[null,null,null,null,null,null,null,null,null,null,null,null,null,null,null,null,{"$f":"Munka3!A7","v":"1032 Gyümölcs-, zöldséglé gyártása"}]
[null,null,null,null,null,null,null,null,null,null,null,null,null,null,null,null,{"$f":"Munka3!A8","v":"1039 Egyéb gyümölcs-, zöldségfeldolgozás, -tartósítás"}]
[null,null,null,null,null,null,null,null,null,null,null,null,null,null,null,null,{"$f":"Munka3!A9","v":"1041 Olaj gyártása"}]
[null,null,null,null,null,null,null,null,null,null,null,null,null,null,null,null,{"$f":"Munka3!A10","v":"1042 Margarin gyártása"}]
[null,null,null,null,null,null,null,null,null,null,null,null,null,null,null,null,{"$f":"Munka3!A11","v":"1051 Tejtermék gyártása"}]
[null,null,null,null,null,null,null,null,null,null,null,null,null,null,null,null,{"$f":"Munka3!A12","v":"1052 Jégkrém gyártása"}]
[null,null,null,null,null,null,null,null,null,null,null,null,null,null,null,null,{"$f":"Munka3!A13","v":"1071 Kenyér; friss pékáru gyártása"}]
[null,null,null,null,null,null,null,null,null,null,null,null,null,null,null,null,{"$f":"Munka3!A14","v":"1072 Tartósított lisztes áru gyártása"}]
[null,null,null,null,null,null,null,null,null,null,null,null,null,null,null,null,{"$f":"Munka3!A15","v":"1073 Tésztafélék gyártása"}]
[null,null,null,null,null,null,null,null,null,null,null,null,null,null,null,null,{"$f":"Munka3!A16","v":"1081 Cukorgyártás"}]
[null,null,null,null,null,null,null,null,null,null,null,null,null,null,null,null,{"$f":"Munka3!A17","v":"1082 Édesség gyártása"}]
[null,null,null,null,null,null,null,null,null,null,null,null,null,null,null,null,{"$f":"Munka3!A18","v":"1083 Tea, kávé feldolgozása"}]
[null,null,null,null,null,null,null,null,null,null,null,null,null,null,null,null,{"$f":"Munka3!A19","v":"1084 Fűszer, ételízesítő gyártása"}]
[null,null,null,null,null,null,null,null,null,null,null,null,null,null,null,null,{"$f":"Munka3!A20","v":"1085 Készétel gyártása"}]
[null,null,null,null,null,null,null,null,null,null,null,null,null,null,null,null,{"$f":"Munka3!A21","v":"1086 Homogenizált, diétás étel gyártása"}]
[null,null,null,null,null,null,null,null,null,null,null,null,null,null,null,null,{"$f":"Munka3!A22","v":"1089 M.n.s. egyéb élelmiszer gyártása"}]
[null,null,null,null,null,null,null,null,null,null,null,null,null,null,null,null,{"$f":"Munka3!A23","v":"1091 Haszonállat-eledel gyártása"}]
[null,null,null,null,null,null,null,null,null,null,null,null,null,null,null,null,{"$f":"Munka3!A24","v":"1092 Hobbiállat-eledel gyártása"}]
[null,null,null,null,null,null,null,null,null,null,null,null,null,null,null,null,{"$f":"Munka3!A25","v":"1101 Desztillált szeszes ital gyártása"}]
[null,null,null,null,null,null,null,null,null,null,null,null,null,null,null,null,{"$f":"Munka3!A26","v":"1102 Szőlőbor termelése "}]
[null,null,null,null,null,null,null,null,null,null,null,null,null,null,null,null,{"$f":"Munka3!A27","v":"1103 Gyümölcsbor termelése"}]
[null,null,null,null,null,null,null,null,null,null,null,null,null,null,null,null,{"$f":"Munka3!A28","v":"1104 Egyéb nem desztillált, erjesztett ital gyártása"}]
[null,null,null,null,null,null,null,null,null,null,null,null,null,null,null,null,{"$f":"Munka3!A29","v":"1105 Sörgyártás"}]
[null,null,null,null,null,null,null,null,null,null,null,null,null,null,null,null,{"$f":"Munka3!A30","v":"1107 Üdítőital, ásványvíz gyártása"}]
[null,null,null,null,null,null,null,null,null,null,null,null,null,null,null,null,{"$f":"Munka3!A31","v":"1411 Bőrruházat gyártása"}]
[null,null,null,null,null,null,null,null,null,null,null,null,null,null,null,null,{"$f":"Munka3!A32","v":"1412 Munkaruházat gyártása"}]
[null,null,null,null,null,null,null,null,null,null,null,null,null,null,null,null,{"$f":"Munka3!A33","v":"1413 Felsőruházat gyártása (kivéve: munkaruházat)"}]
[null,null,null,null,null,null,null,null,null,null,null,null,null,null,null,null,{"$f":"Munka3!A34","v":"1414 Alsóruházat gyártása"}]
[null,null,null,null,null,null,null,null,null,null,null,null,null,null,null,null,{"$f":"Munka3!A35","v":"1419 Egyéb ruházat, kiegészítők gyártása"}]
[null,null,null,null,null,null,null,null,null,null,null,null,null,null,null,null,{"$f":"Munka3!A36","v":"1431 Kötött, hurkolt harisnyafélék gyártása"}]
[null,null,null,null,null,null,null,null,null,null,null,null,null,null,null,null,{"$f":"Munka3!A37","v":"1439 Egyéb kötött, hurkolt ruházati termék gyártása "}]
[null,null,null,null,null,null,null,null,null,null,null,null,null,null,null,null,{"$f":"Munka3!A38","v":"1520 Lábbeligyártás"}]
[null,null,null,null,null,null,null,null,null,null,null,null,null,null,null,null,{"$f":"Munka3!A39","v":"1610 Fűrészárugyártás"}]
[null,null,null,null,null,null,null,null,null,null,null,null,null,null,null,null,{"$f":"Munka3!A40","v":"1621 Falemezgyártás"}]
[null,null,null,null,null,null,null,null,null,null,null,null,null,null,null,null,{"$f":"Munka3!A41","v":"1622 Parkettagyártás"}]
[null,null,null,null,null,null,null,null,null,null,null,null,null,null,null,null,{"$f":"Munka3!A42","v":"1623 Épületasztalos-ipari termék gyártása"}]
[null,null,null,null,null,null,null,null,null,null,null,null,null,null,null,null,{"$f":"Munka3!A43","v":"1624 Tároló fatermék gyártása"}]
[null,null,null,null,null,null,null,null,null,null,null,null,null,null,null,null,{"$f":"Munka3!A44","v":"1629 Egyéb fa-, parafatermék, fonottáru gyártása"}]
[null,null,null,null,null,null,null,null,null,null,null,null,null,null,null,null,{"$f":"Munka3!A45","v":"1711 Papíripari rostanyag gyártása"}]
[null,null,null,null,null,null,null,null,null,null,null,null,null,null,null,null,{"$f":"Munka3!A46","v":"1712 Papírgyártás"}]
[null,null,null,null,null,null,null,null,null,null,null,null,null,null,null,null,{"$f":"Munka3!A47","v":"1721 Papír csomagolóeszköz gyártása"}]
[null,null,null,null,null,null,null,null,null,null,null,null,null,null,null,null,{"$f":"Munka3!A48","v":"1722 Háztartási, egészségügyi papírtermék gyártása"}]
[null,null,null,null,null,null,null,null,null,null,null,null,null,null,null,null,{"$f":"Munka3!A49","v":"1723 Irodai papíráru gyártása"}]
[null,null,null,null,null,null,null,null,null,null,null,null,null,null,null,null,{"$f":"Munka3!A50","v":"1724 Tapétagyártás"}]
[null,null,null,null,null,null,null,null,null,null,null,null,null,null,null,null,{"$f":"Munka3!A51","v":"1729 Egyéb papír-, kartontermék gyártása"}]
[null,null,null,null,null,null,null,null,null,null,null,null,null,null,null,null,{"$f":"Munka3!A52","v":"1811 Napilapnyomás"}]
[null,null,null,null,null,null,null,null,null,null,null,null,null,null,null,null,{"$f":"Munka3!A53","v":"1812 Nyomás (kivéve: napilap)"}]
[null,null,null,null,null,null,null,null,null,null,null,null,null,null,null,null,{"$f":"Munka3!A54","v":"1813 Nyomdai előkészítő tevékenység"}]
[null,null,null,null,null,null,null,null,null,null,null,null,null,null,null,null,{"$f":"Munka3!A55","v":"1814 Könyvkötés, kapcsolódó szolgáltatás"}]
[null,null,null,null,null,null,null,null,null,null,null,null,null,null,null,null,{"$f":"Munka3!A56","v":"1820 Egyéb sokszorosítás"}]
[null,null,null,null,null,null,null,null,null,null,null,null,null,null,null,null,{"$f":"Munka3!A57","v":"2012 Színezék, pigment gyártása"}]
[null,null,null,null,null,null,null,null,null,null,null,null,null,null,null,null,{"$f":"Munka3!A58","v":"2013 Szervetlen vegyi alapanyag gyártása"}]
[null,null,null,null,null,null,null,null,null,null,null,null,null,null,null,null,{"$f":"Munka3!A59","v":"2014 Szerves vegyi alapanyag gyártása"}]
[null,null,null,null,null,null,null,null,null,null,null,null,null,null,null,null,{"$f":"Munka3!A60","v":"2016 Műanyag-alapanyag gyártása"}]
[null,null,null,null,null,null,null,null,null,null,null,null,null,null,null,null,{"$f":"Munka3!A61","v":"2020 Mezőgazdasági vegyi termék gyártása"}]
[null,null,null,null,null,null,null,null,null,null,null,null,null,null,null,null,{"$f":"Munka3!A62","v":"2041 Tisztítószer gyártása"}]
[null,null,null,null,null,null,null,null,null,null,null,null,null,null,null,null,{"$f":"Munka3!A63","v":"2042 Testápolási cikk gyártása"}]
[null,null,null,null,null,null,null,null,null,null,null,null,null,null,null,null,{"$f":"Munka3!A64","v":"2052 Ragasztószergyártás"}]
[null,null,null,null,null,null,null,null,null,null,null,null,null,null,null,null,{"$f":"Munka3!A65","v":"2053 Illóolajgyártás"}]
[null,null,null,null,null,null,null,null,null,null,null,null,null,null,null,null,{"$f":"Munka3!A66","v":"2059 M.n.s. egyéb vegyi termék gyártása"}]
[null,null,null,null,null,null,null,null,null,null,null,null,null,null,null,null,{"$f":"Munka3!A67","v":"2060 Vegyi szál gyártása"}]
[null,null,null,null,null,null,null,null,null,null,null,null,null,null,null,null,{"$f":"Munka3!A68","v":"2211 Gumiabroncs, gumitömlő gyártása"}]
[null,null,null,null,null,null,null,null,null,null,null,null,null,null,null,null,{"$f":"Munka3!A69","v":"2219 Egyéb gumitermék gyártása"}]
[null,null,null,null,null,null,null,null,null,null,null,null,null,null,null,null,{"$f":"Munka3!A70","v":"2221 Műanyag lap, lemez, fólia, cső, profil gyártása"}]
[null,null,null,null,null,null,null,null,null,null,null,null,null,null,null,null,{"$f":"Munka3!A71","v":"2222 Műanyag csomagolóeszköz gyártása"}]
[null,null,null,null,null,null,null,null,null,null,null,null,null,null,null,null,{"$f":"Munka3!A72","v":"2223 Műanyag építőanyag gyártása"}]
[null,null,null,null,null,null,null,null,null,null,null,null,null,null,null,null,{"$f":"Munka3!A73","v":"2229 Egyéb műanyag termék gyártása"}]
[null,null,null,null,null,null,null,null,null,null,null,null,null,null,null,null,{"$f":"Munka3!A74","v":"2311 Síküveggyártás"}]
[null,null,null,null,null,null,null,null,null,null,null,null,null,null,null,null,{"$f":"Munka3!A75","v":"2312 Síküveg továbbfeldolgozása"}]
[null,null,null,null,null,null,null,null,null,null,null,null,null,null,null,null,{"$f":"Munka3!A76","v":"2313 Öblösüveggyártás"}]
[null,null,null,null,null,null,null,null,null,null,null,null,null,null,null,null,{"$f":"Munka3!A77","v":"2319 Műszaki, egyéb üvegtermék gyártása"}]
[null,null,null,null,null,null,null,null,null,null,null,null,null,null,null,null,{"$f":"Munka3!A78","v":"2320 Tűzálló termék gyártása"}]
[null,null,null,null,null,null,null,null,null,null,null,null,null,null,null,null,{"$f":"Munka3!A79","v":"2331 Kerámiacsempe, -lap gyártása"}]
[null,null,null,null,null,null,null,null,null,null,null,null,null,null,null,null,{"$f":"Munka3!A80","v":"2332 Égetett agyag építőanyag gyártása"}]
[null,null,null,null,null,null,null,null,null,null,null,null,null,null,null,null,{"$f":"Munka3!A81","v":"2341 Háztartási kerámia gyártása"}]
[null,null,null,null,null,null,null,null,null,null,null,null,null,null,null,null,{"$f":"Munka3!A82","v":"2342 Egészségügyi kerámia gyártása"}]
[null,null,null,null,null,null,null,null,null,null,null,null,null,null,null,null,{"$f":"Munka3!A83","v":"2343 Kerámia szigetelő gyártása"}]
[null,null,null,null,null,null,null,null,null,null,null,null,null,null,null,null,{"$f":"Munka3!A84","v":"2344 Műszaki kerámia gyártása"}]
[null,null,null,null,null,null,null,null,null,null,null,null,null,null,null,null,{"$f":"Munka3!A85","v":"2349 Egyéb kerámiatermék gyártása"}]
[null,null,null,null,null,null,null,null,null,null,null,null,null,null,null,null,{"$f":"Munka3!A86","v":"2351 Cementgyártás"}]
[null,null,null,null,null,null,null,null,null,null,null,null,null,null,null,null,{"$f":"Munka3!A87","v":"2352 Mész-, gipszgyártás"}]
[null,null,null,null,null,null,null,null,null,null,null,null,null,null,null,null,{"$f":"Munka3!A88","v":"2361 Építési betontermék gyártása"}]
[null,null,null,null,null,null,null,null,null,null,null,null,null,null,null,null,{"$f":"Munka3!A89","v":"2362 Építési gipsztermék gyártása"}]
[null,null,null,null,null,null,null,null,null,null,null,null,null,null,null,null,{"$f":"Munka3!A90","v":"2363 Előre kevert beton gyártása"}]
[null,null,null,null,null,null,null,null,null,null,null,null,null,null,null,null,{"$f":"Munka3!A91","v":"2364 Habarcsgyártás"}]
[null,null,null,null,null,null,null,null,null,null,null,null,null,null,null,null,{"$f":"Munka3!A92","v":"2365 Szálerősítésű cement gyártása"}]
[null,null,null,null,null,null,null,null,null,null,null,null,null,null,null,null,{"$f":"Munka3!A93","v":"2369 Egyéb beton-, gipsz-, cementtermék gyártása"}]
[null,null,null,null,null,null,null,null,null,null,null,null,null,null,null,null,{"$f":"Munka3!A94","v":"2370 Kőmegmunkálás"}]
[null,null,null,null,null,null,null,null,null,null,null,null,null,null,null,null,{"$f":"Munka3!A95","v":"2511 Fémszerkezet gyártása"}]
[null,null,null,null,null,null,null,null,null,null,null,null,null,null,null,null,{"$f":"Munka3!A96","v":"2512 Fém épületelem gyártása"}]
[null,null,null,null,null,null,null,null,null,null,null,null,null,null,null,null,{"$f":"Munka3!A97","v":"2521 Központi fűtési kazán, radiátor gyártása"}]
[null,null,null,null,null,null,null,null,null,null,null,null,null,null,null,null,{"$f":"Munka3!A98","v":"2529 Fémtartály gyártása"}]
[null,null,null,null,null,null,null,null,null,null,null,null,null,null,null,null,{"$f":"Munka3!A99","v":"2561 Fémfelület-kezelés"}]
[null,null,null,null,null,null,null,null,null,null,null,null,null,null,null,null,{"$f":"Munka3!A100","v":"2562 Fémmegmunkálás"}]
[null,null,null,null,null,null,null,null,null,null,null,null,null,null,null,null,{"$f":"Munka3!A101","v":"2571 Evőeszköz gyártása"}]
[null,null,null,null,null,null,null,null,null,null,null,null,null,null,null,null,{"$f":"Munka3!A102","v":"2572 Lakat-, zárgyártás"}]
[null,null,null,null,null,null,null,null,null,null,null,null,null,null,null,null,{"$f":"Munka3!A103","v":"2573 Szerszámgyártás"}]
[null,null,null,null,null,null,null,null,null,null,null,null,null,null,null,null,{"$f":"Munka3!A104","v":"2591 Acél tárolóeszköz gyártása"}]
[null,null,null,null,null,null,null,null,null,null,null,null,null,null,null,null,{"$f":"Munka3!A105","v":"2594 Kötőelem, csavar gyártása"}]
[null,null,null,null,null,null,null,null,null,null,null,null,null,null,null,null,{"$f":"Munka3!A106","v":"2599 M.n.s. egyéb fémfeldolgozási termék gyártása"}]
[null,null,null,null,null,null,null,null,null,null,null,null,null,null,null,null,{"$f":"Munka3!A107","v":"2611 Elektronikai alkatrész gyártása"}]
[null,null,null,null,null,null,null,null,null,null,null,null,null,null,null,null,{"$f":"Munka3!A108","v":"2620 Számítógép, perifériás egység gyártása"}]
[null,null,null,null,null,null,null,null,null,null,null,null,null,null,null,null,{"$f":"Munka3!A109","v":"2630 Híradás-technikai berendezés gyártása"}]
[null,null,null,null,null,null,null,null,null,null,null,null,null,null,null,null,{"$f":"Munka3!A110","v":"2651 Mérőműszergyártás"}]
[null,null,null,null,null,null,null,null,null,null,null,null,null,null,null,null,{"$f":"Munka3!A111","v":"2660 Elektronikus orvosi berendezés gyártása"}]
[null,null,null,null,null,null,null,null,null,null,null,null,null,null,null,null,{"$f":"Munka3!A112","v":"2670 Optikai eszköz gyártása"}]
[null,null,null,null,null,null,null,null,null,null,null,null,null,null,null,null,{"$f":"Munka3!A113","v":"2711 Villamos motor, áramfejlesztő gyártása"}]
[null,null,null,null,null,null,null,null,null,null,null,null,null,null,null,null,{"$f":"Munka3!A114","v":"2712 Áramelosztó, -szabályozó készülék gyártása"}]
[null,null,null,null,null,null,null,null,null,null,null,null,null,null,null,null,{"$f":"Munka3!A115","v":"2720 Akkumulátor, szárazelem gyártása"}]
[null,null,null,null,null,null,null,null,null,null,null,null,null,null,null,null,{"$f":"Munka3!A116","v":"2731 Száloptikai kábel gyártása"}]
[null,null,null,null,null,null,null,null,null,null,null,null,null,null,null,null,{"$f":"Munka3!A117","v":"2732 Egyéb elektronikus, villamos vezeték, kábel gyártása"}]
[null,null,null,null,null,null,null,null,null,null,null,null,null,null,null,null,{"$f":"Munka3!A118","v":"2733 Szerelvény gyártása"}]
[null,null,null,null,null,null,null,null,null,null,null,null,null,null,null,null,{"$f":"Munka3!A119","v":"2740 Villamos világítóeszköz gyártása"}]
[null,null,null,null,null,null,null,null,null,null,null,null,null,null,null,null,{"$f":"Munka3!A120","v":"2751 Háztartási villamos készülék gyártása"}]
[null,null,null,null,null,null,null,null,null,null,null,null,null,null,null,null,{"$f":"Munka3!A121","v":"2752 Nem villamos háztartási készülék gyártása"}]
[null,null,null,null,null,null,null,null,null,null,null,null,null,null,null,null,{"$f":"Munka3!A122","v":"2790 Egyéb villamos berendezés gyártása"}]
[null,null,null,null,null,null,null,null,null,null,null,null,null,null,null,null,{"$f":"Munka3!A123","v":"2814 Csap, szelep gyártása"}]
[null,null,null,null,null,null,null,null,null,null,null,null,null,null,null,null,{"$f":"Munka3!A124","v":"2823 Irodagép gyártása (kivéve: számítógép és perifériái)"}]
[null,null,null,null,null,null,null,null,null,null,null,null,null,null,null,null,{"$f":"Munka3!A125","v":"2824 Gépi meghajtású hordozható kézi szerszámgép gyártása"}]
[null,null,null,null,null,null,null,null,null,null,null,null,null,null,null,null,{"$f":"Munka3!A126","v":"2829 M.n.s. egyéb általános rendeltetésű gép gyártása "}]
[null,null,null,null,null,null,null,null,null,null,null,null,null,null,null,null,{"$f":"Munka3!A127","v":"2830 Mezőgazdasági, erdészeti gép gyártása"}]
[null,null,null,null,null,null,null,null,null,null,null,null,null,null,null,null,{"$f":"Munka3!A128","v":"2841 Fémmegmunkáló szerszámgép gyártása"}]
[null,null,null,null,null,null,null,null,null,null,null,null,null,null,null,null,{"$f":"Munka3!A129","v":"2849 Egyéb szerszámgép gyártása"}]
[null,null,null,null,null,null,null,null,null,null,null,null,null,null,null,null,{"$f":"Munka3!A130","v":"2893 Élelmiszer-, dohányipari gép gyártása"}]
[null,null,null,null,null,null,null,null,null,null,null,null,null,null,null,null,{"$f":"Munka3!A131","v":"2894 Textil-, ruházati, bőripari gép gyártása"}]
[null,null,null,null,null,null,null,null,null,null,null,null,null,null,null,null,{"$f":"Munka3!A132","v":"2895 Papíripari gép gyártása"}]
[null,null,null,null,null,null,null,null,null,null,null,null,null,null,null,null,{"$f":"Munka3!A133","v":"2896 Műanyag-, gumifeldolgozó gép gyártása"}]
[null,null,null,null,null,null,null,null,null,null,null,null,null,null,null,null,{"$f":"Munka3!A134","v":"2899 M.n.s. egyéb speciális gép gyártása"}]
[null,null,null,null,null,null,null,null,null,null,null,null,null,null,null,null,{"$f":"Munka3!A135","v":"2931 Járművillamossági, -elektronikai készülékek gyártása"}]
[null,null,null,null,null,null,null,null,null,null,null,null,null,null,null,null,{"$f":"Munka3!A136","v":"2932 Közúti jármű, járműmotor alkatrészeinek gyártása"}]
[null,null,null,null,null,null,null,null,null,null,null,null,null,null,null,null,{"$f":"Munka3!A137","v":"3091 Motorkerékpár gyártása"}]
[null,null,null,null,null,null,null,null,null,null,null,null,null,null,null,null,{"$f":"Munka3!A138","v":"3092 Kerékpár, mozgássérültkocsi gyártása"}]
[null,null,null,null,null,null,null,null,null,null,null,null,null,null,null,null,{"$f":"Munka3!A139","v":"3101 Irodabútor gyártása"}]
[null,null,null,null,null,null,null,null,null,null,null,null,null,null,null,null,{"$f":"Munka3!A140","v":"3102 Konyhabútorgyártás"}]
[null,null,null,null,null,null,null,null,null,null,null,null,null,null,null,null,{"$f":"Munka3!A141","v":"3103 Ágybetét gyártása"}]
[null,null,null,null,null,null,null,null,null,null,null,null,null,null,null,null,{"$f":"Munka3!A142","v":"3109 Egyéb bútor gyártása"}]
[null,null,null,null,null,null,null,null,null,null,null,null,null,null,null,null,{"$f":"Munka3!A143","v":"3220 Hangszergyártás"}]
[null,null,null,null,null,null,null,null,null,null,null,null,null,null,null,null,{"$f":"Munka3!A144","v":"3230 Sportszergyártás"}]
[null,null,null,null,null,null,null,null,null,null,null,null,null,null,null,null,{"$f":"Munka3!A145","v":"3240 Játékgyártás"}]
[null,null,null,null,null,null,null,null,null,null,null,null,null,null,null,null,{"$f":"Munka3!A146","v":"3250 Orvosi eszköz gyártása"}]
[null,null,null,null,null,null,null,null,null,null,null,null,null,null,null,null,{"$f":"Munka3!A147","v":"3291 Seprű-, kefegyártás"}]
[null,null,null,null,null,null,null,null,null,null,null,null,null,null,null,null,{"$f":"Munka3!A148","v":"3313 Elektronikus, optikai eszköz javítása"}]
[null,null,null,null,null,null,null,null,null,null,null,null,null,null,null,null,{"$f":"Munka3!A149","v":"3314 Ipari villamos gép, berendezés javítása"}]
[null,null,null,null,null,null,null,null,null,null,null,null,null,null,null,null,{"$f":"Munka3!A150","v":"3317 Egyéb közlekedési eszköz javítása"}]
[null,null,null,null,null,null,null,null,null,null,null,null,null,null,null,null,{"$f":"Munka3!A151","v":"4120 Lakó- és nem lakó épület építése"}]
[null,null,null,null,null,null,null,null,null,null,null,null,null,null,null,null,{"$f":"Munka3!A152","v":"4299 Egyéb m.n.s. építés"}]
[null,null,null,null,null,null,null,null,null,null,null,null,null,null,null,null,{"$f":"Munka3!A153","v":"4321 Villanyszerelés"}]
[null,null,null,null,null,null,null,null,null,null,null,null,null,null,null,null,{"$f":"Munka3!A154","v":"4322 Víz-, gáz-, fűtés-, légkondicionáló-szerelés"}]
[null,null,null,null,null,null,null,null,null,null,null,null,null,null,null,null,{"$f":"Munka3!A155","v":"4329 Egyéb épületgépészeti szerelés"}]
[null,null,null,null,null,null,null,null,null,null,null,null,null,null,null,null,{"$f":"Munka3!A156","v":"4331 Vakolás"}]
[null,null,null,null,null,null,null,null,null,null,null,null,null,null,null,null,{"$f":"Munka3!A157","v":"4332 Épületasztalos-szerkezet szerelése"}]
[null,null,null,null,null,null,null,null,null,null,null,null,null,null,null,null,{"$f":"Munka3!A158","v":"4333 Padló-, falburkolás"}]
[null,null,null,null,null,null,null,null,null,null,null,null,null,null,null,null,{"$f":"Munka3!A159","v":"4334 Festés, üvegezés"}]
[null,null,null,null,null,null,null,null,null,null,null,null,null,null,null,null,{"$f":"Munka3!A160","v":"4339 Egyéb befejező építés m.n.s."}]
[null,null,null,null,null,null,null,null,null,null,null,null,null,null,null,null,{"$f":"Munka3!A161","v":"4391 Tetőfedés, tetőszerkezet-építés"}]
[null,null,null,null,null,null,null,null,null,null,null,null,null,null,null,null,{"$f":"Munka3!A162","v":"4399 Egyéb speciális szaképítés m.n.s."}]
[null,null,null,null,null,null,null,null,null,null,null,null,null,null,null,null,{"$f":"Munka3!A163","v":"4520 Gépjárműjavítás, -karbantartás"}]
[null,null,null,null,null,null,null,null,null,null,null,null,null,null,null,null,{"$f":"Munka3!A164","v":"4531 Gépjárműalkatrész-nagykereskedelem"}]
[null,null,null,null,null,null,null,null,null,null,null,null,null,null,null,null,{"$f":"Munka3!A165","v":"4532 Gépjárműalkatrész-kiskereskedelem"}]
[null,null,null,null,null,null,null,null,null,null,null,null,null,null,null,null,{"$f":"Munka3!A166","v":"4540 Motorkerékpár, -alkatrész kereskedelme, javítása"}]
[null,null,null,null,null,null,null,null,null,null,null,null,null,null,null,null,{"$f":"Munka3!A167","v":"4711 Élelmiszer jellegű bolti vegyes kiskereskedelem"}]
[null,null,null,null,null,null,null,null,null,null,null,null,null,null,null,null,{"$f":"Munka3!A168","v":"4721 Zöldség, gyümölcs kiskereskedelme"}]
[null,null,null,null,null,null,null,null,null,null,null,null,null,null,null,null,{"$f":"Munka3!A169","v":"4722 Hús-, húsáru kiskereskedelme"}]
[null,null,null,null,null,null,null,null,null,null,null,null,null,null,null,null,{"$f":"Munka3!A170","v":"4723 Hal kiskereskedelme"}]
[null,null,null,null,null,null,null,null,null,null,null,null,null,null,null,null,{"$f":"Munka3!A171","v":"4724 Kenyér-, pékáru-, édesség-kiskereskedelem "}]
[null,null,null,null,null,null,null,null,null,null,null,null,null,null,null,null,{"$f":"Munka3!A172","v":"4725 Ital-kiskereskedelem "}]
[null,null,null,null,null,null,null,null,null,null,null,null,null,null,null,null,{"$f":"Munka3!A173","v":"4726 Dohányáru-kiskereskedelem "}]
[null,null,null,null,null,null,null,null,null,null,null,null,null,null,null,null,{"$f":"Munka3!A174","v":"4729 Egyéb élelmiszer-kiskereskedelem "}]
[null,null,null,null,null,null,null,null,null,null,null,null,null,null,null,null,{"$f":"Munka3!A175","v":"4730 Gépjárműüzemanyag-kiskereskedelem "}]
[null,null,null,null,null,null,null,null,null,null,null,null,null,null,null,null,{"$f":"Munka3!A176","v":"4741 Számítógép, periféria, szoftver kiskereskedelme "}]
[null,null,null,null,null,null,null,null,null,null,null,null,null,null,null,null,{"$f":"Munka3!A177","v":"4742 Telekommunikációs termék kiskereskedelme"}]
[null,null,null,null,null,null,null,null,null,null,null,null,null,null,null,null,{"$f":"Munka3!A178","v":"4743 Audio-, videoberendezés kiskereskedelme"}]
[null,null,null,null,null,null,null,null,null,null,null,null,null,null,null,null,{"$f":"Munka3!A179","v":"4751 Textil-kiskereskedelem "}]
[null,null,null,null,null,null,null,null,null,null,null,null,null,null,null,null,{"$f":"Munka3!A180","v":"4752 Vasáru-, festék-, üveg-kiskereskedelem "}]
[null,null,null,null,null,null,null,null,null,null,null,null,null,null,null,null,{"$f":"Munka3!A181","v":"4753 Takaró, szőnyeg, fal-, padlóburkoló kiskereskedelme"}]
[null,null,null,null,null,null,null,null,null,null,null,null,null,null,null,null,{"$f":"Munka3!A182","v":"4754 Villamos háztartási készülék kiskereskedelme "}]
[null,null,null,null,null,null,null,null,null,null,null,null,null,null,null,null,{"$f":"Munka3!A183","v":"4759 Bútor, világítási eszköz, egyéb háztartási cikk kiskereskedelme"}]
[null,null,null,null,null,null,null,null,null,null,null,null,null,null,null,null,{"$f":"Munka3!A184","v":"4761 Könyv-kiskereskedelem "}]
[null,null,null,null,null,null,null,null,null,null,null,null,null,null,null,null,{"$f":"Munka3!A185","v":"4762 Újság-, papíráru-kiskereskedelem "}]
[null,null,null,null,null,null,null,null,null,null,null,null,null,null,null,null,{"$f":"Munka3!A186","v":"4763 Zene-, videofelvétel kiskereskedelme"}]
[null,null,null,null,null,null,null,null,null,null,null,null,null,null,null,null,{"$f":"Munka3!A187","v":"4764 Sportszer-kiskereskedelem "}]
[null,null,null,null,null,null,null,null,null,null,null,null,null,null,null,null,{"$f":"Munka3!A188","v":"4765 Játék-kiskereskedelem "}]
[null,null,null,null,null,null,null,null,null,null,null,null,null,null,null,null,{"$f":"Munka3!A189","v":"4771 Ruházat kiskereskedelem "}]
[null,null,null,null,null,null,null,null,null,null,null,null,null,null,null,null,{"$f":"Munka3!A190","v":"4772 Lábbeli-, bőráru-kiskereskedelem "}]
[null,null,null,null,null,null,null,null,null,null,null,null,null,null,null,null,{"$f":"Munka3!A191","v":"4773 Gyógyszer-kiskereskedelem "}]
[null,null,null,null,null,null,null,null,null,null,null,null,null,null,null,null,{"$f":"Munka3!A192","v":"4774 Gyógyászati termék kiskereskedelme "}]
[null,null,null,null,null,null,null,null,null,null,null,null,null,null,null,null,{"$f":"Munka3!A193","v":"4775 Illatszer-kiskereskedelem "}]
[null,null,null,null,null,null,null,null,null,null,null,null,null,null,null,null,{"$f":"Munka3!A194","v":"4776 Dísznövény, vetőmag, műtrágya, hobbiállat-eledel kiskereskedelme"}]
[null,null,null,null,null,null,null,null,null,null,null,null,null,null,null,null,{"$f":"Munka3!A195","v":"4782 Textil, ruházat, lábbeli piaci kiskereskedelme"}]
[null,null,null,null,null,null,null,null,null,null,null,null,null,null,null,null,{"$f":"Munka3!A196","v":"5510 Szállodai szolgáltatás"}]
[null,null,null,null,null,null,null,null,null,null,null,null,null,null,null,null,{"$f":"Munka3!A197","v":"5520 Üdülési, egyéb átmeneti szálláshely-szolgáltatás"}]
[null,null,null,null,null,null,null,null,null,null,null,null,null,null,null,null,{"$f":"Munka3!A198","v":"5590 Egyéb szálláshely-szolgáltatás "}]
[null,null,null,null,null,null,null,null,null,null,null,null,null,null,null,null,{"$f":"Munka3!A199","v":"5610 Éttermi, mozgó vendéglátás"}]
[null,null,null,null,null,null,null,null,null,null,null,null,null,null,null,null,{"$f":"Munka3!A200","v":"5621 Rendezvényi étkeztetés"}]
[null,null,null,null,null,null,null,null,null,null,null,null,null,null,null,null,{"$f":"Munka3!A201","v":"5629 Egyéb vendéglátás"}]
[null,null,null,null,null,null,null,null,null,null,null,null,null,null,null,null,{"$f":"Munka3!A202","v":"5630 Italszolgáltatás"}]
[null,null,null,null,null,null,null,null,null,null,null,null,null,null,null,null,{"$f":"Munka3!A203","v":"5811 Könyvkiadás"}]
[null,null,null,null,null,null,null,null,null,null,null,null,null,null,null,null,{"$f":"Munka3!A204","v":"5813 Napilapkiadás"}]
[null,null,null,null,null,null,null,null,null,null,null,null,null,null,null,null,{"$f":"Munka3!A205","v":"5814 Folyóirat, időszaki kiadvány kiadása"}]
[null,null,null,null,null,null,null,null,null,null,null,null,null,null,null,null,{"$f":"Munka3!A206","v":"5819 Egyéb kiadói tevékenység"}]
[null,null,null,null,null,null,null,null,null,null,null,null,null,null,null,null,{"$f":"Munka3!A207","v":"5911 Film-, video-, televízióműsor-gyártás"}]
[null,null,null,null,null,null,null,null,null,null,null,null,null,null,null,null,{"$f":"Munka3!A208","v":"5912 Film-, videogyártás, televíziós műsorfelvétel utómunkálatai"}]
[null,null,null,null,null,null,null,null,null,null,null,null,null,null,null,null,{"$f":"Munka3!A209","v":"5914 Filmvetítés"}]
[null,null,null,null,null,null,null,null,null,null,null,null,null,null,null,null,{"$f":"Munka3!A210","v":"5920 Hangfelvétel készítése, kiadása"}]
[null,null,null,null,null,null,null,null,null,null,null,null,null,null,null,null,{"$f":"Munka3!A211","v":"6010 Rádióműsor-szolgáltatás"}]
[null,null,null,null,null,null,null,null,null,null,null,null,null,null,null,null,{"$f":"Munka3!A212","v":"6020 Televízióműsor összeállítása, szolgáltatása"}]
[null,null,null,null,null,null,null,null,null,null,null,null,null,null,null,null,{"$f":"Munka3!A213","v":"6201 Számítógépes programozás"}]
[null,null,null,null,null,null,null,null,null,null,null,null,null,null,null,null,{"$f":"Munka3!A214","v":"6203 Számítógép-üzemeltetés "}]
[null,null,null,null,null,null,null,null,null,null,null,null,null,null,null,null,{"$f":"Munka3!A215","v":"6419 Egyéb monetáris közvetítés"}]
[null,null,null,null,null,null,null,null,null,null,null,null,null,null,null,null,{"$f":"Munka3!A216","v":"6420 Vagyonkezelés (holding)"}]
[null,null,null,null,null,null,null,null,null,null,null,null,null,null,null,null,{"$f":"Munka3!A217","v":"6430 Befektetési alapok és hasonlók"}]
[null,null,null,null,null,null,null,null,null,null,null,null,null,null,null,null,{"$f":"Munka3!A218","v":"6491 Pénzügyi lízing"}]
[null,null,null,null,null,null,null,null,null,null,null,null,null,null,null,null,{"$f":"Munka3!A219","v":"6492 Egyéb hitelnyújtás"}]
[null,null,null,null,null,null,null,null,null,null,null,null,null,null,null,null,{"$f":"Munka3!A220","v":"6499 M.n.s. egyéb pénzügyi közvetítés "}]
[null,null,null,null,null,null,null,null,null,null,null,null,null,null,null,null,{"$f":"Munka3!A221","v":"6511 Életbiztosítás"}]
[null,null,null,null,null,null,null,null,null,null,null,null,null,null,null,null,{"$f":"Munka3!A222","v":"6512 Nem életbiztosítás"}]
[null,null,null,null,null,null,null,null,null,null,null,null,null,null,null,null,{"$f":"Munka3!A223","v":"6520 Viszontbiztosítás"}]
[null,null,null,null,null,null,null,null,null,null,null,null,null,null,null,null,{"$f":"Munka3!A224","v":"6530 Nyugdíjalapok"}]
[null,null,null,null,null,null,null,null,null,null,null,null,null,null,null,null,{"$f":"Munka3!A225","v":"6621 Kockázatértékelés, kárszakértés"}]
[null,null,null,null,null,null,null,null,null,null,null,null,null,null,null,null,{"$f":"Munka3!A226","v":"6622 Biztosítási ügynöki, brókeri tevékenység"}]
[null,null,null,null,null,null,null,null,null,null,null,null,null,null,null,null,{"$f":"Munka3!A227","v":"6831 Ingatlanügynöki tevékenység"}]
[null,null,null,null,null,null,null,null,null,null,null,null,null,null,null,null,{"$f":"Munka3!A228","v":"6910 Jogi tevékenység"}]
[null,null,null,null,null,null,null,null,null,null,null,null,null,null,null,null,{"$f":"Munka3!A229","v":"6920 Számviteli, könyvvizsgálói, adószakértői tevékenység"}]
[null,null,null,null,null,null,null,null,null,null,null,null,null,null,null,null,{"$f":"Munka3!A230","v":"7021 PR, kommunikáció"}]
[null,null,null,null,null,null,null,null,null,null,null,null,null,null,null,null,{"$f":"Munka3!A231","v":"7022 Üzletviteli, egyéb vezetési tanácsadás"}]
[null,null,null,null,null,null,null,null,null,null,null,null,null,null,null,null,{"$f":"Munka3!A232","v":"7111 Építészmérnöki tevékenység"}]
[null,null,null,null,null,null,null,null,null,null,null,null,null,null,null,null,{"$f":"Munka3!A233","v":"7112 Mérnöki tevékenység, műszaki tanácsadás"}]
[null,null,null,null,null,null,null,null,null,null,null,null,null,null,null,null,{"$f":"Munka3!A234","v":"7120 Műszaki vizsgálat, elemzés"}]
[null,null,null,null,null,null,null,null,null,null,null,null,null,null,null,null,{"$f":"Munka3!A235","v":"7211 Biotechnológiai kutatás, fejlesztés"}]
[null,null,null,null,null,null,null,null,null,null,null,null,null,null,null,null,{"$f":"Munka3!A236","v":"7219 Egyéb természettudományi, műszaki kutatás, fejlesztés"}]
[null,null,null,null,null,null,null,null,null,null,null,null,null,null,null,null,{"$f":"Munka3!A237","v":"7220 Társadalomtudományi, humán kutatás, fejlesztés"}]
[null,null,null,null,null,null,null,null,null,null,null,null,null,null,null,null,{"$f":"Munka3!A238","v":"7311 Reklámügynöki tevékenység"}]
[null,null,null,null,null,null,null,null,null,null,null,null,null,null,null,null,{"$f":"Munka3!A239","v":"7312 Médiareklám"}]
[null,null,null,null,null,null,null,null,null,null,null,null,null,null,null,null,{"$f":"Munka3!A240","v":"7320 Piac-, közvélemény-kutatás"}]
[null,null,null,null,null,null,null,null,null,null,null,null,null,null,null,null,{"$f":"Munka3!A241","v":"7420 Fényképészet"}]
[null,null,null,null,null,null,null,null,null,null,null,null,null,null,null,null,{"$f":"Munka3!A242","v":"7430 Fordítás, tolmácsolás"}]
[null,null,null,null,null,null,null,null,null,null,null,null,null,null,null,null,{"$f":"Munka3!A243","v":"7490 M.n.s. egyéb szakmai, tudományos, műszaki tevékenység "}]
[null,null,null,null,null,null,null,null,null,null,null,null,null,null,null,null,{"$f":"Munka3!A244","v":"7500 Állat-egészségügyi ellátás"}]
[null,null,null,null,null,null,null,null,null,null,null,null,null,null,null,null,{"$f":"Munka3!A245","v":"7722 Videokazetta, lemez kölcsönzése"}]
[null,null,null,null,null,null,null,null,null,null,null,null,null,null,null,null,{"$f":"Munka3!A246","v":"7729 Egyéb személyi használatú, háztartási cikk kölcsönzése"}]
[null,null,null,null,null,null,null,null,null,null,null,null,null,null,null,null,{"$f":"Munka3!A247","v":"7731 Mezőgazdasági gép kölcsönzése"}]
[null,null,null,null,null,null,null,null,null,null,null,null,null,null,null,null,{"$f":"Munka3!A248","v":"7732 Építőipari gép kölcsönzése"}]
[null,null,null,null,null,null,null,null,null,null,null,null,null,null,null,null,{"$f":"Munka3!A249","v":"7733 Irodagép kölcsönzése (beleértve: számítógép) "}]
[null,null,null,null,null,null,null,null,null,null,null,null,null,null,null,null,{"$f":"Munka3!A250","v":"7911 Utazásközvetítés"}]
[null,null,null,null,null,null,null,null,null,null,null,null,null,null,null,null,{"$f":"Munka3!A251","v":"7912 Utazásszervezés"}]
[null,null,null,null,null,null,null,null,null,null,null,null,null,null,null,null,{"$f":"Munka3!A252","v":"8110 Építményüzemeltetés"}]
[null,null,null,null,null,null,null,null,null,null,null,null,null,null,null,null,{"$f":"Munka3!A253","v":"8121 Általános épülettakarítás"}]
[null,null,null,null,null,null,null,null,null,null,null,null,null,null,null,null,{"$f":"Munka3!A254","v":"8129 Egyéb takarítás"}]
[null,null,null,null,null,null,null,null,null,null,null,null,null,null,null,null,{"$f":"Munka3!A255","v":"8211 Összetett adminisztratív szolgáltatás"}]
[null,null,null,null,null,null,null,null,null,null,null,null,null,null,null,null,{"$f":"Munka3!A256","v":"8219 Fénymásolás, egyéb irodai szolgáltatás"}]
[null,null,null,null,null,null,null,null,null,null,null,null,null,null,null,null,{"$f":"Munka3!A257","v":"8220 Telefoninformáció"}]
[null,null,null,null,null,null,null,null,null,null,null,null,null,null,null,null,{"$f":"Munka3!A258","v":"8291 Követelésbehajtás"}]
[null,null,null,null,null,null,null,null,null,null,null,null,null,null,null,null,{"$f":"Munka3!A259","v":"8411 Általános közigazgatás"}]
[null,null,null,null,null,null,null,null,null,null,null,null,null,null,null,null,{"$f":"Munka3!A260","v":"8510 Iskolai előkészítő oktatás"}]
[null,null,null,null,null,null,null,null,null,null,null,null,null,null,null,null,{"$f":"Munka3!A261","v":"8520 Alapfokú oktatás"}]
[null,null,null,null,null,null,null,null,null,null,null,null,null,null,null,null,{"$f":"Munka3!A262","v":"8531 Általános középfokú oktatás"}]
[null,null,null,null,null,null,null,null,null,null,null,null,null,null,null,null,{"$f":"Munka3!A263","v":"8532 Szakmai középfokú oktatás"}]
[null,null,null,null,null,null,null,null,null,null,null,null,null,null,null,null,{"$f":"Munka3!A264","v":"8541 Felső szintű, nem felsőfokú oktatás"}]
[null,null,null,null,null,null,null,null,null,null,null,null,null,null,null,null,{"$f":"Munka3!A265","v":"8542 Felsőfokú oktatás"}]
[null,null,null,null,null,null,null,null,null,null,null,null,null,null,null,null,{"$f":"Munka3!A266","v":"8551 Sport, szabadidős képzés"}]
[null,null,null,null,null,null,null,null,null,null,null,null,null,null,null,null,{"$f":"Munka3!A267","v":"8552 Kulturális képzés"}]
[null,null,null,null,null,null,null,null,null,null,null,null,null,null,null,null,{"$f":"Munka3!A268","v":"8553 Járművezető-oktatás"}]
[null,null,null,null,null,null,null,null,null,null,null,null,null,null,null,null,{"$f":"Munka3!A269","v":"8559 M.n.s. egyéb oktatás "}]
[null,null,null,null,null,null,null,null,null,null,null,null,null,null,null,null,{"$f":"Munka3!A270","v":"8560 Oktatást kiegészítő tevékenység"}]
[null,null,null,null,null,null,null,null,null,null,null,null,null,null,null,null,{"$f":"Munka3!A271","v":"8621 Általános járóbeteg-ellátás"}]
[null,null,null,null,null,null,null,null,null,null,null,null,null,null,null,null,{"$f":"Munka3!A272","v":"8622 Szakorvosi járóbeteg-ellátás"}]
[null,null,null,null,null,null,null,null,null,null,null,null,null,null,null,null,{"$f":"Munka3!A273","v":"8623 Fogorvosi járóbeteg-ellátás"}]
[null,null,null,null,null,null,null,null,null,null,null,null,null,null,null,null,{"$f":"Munka3!A274","v":"8690 Egyéb humán-egészségügyi ellátás"}]
[null,null,null,null,null,null,null,null,null,null,null,null,null,null,null,null,{"$f":"Munka3!A275","v":"8710 Bentlakásos, nem kórházi ápolás"}]
[null,null,null,null,null,null,null,null,null,null,null,null,null,null,null,null,{"$f":"Munka3!A276","v":"8790 Egyéb bentlakásos ellátás"}]
[null,null,null,null,null,null,null,null,null,null,null,null,null,null,null,null,{"$f":"Munka3!A277","v":"8810 Idősek, fogyatékosok szociális ellátása bentlakás nélkül"}]
[null,null,null,null,null,null,null,null,null,null,null,null,null,null,null,null,{"$f":"Munka3!A278","v":"8891 Gyermekek napközbeni ellátása"}]
[null,null,null,null,null,null,null,null,null,null,null,null,null,null,null,null,{"$f":"Munka3!A279","v":"8899 M.n.s. egyéb szociális ellátás bentlakás nélkül"}]
[null,null,null,null,null,null,null,null,null,null,null,null,null,null,null,null,{"$f":"Munka3!A280","v":"9004 Művészeti létesítmények működtetése"}]
[null,null,null,null,null,null,null,null,null,null,null,null,null,null,null,null,{"$f":"Munka3!A281","v":"9101 Könyvtári, levéltári tevékenység"}]
[null,null,null,null,null,null,null,null,null,null,null,null,null,null,null,null,{"$f":"Munka3!A282","v":"9200 Szerencsejáték, fogadás"}]
[null,null,null,null,null,null,null,null,null,null,null,null,null,null,null,null,{"$f":"Munka3!A283","v":"9311 Sportlétesítmény működtetése"}]
[null,null,null,null,null,null,null,null,null,null,null,null,null,null,null,null,{"$f":"Munka3!A284","v":"9312 Sportegyesületi tevékenység"}]
[null,null,null,null,null,null,null,null,null,null,null,null,null,null,null,null,{"$f":"Munka3!A285","v":"9313 Testedzési szolgáltatás "}]
[null,null,null,null,null,null,null,null,null,null,null,null,null,null,null,null,{"$f":"Munka3!A286","v":"9319 Egyéb sporttevékenység"}]
[null,null,null,null,null,null,null,null,null,null,null,null,null,null,null,null,{"$f":"Munka3!A287","v":"9329 M.n.s. egyéb szórakoztatás, szabadidős tevékenység"}]
[null,null,null,null,null,null,null,null,null,null,null,null,null,null,null,null,{"$f":"Munka3!A288","v":"9411 Vállalkozói, munkaadói érdekképviselet"}]
[null,null,null,null,null,null,null,null,null,null,null,null,null,null,null,null,{"$f":"Munka3!A289","v":"9412 Szakmai érdekképviselet"}]
[null,null,null,null,null,null,null,null,null,null,null,null,null,null,null,null,{"$f":"Munka3!A290","v":"9420 Szakszervezeti tevékenység"}]
[null,null,null,null,null,null,null,null,null,null,null,null,null,null,null,null,{"$f":"Munka3!A291","v":"9492 Politikai tevékenység"}]
[null,null,null,null,null,null,null,null,null,null,null,null,null,null,null,null,{"$f":"Munka3!A292","v":"9499 M.n.s. egyéb közösségi, társadalmi tevékenység"}]
[null,null,null,null,null,null,null,null,null,null,null,null,null,null,null,null,{"$f":"Munka3!A293","v":"9511 Számítógép, -periféria javítása"}]
[null,null,null,null,null,null,null,null,null,null,null,null,null,null,null,null,{"$f":"Munka3!A294","v":"9512 Kommunikációs eszköz javítása"}]
[null,null,null,null,null,null,null,null,null,null,null,null,null,null,null,null,{"$f":"Munka3!A295","v":"9521 Szórakoztatóelektronikai cikk javítása"}]
[null,null,null,null,null,null,null,null,null,null,null,null,null,null,null,null,{"$f":"Munka3!A296","v":"9522 Háztartási gép, háztartási, kerti eszköz javítása"}]
[null,null,null,null,null,null,null,null,null,null,null,null,null,null,null,null,{"$f":"Munka3!A297","v":"9523 Lábbeli, egyéb bőráru javítása"}]
[null,null,null,null,null,null,null,null,null,null,null,null,null,null,null,null,{"$f":"Munka3!A298","v":"9524 Bútor, lakberendezési tárgy javítása"}]
[null,null,null,null,null,null,null,null,null,null,null,null,null,null,null,null,{"$f":"Munka3!A299","v":"9529 Egyéb személyi-, háztartási cikk javítása"}]
[null,null,null,null,null,null,null,null,null,null,null,null,null,null,null,null,{"$f":"Munka3!A300","v":"9601 Textil, szőrme mosása, tisztítása"}]
[null,null,null,null,null,null,null,null,null,null,null,null,null,null,null,null,{"$f":"Munka3!A301","v":"9602 Fodrászat, szépségápolás"}]
[null,null,null,null,null,null,null,null,null,null,null,null,null,null,null,null,{"$f":"Munka3!A302","v":"9603 Temetkezés, temetkezést kiegészítő szolgáltatás"}]
[null,null,null,null,null,null,null,null,null,null,null,null,null,null,null,null,{"$f":"Munka3!#REF!","v":{"$error":"#REF!"}}]
[null,null,null,null,null,null,null,null,null,null,null,null,null,null,null,null,{"$f":"Munka3!#REF!","v":{"$error":"#REF!"}}]
[null,null,null,null,null,null,null,null,null,null,null,null,null,null,null,null,{"$f":"Munka3!#REF!","v":{"$error":"#REF!"}}]
[null,null,null,null,null,null,null,null,null,null,null,null,null,null,null,null,{"$f":"Munka3!#REF!","v":{"$error":"#REF!"}}]
[null,null,null,null,null,null,null,null,null,null,null,null,null,null,null,null,{"$f":"Munka3!#REF!","v":{"$error":"#REF!"}}]
[null,null,null,null,null,null,null,null,null,null,null,null,null,null,null,null,{"$f":"Munka3!#REF!","v":{"$error":"#REF!"}}]
[null,null,null,null,null,null,null,null,null,null,null,null,null,null,null,null,{"$f":"Munka3!#REF!","v":{"$error":"#REF!"}}]
[null,null,null,null,null,null,null,null,null,null,null,null,null,null,null,null,{"$f":"Munka3!#REF!","v":{"$error":"#REF!"}}]
[null,null,null,null,null,null,null,null,null,null,null,null,null,null,null,null,{"$f":"Munka3!#REF!","v":{"$error":"#REF!"}}]
[null,null,null,null,null,null,null,null,null,null,null,null,null,null,null,null,{"$f":"Munka3!#REF!","v":{"$error":"#REF!"}}]
[null,null,null,null,null,null,null,null,null,null,null,null,null,null,null,null,{"$f":"Munka3!#REF!","v":{"$error":"#REF!"}}]
[null,null,null,null,null,null,null,null,null,null,null,null,null,null,null,null,{"$f":"Munka3!#REF!","v":{"$error":"#REF!"}}]
[null,null,null,null,null,null,null,null,null,null,null,null,null,null,null,null,{"$f":"Munka3!#REF!","v":{"$error":"#REF!"}}]
[null,null,null,null,null,null,null,null,null,null,null,null,null,null,null,null,{"$f":"Munka3!#REF!","v":{"$error":"#REF!"}}]
[null,null,null,null,null,null,null,null,null,null,null,null,null,null,null,null,{"$f":"Munka3!#REF!","v":{"$error":"#REF!"}}]
[null,null,null,null,null,null,null,null,null,null,null,null,null,null,null,null,{"$f":"Munka3!#REF!","v":{"$error":"#REF!"}}]
[null,null,null,null,null,null,null,null,null,null,null,null,null,null,null,null,{"$f":"Munka3!#REF!","v":{"$error":"#REF!"}}]
[null,null,null,null,null,null,null,null,null,null,null,null,null,null,null,null,{"$f":"Munka3!#REF!","v":{"$error":"#REF!"}}]
[null,null,null,null,null,null,null,null,null,null,null,null,null,null,null,null,{"$f":"Munka3!#REF!","v":{"$error":"#REF!"}}]
[null,null,null,null,null,null,null,null,null,null,null,null,null,null,null,null,{"$f":"Munka3!#REF!","v":{"$error":"#REF!"}}]
[null,null,null,null,null,null,null,null,null,null,null,null,null,null,null,null,{"$f":"Munka3!#REF!","v":{"$error":"#REF!"}}]
[null,null,null,null,null,null,null,null,null,null,null,null,null,null,null,null,{"$f":"Munka3!#REF!","v":{"$error":"#REF!"}}]
[null,null,null,null,null,null,null,null,null,null,null,null,null,null,null,null,{"$f":"Munka3!#REF!","v":{"$error":"#REF!"}}]
[null,null,null,null,null,null,null,null,null,null,null,null,null,null,null,null,{"$f":"Munka3!#REF!","v":{"$error":"#REF!"}}]
[null,null,null,null,null,null,null,null,null,null,null,null,null,null,null,null,{"$f":"Munka3!#REF!","v":{"$error":"#REF!"}}]
[null,null,null,null,null,null,null,null,null,null,null,null,null,null,null,null,{"$f":"Munka3!#REF!","v":{"$error":"#REF!"}}]
[null,null,null,null,null,null,null,null,null,null,null,null,null,null,null,null,{"$f":"Munka3!#REF!","v":{"$error":"#REF!"}}]
[null,null,null,null,null,null,null,null,null,null,null,null,null,null,null,null,{"$f":"Munka3!#REF!","v":{"$error":"#REF!"}}]
[null,null,null,null,null,null,null,null,null,null,null,null,null,null,null,null,{"$f":"Munka3!#REF!","v":{"$error":"#REF!"}}]
[null,null,null,null,null,null,null,null,null,null,null,null,null,null,null,null,{"$f":"Munka3!#REF!","v":{"$error":"#REF!"}}]
[null,null,null,null,null,null,null,null,null,null,null,null,null,null,null,null,{"$f":"Munka3!#REF!","v":{"$error":"#REF!"}}]
[null,null,null,null,null,null,null,null,null,null,null,null,null,null,null,null,{"$f":"Munka3!#REF!","v":{"$error":"#REF!"}}]
[null,null,null,null,null,null,null,null,null,null,null,null,null,null,null,null,{"$f":"Munka3!#REF!","v":{"$error":"#REF!"}}]
[null,null,null,null,null,null,null,null,null,null,null,null,null,null,null,null,{"$f":"Munka3!#REF!","v":{"$error":"#REF!"}}]
[null,null,null,null,null,null,null,null,null,null,null,null,null,null,null,null,{"$f":"Munka3!#REF!","v":{"$error":"#REF!"}}]
[null,null,null,null,null,null,null,null,null,null,null,null,null,null,null,null,{"$f":"Munka3!#REF!","v":{"$error":"#REF!"}}]
[null,null,null,null,null,null,null,null,null,null,null,null,null,null,null,null,{"$f":"Munka3!#REF!","v":{"$error":"#REF!"}}]
[null,null,null,null,null,null,null,null,null,null,null,null,null,null,null,null,{"$f":"Munka3!#REF!","v":{"$error":"#REF!"}}]
[null,null,null,null,null,null,null,null,null,null,null,null,null,null,null,null,{"$f":"Munka3!#REF!","v":{"$error":"#REF!"}}]
[null,null,null,null,null,null,null,null,null,null,null,null,null,null,null,null,{"$f":"Munka3!#REF!","v":{"$error":"#REF!"}}]
[null,null,null,null,null,null,null,null,null,null,null,null,null,null,null,null,{"$f":"Munka3!#REF!","v":{"$error":"#REF!"}}]
[null,null,null,null,null,null,null,null,null,null,null,null,null,null,null,null,{"$f":"Munka3!#REF!","v":{"$error":"#REF!"}}]
[null,null,null,null,null,null,null,null,null,null,null,null,null,null,null,null,{"$f":"Munka3!#REF!","v":{"$error":"#REF!"}}]
[null,null,null,null,null,null,null,null,null,null,null,null,null,null,null,null,{"$f":"Munka3!#REF!","v":{"$error":"#REF!"}}]
[null,null,null,null,null,null,null,null,null,null,null,null,null,null,null,null,{"$f":"Munka3!#REF!","v":{"$error":"#REF!"}}]
[null,null,null,null,null,null,null,null,null,null,null,null,null,null,null,null,{"$f":"Munka3!#REF!","v":{"$error":"#REF!"}}]
[null,null,null,null,null,null,null,null,null,null,null,null,null,null,null,null,{"$f":"Munka3!#REF!","v":{"$error":"#REF!"}}]
[null,null,null,null,null,null,null,null,null,null,null,null,null,null,null,null,{"$f":"Munka3!#REF!","v":{"$error":"#REF!"}}]
[null,null,null,null,null,null,null,null,null,null,null,null,null,null,null,null,{"$f":"Munka3!#REF!","v":{"$error":"#REF!"}}]
[null,null,null,null,null,null,null,null,null,null,null,null,null,null,null,null,{"$f":"Munka3!#REF!","v":{"$error":"#REF!"}}]
[null,null,null,null,null,null,null,null,null,null,null,null,null,null,null,null,{"$f":"Munka3!#REF!","v":{"$error":"#REF!"}}]
[null,null,null,null,null,null,null,null,null,null,null,null,null,null,null,null,{"$f":"Munka3!#REF!","v":{"$error":"#REF!"}}]
[null,null,null,null,null,null,null,null,null,null,null,null,null,null,null,null,{"$f":"Munka3!#REF!","v":{"$error":"#REF!"}}]
[null,null,null,null,null,null,null,null,null,null,null,null,null,null,null,null,{"$f":"Munka3!#REF!","v":{"$error":"#REF!"}}]
[null,null,null,null,null,null,null,null,null,null,null,null,null,null,null,null,{"$f":"Munka3!#REF!","v":{"$error":"#REF!"}}]
[null,null,null,null,null,null,null,null,null,null,null,null,null,null,null,null,{"$f":"Munka3!#REF!","v":{"$error":"#REF!"}}]
[null,null,null,null,null,null,null,null,null,null,null,null,null,null,null,null,{"$f":"Munka3!#REF!","v":{"$error":"#REF!"}}]
[null,null,null,null,null,null,null,null,null,null,null,null,null,null,null,null,{"$f":"Munka3!#REF!","v":{"$error":"#REF!"}}]
[null,null,null,null,null,null,null,null,null,null,null,null,null,null,null,null,{"$f":"Munka3!#REF!","v":{"$error":"#REF!"}}]
[null,null,null,null,null,null,null,null,null,null,null,null,null,null,null,null,{"$f":"Munka3!#REF!","v":{"$error":"#REF!"}}]
[null,null,null,null,null,null,null,null,null,null,null,null,null,null,null,null,{"$f":"Munka3!#REF!","v":{"$error":"#REF!"}}]
[null,null,null,null,null,null,null,null,null,null,null,null,null,null,null,null,{"$f":"Munka3!#REF!","v":{"$error":"#REF!"}}]
[null,null,null,null,null,null,null,null,null,null,null,null,null,null,null,null,{"$f":"Munka3!#REF!","v":{"$error":"#REF!"}}]
[null,null,null,null,null,null,null,null,null,null,null,null,null,null,null,null,{"$f":"Munka3!#REF!","v":{"$error":"#REF!"}}]
[null,null,null,null,null,null,null,null,null,null,null,null,null,null,null,null,{"$f":"Munka3!#REF!","v":{"$error":"#REF!"}}]
[null,null,null,null,null,null,null,null,null,null,null,null,null,null,null,null,{"$f":"Munka3!#REF!","v":{"$error":"#REF!"}}]
[null,null,null,null,null,null,null,null,null,null,null,null,null,null,null,null,{"$f":"Munka3!#REF!","v":{"$error":"#REF!"}}]
[null,null,null,null,null,null,null,null,null,null,null,null,null,null,null,null,{"$f":"Munka3!#REF!","v":{"$error":"#REF!"}}]
[null,null,null,null,null,null,null,null,null,null,null,null,null,null,null,null,{"$f":"Munka3!#REF!","v":{"$error":"#REF!"}}]
[null,null,null,null,null,null,null,null,null,null,null,null,null,null,null,null,{"$f":"Munka3!#REF!","v":{"$error":"#REF!"}}]
[null,null,null,null,null,null,null,null,null,null,null,null,null,null,null,null,{"$f":"Munka3!#REF!","v":{"$error":"#REF!"}}]
[null,null,null,null,null,null,null,null,null,null,null,null,null,null,null,null,{"$f":"Munka3!#REF!","v":{"$error":"#REF!"}}]
[null,null,null,null,null,null,null,null,null,null,null,null,null,null,null,null,{"$f":"Munka3!#REF!","v":{"$error":"#REF!"}}]
[null,null,null,null,null,null,null,null,null,null,null,null,null,null,null,null,{"$f":"Munka3!#REF!","v":{"$error":"#REF!"}}]
[null,null,null,null,null,null,null,null,null,null,null,null,null,null,null,null,{"$f":"Munka3!#REF!","v":{"$error":"#REF!"}}]
[null,null,null,null,null,null,null,null,null,null,null,null,null,null,null,null,{"$f":"Munka3!#REF!","v":{"$error":"#REF!"}}]
[null,null,null,null,null,null,null,null,null,null,null,null,null,null,null,null,{"$f":"Munka3!#REF!","v":{"$error":"#REF!"}}]
[null,null,null,null,null,null,null,null,null,null,null,null,null,null,null,null,{"$f":"Munka3!#REF!","v":{"$error":"#REF!"}}]
[null,null,null,null,null,null,null,null,null,null,null,null,null,null,null,null,{"$f":"Munka3!#REF!","v":{"$error":"#REF!"}}]
[null,null,null,null,null,null,null,null,null,null,null,null,null,null,null,null,{"$f":"Munka3!#REF!","v":{"$error":"#REF!"}}]
[null,null,null,null,null,null,null,null,null,null,null,null,null,null,null,null,{"$f":"Munka3!#REF!","v":{"$error":"#REF!"}}]
[null,null,null,null,null,null,null,null,null,null,null,null,null,null,null,null,{"$f":"Munka3!#REF!","v":{"$error":"#REF!"}}]
[null,null,null,null,null,null,null,null,null,null,null,null,null,null,null,null,{"$f":"Munka3!#REF!","v":{"$error":"#REF!"}}]
[null,null,null,null,null,null,null,null,null,null,null,null,null,null,null,null,{"$f":"Munka3!#REF!","v":{"$error":"#REF!"}}]
[null,null,null,null,null,null,null,null,null,null,null,null,null,null,null,null,{"$f":"Munka3!#REF!","v":{"$error":"#REF!"}}]
[null,null,null,null,null,null,null,null,null,null,null,null,null,null,null,null,{"$f":"Munka3!#REF!","v":{"$error":"#REF!"}}]
[null,null,null,null,null,null,null,null,null,null,null,null,null,null,null,null,{"$f":"Munka3!#REF!","v":{"$error":"#REF!"}}]
[null,null,null,null,null,null,null,null,null,null,null,null,null,null,null,null,{"$f":"Munka3!#REF!","v":{"$error":"#REF!"}}]
[null,null,null,null,null,null,null,null,null,null,null,null,null,null,null,null,{"$f":"Munka3!#REF!","v":{"$error":"#REF!"}}]
[null,null,null,null,null,null,null,null,null,null,null,null,null,null,null,null,{"$f":"Munka3!#REF!","v":{"$error":"#REF!"}}]
[null,null,null,null,null,null,null,null,null,null,null,null,null,null,null,null,{"$f":"Munka3!#REF!","v":{"$error":"#REF!"}}]
[null,null,null,null,null,null,null,null,null,null,null,null,null,null,null,null,{"$f":"Munka3!#REF!","v":{"$error":"#REF!"}}]
[null,null,null,null,null,null,null,null,null,null,null,null,null,null,null,null,{"$f":"Munka3!#REF!","v":{"$error":"#REF!"}}]
[null,null,null,null,null,null,null,null,null,null,null,null,null,null,null,null,{"$f":"Munka3!#REF!","v":{"$error":"#REF!"}}]
[null,null,null,null,null,null,null,null,null,null,null,null,null,null,null,null,{"$f":"Munka3!#REF!","v":{"$error":"#REF!"}}]
[null,null,null,null,null,null,null,null,null,null,null,null,null,null,null,null,{"$f":"Munka3!#REF!","v":{"$error":"#REF!"}}]
[null,null,null,null,null,null,null,null,null,null,null,null,null,null,null,null,{"$f":"Munka3!#REF!","v":{"$error":"#REF!"}}]
[null,null,null,null,null,null,null,null,null,null,null,null,null,null,null,null,{"$f":"Munka3!#REF!","v":{"$error":"#REF!"}}]
[null,null,null,null,null,null,null,null,null,null,null,null,null,null,null,null,{"$f":"Munka3!#REF!","v":{"$error":"#REF!"}}]
[null,null,null,null,null,null,null,null,null,null,null,null,null,null,null,null,{"$f":"Munka3!#REF!","v":{"$error":"#REF!"}}]
[null,null,null,null,null,null,null,null,null,null,null,null,null,null,null,null,{"$f":"Munka3!#REF!","v":{"$error":"#REF!"}}]
[null,null,null,null,null,null,null,null,null,null,null,null,null,null,null,null,{"$f":"Munka3!#REF!","v":{"$error":"#REF!"}}]
[null,null,null,null,null,null,null,null,null,null,null,null,null,null,null,null,{"$f":"Munka3!#REF!","v":{"$error":"#REF!"}}]
[null,null,null,null,null,null,null,null,null,null,null,null,null,null,null,null,{"$f":"Munka3!#REF!","v":{"$error":"#REF!"}}]
[null,null,null,null,null,null,null,null,null,null,null,null,null,null,null,null,{"$f":"Munka3!#REF!","v":{"$error":"#REF!"}}]
[null,null,null,null,null,null,null,null,null,null,null,null,null,null,null,null,{"$f":"Munka3!#REF!","v":{"$error":"#REF!"}}]
[null,null,null,null,null,null,null,null,null,null,null,null,null,null,null,null,{"$f":"Munka3!#REF!","v":{"$error":"#REF!"}}]
[null,null,null,null,null,null,null,null,null,null,null,null,null,null,null,null,{"$f":"Munka3!#REF!","v":{"$error":"#REF!"}}]
[null,null,null,null,null,null,null,null,null,null,null,null,null,null,null,null,{"$f":"Munka3!#REF!","v":{"$error":"#REF!"}}]
[null,null,null,null,null,null,null,null,null,null,null,null,null,null,null,null,{"$f":"Munka3!#REF!","v":{"$error":"#REF!"}}]
[null,null,null,null,null,null,null,null,null,null,null,null,null,null,null,null,{"$f":"Munka3!#REF!","v":{"$error":"#REF!"}}]
[null,null,null,null,null,null,null,null,null,null,null,null,null,null,null,null,{"$f":"Munka3!#REF!","v":{"$error":"#REF!"}}]
[null,null,null,null,null,null,null,null,null,null,null,null,null,null,null,null,{"$f":"Munka3!#REF!","v":{"$error":"#REF!"}}]
[null,null,null,null,null,null,null,null,null,null,null,null,null,null,null,null,{"$f":"Munka3!#REF!","v":{"$error":"#REF!"}}]
[null,null,null,null,null,null,null,null,null,null,null,null,null,null,null,null,{"$f":"Munka3!#REF!","v":{"$error":"#REF!"}}]
[null,null,null,null,null,null,null,null,null,null,null,null,null,null,null,null,{"$f":"Munka3!#REF!","v":{"$error":"#REF!"}}]
[null,null,null,null,null,null,null,null,null,null,null,null,null,null,null,null,{"$f":"Munka3!#REF!","v":{"$error":"#REF!"}}]
[null,null,null,null,null,null,null,null,null,null,null,null,null,null,null,null,{"$f":"Munka3!#REF!","v":{"$error":"#REF!"}}]
[null,null,null,null,null,null,null,null,null,null,null,null,null,null,null,null,{"$f":"Munka3!#REF!","v":{"$error":"#REF!"}}]
[null,null,null,null,null,null,null,null,null,null,null,null,null,null,null,null,{"$f":"Munka3!#REF!","v":{"$error":"#REF!"}}]
[null,null,null,null,null,null,null,null,null,null,null,null,null,null,null,null,{"$f":"Munka3!#REF!","v":{"$error":"#REF!"}}]
[null,null,null,null,null,null,null,null,null,null,null,null,null,null,null,null,{"$f":"Munka3!#REF!","v":{"$error":"#REF!"}}]
[null,null,null,null,null,null,null,null,null,null,null,null,null,null,null,null,{"$f":"Munka3!#REF!","v":{"$error":"#REF!"}}]

{"sheet":"Munka4","index":3,"n_rows":41,"n_cols":32,"rows_kept":41,"cut":false,"hidden":true,"merged":[[21,23,21,24],[33,11,33,15],[2,17,2,18],[15,17,15,19],[24,17,24,18],[31,17,31,21],[20,4,20,6],[33,4,33,5],[20,8,20,10],[29,8,29,9],[26,11,26,12],[37,0,37,1],[37,8,37,9],[29,4,29,5],[2,29,2,30],[1,0,1,1],[14,0,14,1],[19,0,19,2],[2,8,2,9],[15,8,15,9],[2,23,2,24],[10,23,10,24],[16,23,16,27],[2,11,2,12],[16,11,16,13],[28,0,28,1],[2,4,2,6]]}
[]
["Épület DÍJTÉTELEK ‰-ben"]
["Kockázati osztály","Tűz+elemi kár+ \nvezetékes víz+üveg",null,null,"Ingóság",null,null,null,"DÍJTÉTELEK ‰-ben",null,null,"DÍJTÉTELEK ‰-ben",null,null,null,null,null,"DÍJTÉTELEK ‰-ben",null,null,null,null,null,"DÍJTÉTELEK ‰-ben",null,null,null,null,null,"ÜVEG KIEGÉSZÍTŐ"]
[1,0.8,null,null,"Kockázati osztály","Tűz+elemi kár+ \nvezetékes víz+üveg","Betöréses lopás\nrablás",null,"Kockázati osztály","Üzemszünet",null,"Kockázati osztály","Géptörés",null,null,null,null,"Kockázati osztály","ELBER",null,null,null,null,"Kockázati osztály","Felelősség",null,null,null,null,"Éves limit eFt","Normál üveg díj Ft","Normál és speciális üveg díj Ft"]
[2,0.91,null,null,1,1.1200000000000001,1.5,null,1,0.53,null,1,3.71,null,null,null,null,1,3.41,null,null,null,null,1,0.24,null,null,null,null,50,6360,9540]
[3,1.07,null,null,2,1.27,1.92,null,2,0.63,null,2,4.6100000000000003,null,null,null,null,2,4.24,null,null,null,null,2,0.3,null,null,null,null,100,12720,19080]
[4,1.19,null,null,3,1.46,2.4700000000000002,null,3,0.77,null,3,6.39,null,null,null,null,3,5.88,null,null,null,null,3,0.33,null,null,null,null,150,18285,27425]
[5,1.51,null,null,4,1.59,3.02,null,4,0.89,null,4,9.8800000000000008,null,null,null,null,4,9.09,null,null,null,null,4,0.45,null,null,null,null,200,24380,34130]
[6,1.99,null,null,5,1.98,4.21,null,5,1.18,null,5,17.03,null,null,null,null,5,15.67,null,null,null,null,5,0.84,null,null,null,null,250,30475,42665]
[7,2.62,null,null,6,2.56,"nincs",null,6,1.61,null,6,null,null,null,null,null,6,null,null,null,null,null,null,null,null,null,null,null,300,34980,48970]
[8,3.18,null,null,7,3.32,"nincs",null,7,2.21,null,7,null,null,null,null,null,7,null,null,null,null,null,"Módozati szorzók",null,null,null,null,null,350,40810,55095]
[9,3.98,null,null,8,3.96,"nincs",null,8,2.79,null,8,null,null,null,null,null,8,null,null,null,null,null,"Alap",0.75,null,null,null,null,400,44520,60100]
[10,5.57,null,null,9,4.8600000000000003,"nincs",null,9,3.62,null,9,null,null,null,null,null,9,null,null,null,null,null,"Teljes",1,null,null,null,null,450,50085,67615]
[null,null,null,null,10,6.68,"nincs",null,10,5.27,null,10,null,null,null,null,null,10,null,null,null,null,null,"Extra",1.3,null,null,null,null,500,53000,68900]
["Épület Módozati szorzók",null,null,null,null,null,null,null,null,null,null,null,null,null,null,null,null,null,null,null,null,null,null,null,null,null,null,null,null,600,63600,82680]
["Alap",0.6,null,null,"Módozati szorzók","Bet. Loppal","Bet nélkül",null,"Módozati szorzók",null,null,null,null,null,null,null,null,"Volumenszorzók Bizosítási összeg szerint ELBER",null,null,null,null,null,null,null,null,null,null,null,700,70490,91635]
["Teljes",0.8,null,null,"Alap",0.6,0.6,null,"Alap",0.7,null,"Volumenszorzók Bizosítási összeg szerint Géptörés",null,null,null,null,null,0,10000000,1.6,null,null,null,"Önrészesedés szorzó",null,null,null,null,null,800,80560,100700]
["Extra",1,null,null,"Teljes",0.8,0.8,null,"Teljes",1,null,0,10000000,1.6,null,null,null,10000001,25000000,1.5,null,null,null,null,25000,50000,100000,200000,null,900,85860,107325]
["All Risks",1.1000000000000001,null,null,"Extra",1,1,null,"Extra",1.4,null,10000001,25000000,1.5,null,null,null,25000001,50000000,1.3,null,null,null,0.1,1,0.95,0.85,0.7,null,1000,95400,119250]
["Épület Volumenszorzók Bizosítási összeg szerint TEKVÜ",null,null,null,"All Risks",1.1000000000000001,1.1000000000000001,null,"All Risks",1.6,null,25000001,50000000,1.3,null,null,null,50000001,100000000,1,null,null,null,0.2,0.92,0.87,0.78,0.64]
[0,10000000,2,null,"Volumenszorzók Bizosítási összeg szerint TEKVÜ",null,null,"50 felett","Volumenszorzók Bizosítási összeg szerint TEKVÜ",null,null,50000001,100000000,1,null,null,null,100000001,200000000,0.85]
[10000001,25000000,1.6,null,0,10000000,2,null,0,10000000,2,100000001,200000000,0.85,null,null,null,200000001,500000000,0.65,null,null,null,"Pótdíjak"]
[25000001,50000000,1.3,null,10000001,25000000,1.6,null,10000001,25000000,1.6,200000001,500000000,0.65,null,null,null,null,null,null,null,null,null,"Bérlői",0.3]
[50000001,100000000,1,null,25000001,50000000,1.3,null,25000001,50000000,1.3,null,null,null,null,null,null,null,null,null,null,null,null,"Bérbeadói",0.3]
[100000001,200000000,0.8,null,50000001,100000000,1,0.4,50000001,100000000,1,null,null,null,null,null,null,"Átlagéletkor engedmény",null,null,null,null,null,"Kiterjesztett termék",1]
[200000001,500000000,0.55000000000000004,null,100000001,200000000,0.8,0.32,100000001,200000000,0.8,null,null,null,null,null,null,"0-2",0.65,null,null,null,null,"Szálloda 1. (S,M,L)",0.3]
[null,null,null,null,200000001,500000000,0.55000000000000004,0.22,200000001,500000000,0.55000000000000004,"Átlagéletkor engedmény",null,null,null,null,null,"2,01-3",0.8,null,null,null,null,"szálloda 2. (M,L)",0.8]
[null,null,null,null,null,null,null,null,null,null,null,"0-2",0.5,null,null,null,null,"3,01-5",0.9,null,null,null,null,"Környezetszennyezés",0.5]
["Épület Önrészesedés szorzó",null,null,null,null,null,null,null,null,null,null,"2,01-5",0.65,null,null,null,null,"5,01-",1,null,null,null,null,"EU kiterjesztés",0.5]
[0,1.45,null,null,"Volumenszorzók Betlop 50 M Ft-ig)",null,null,null,"Önrészesedés szorzó",null,null,"5,01-10",0.75,null,null,null,null,null,null,null,null,null,null,"Rakodás (M,L)",0.4]
[5000,1.25,null,null,"Bizt. Öszeg ( eFt. )","Volumenszorzó",null,null,"3 nap",1,null,"10,01-15",0.9,null,null,null,null,null,null,null,null,null,null,"Termék",0.8]
[10000,1.1200000000000001,null,null,250000,{"$f":"4.1646*(E32/1000)^-0.348","v":0.60966346740946231},null,null,"5 nap",0.9,null,"15 felett",1,null,null,null,null,"Önrészesedés szorzó",null,null,null,null,null,"Üzemi",0.6]
[25000,1,null,null,null,null,null,null,"7 nap",0.8,null,null,null,null,null,null,null,null,25000,50000,100000,200000,null,"Szolgáltatói",0.8]
[50000,0.92,null,null,"Önrészesedés szorzó",null,null,null,null,null,null,"Önrészesedés szorzó",null,null,null,null,null,0.1,1,0.95,0.85,0.7,null,"Oktatói",0.2]
[100000,0.82,null,null,0,1.45,null,null,null,null,null,null,25000,50000,100000,200000,null,0.2,0.92,0.87,0.78,0.64,null,"Szerviz",0.6]
[200000,0.7,null,null,5000,1.25,null,null,null,null,null,0.1,1,0.95,0.85,0.7,null,null,null,null,null,null,null,"Alvállalkozói kiterjesztés",0.2]
[null,null,null,null,10000,1.1200000000000001,null,null,null,null,null,0.2,0.92,0.87,0.78,0.64,null,null,null,null,null,null,null,"Szolgáltatás tárgyában okozott károk",0.4]
["Volumenszorzók  TEKV",null,null,null,25000,1,null,null,"Volumenszorzók  TEKV",null,null,null,null,null,null,null,null,null,null,null,null,null,null,"Építés-Szerelés",0.1]
["Bizt. Összeg ( eFt. )","Volumenszorzó",null,null,50000,0.92,null,null,"Bizt. Összeg ( eFt. )","Volumenszorzó"]
[250000,{"$f":"4.1646*(A40/1000)^-0.348","v":0.60966346740946231},null,null,100000,0.82,null,null,250000,{"$f":"4.1646*(I40/1000)^-0.348","v":0.60966346740946231}]
[null,null,null,null,200000,0.7]

{"sheet":"ÉpületIngóság","index":4,"n_rows":38,"n_cols":23,"rows_kept":38,"cut":false,"hidden":true,"merged":[[7,14,8,14],[6,4,6,14],[30,13,30,15],[30,7,30,9],[20,4,20,5],[21,4,21,5],[16,4,16,5],[17,4,17,5],[18,4,18,5],[19,4,19,5],[14,4,14,5],[23,15,23,17],[24,15,24,17],[25,15,25,17],[14,15,14,17],[15,15,15,17],[31,7,31,9],[18,6,18,7],[19,6,19,7],[20,6,20,7],[21,6,21,7],[24,6,24,7],[25,6,25,7],[2,10,2,17],[4,0,4,17],[24,4,24,5],[25,4,25,5],[12,6,12,7],[13,6,13,7],[16,6,16,7],[17,6,17,7],[22,4,22,5],[23,4,23,5],[10,6,10,7],[11,6,11,7],[6,15,8,17],[7,8,7,9],[7,10,7,11],[7,12,7,13],[0,19,0,21],[27,1,27,2],[27,3,27,4],[1,10,1,17],[22,6,22,7],[23,6,23,7],[14,6,14,7],[15,6,15,7],[12,4,12,5],[13,4,13,5],[7,4,7,7],[15,4,15,5],[9,4,9,5],[9,6,9,7],[10,4,10,5],[11,4,11,5],[6,0,8,0],[6,1,8,2],[8,6,8,7],[8,4,8,5],[6,3,8,3],[18,1,18,2],[12,1,12,2],[13,1,13,2],[14,1,14,2],[15,1,15,2],[16,1,16,2],[17,1,17,2],[9,1,9,2],[10,1,10,2],[11,1,11,2],[9,15,9,17],[10,15,10,17],[11,15,11,17],[18,15,18,17],[19,15,19,17],[16,15,16,17],[12,15,12,17],[13,15,13,17],[17,15,17,17],[23,1,23,2],[24,1,24,2],[25,1,25,2],[21,15,21,17],[19,1,19,2],[22,1,22,2],[20,15,20,17],[22,15,22,17],[20,1,20,2],[21,1,21,2]]}
[]
[null,null,null,null,null,null,null,null,null,null,"UNION-Business Class "]
[null,null,null,null,null,null,null,null,null,null,"Biztosítási ajánlat"]
[]
["Vagyonbiztosítási adatközlő"]
[]
["Sorsz.","Telephely címe",null,"Telephelyen folytatott tevékenységek","BIZTOSÍTÁSI ÖSSZEG eFt",null,null,null,null,null,null,null,null,null,null,"Összesen eFt"]
[null,null,null,null,"Épületek/ Építmények ",null,null,null,"Gép berendezés ",null,"Egyéb nevesített vagyontárgy",null,"Készlet",null,"Készpénz"]
[null,null,null,null,"Saját",null,"Idegen",null,"Saját","Idegen","Saját","Idegen","Saját","Idegen"]
[{"$f":"IF(B10>0,1,0)","v":1},"gfshgf",null,"gfh",5000,null,null,null,2000,null,null,null,null,null,null,{"$f":"SUM(E10:O10)","v":7000},null,null,null,{"$f":"SUM(E10:H10)","v":5000},{"$f":"SUM(I10:O10)","v":2000},null,{"$f":"SUM(I10:J10)","v":2000}]
[{"$f":"IF(B11>0,(A10+1),0)","v":0},null,null,null,null,null,null,null,null,null,null,null,null,null,null,{"$f":"SUM(E11:O11)","v":0},null,null,null,{"$f":"SUM(E11:H11)","v":0},{"$f":"SUM(I11:O11)","v":0},null,{"$f":"SUM(I11:J11)","v":0}]
[{"$f":"IF(B12>0,(A11+1),0)","v":0},null,null,null,null,null,null,null,null,null,null,null,null,null,null,0,null,null,null,0,0,null,0]
[{"$f":"IF(B13>0,(A12+1),0)","v":0},null,null,null,null,null,null,null,null,null,null,null,null,null,null,0,null,null,null,0,0,null,0]
[0,null,null,null,null,null,null,null,null,null,null,null,null,null,null,0,null,null,null,0,0,null,0]
[0,null,null,null,null,null,null,null,null,null,null,null,null,null,null,0,null,null,null,0,0,null,0]
[0,null,null,null,null,null,null,null,null,null,null,null,null,null,null,0,null,null,null,0,0,null,0]
[0,null,null,null,null,null,null,null,null,null,null,null,null,null,null,0,null,null,null,0,0,null,0]
[0,null,null,null,null,null,null,null,null,null,null,null,null,null,null,0,null,null,null,0,0,null,0]
[0,null,null,null,null,null,null,null,null,null,null,null,null,null,null,0,null,null,null,0,0,null,0]
[0,null,null,null,null,null,null,null,null,null,null,null,null,null,null,0,null,null,null,0,0,null,0]
[0,null,null,null,null,null,null,null,null,null,null,null,null,null,null,0,null,null,null,0,0,null,0]
[0,null,null,null,null,null,null,null,null,null,null,null,null,null,null,0,null,null,null,0,0,null,0]
[{"$f":"IF(B23>0,(#REF!+1),0)","v":0},null,null,null,null,null,null,null,null,null,null,null,null,null,null,0,null,null,null,0,0,null,0]
[0,null,null,null,null,null,null,null,null,null,null,null,null,null,null,0,null,null,null,0,0,null,0]
[0,null,null,null,null,null,null,null,null,null,null,null,null,null,null,0,null,null,null,0,0,null,0]
[null,null,null,"Összesen",{"$f":"SUM(E10:F25)","v":5000},null,{"$f":"SUM(G10:H25)","v":0},null,{"$f":"SUM(I10:I25)","v":2000},{"$f":"SUM(J10:J25)","v":0},0,0,0,0,0,{"$f":"SUM(P10:R25)","v":7000},null,null,null,{"$f":"SUM(T10:T25)","v":5000},{"$f":"SUM(U10:U25)","v":2000},null,{"$f":"SUM(W10:W25)","v":2000}]
[]
["Dátum",{"$f":"Ajánlat1!C90","v":0},null,{"$f":"Ajánlat1!E90","v":"2021-03-31"}]
[]
[]
[null,null,null,null,null,null,null,"üzletkötő",null,null,null,null,null,"szerződő/biztosított"]
[{"$f":"Ajánlat1!B94","v":"Verzió: 0.85"}]
[{"$f":"Ajánlat1!B95","v":"UNION-Business Class Érvényes: 2009.06.24.-től  "}]
[]
[]
[]
[]
[null,null,null,null,null,null,{"$f":"SUM(E26,G26)","v":5000}]

{"sheet":"Gép,berendezés","index":5,"n_rows":38,"n_cols":14,"rows_kept":38,"cut":false,"hidden":true,"merged":[[2,9,2,12],[1,9,1,12],[4,0,4,12],[36,7,36,9],[6,11,7,13],[8,11,8,13],[6,4,6,5],[6,8,6,9],[6,10,7,10],[9,1,9,2],[12,11,12,13],[13,11,13,13],[9,11,9,13],[10,11,10,13],[11,11,11,13],[16,11,16,13],[37,1,37,3],[37,7,37,9],[1,0,1,2],[34,1,34,2],[34,3,34,4],[6,0,7,0],[6,1,7,2],[6,3,7,3],[6,6,6,7],[8,1,8,2],[12,1,12,2],[13,1,13,2],[10,1,10,2],[11,1,11,2],[16,1,16,2],[17,1,17,2],[17,11,17,13],[14,1,14,2],[14,11,14,13],[15,1,15,2],[15,11,15,13],[20,1,20,2],[20,11,20,13],[21,1,21,2],[21,11,21,13],[18,1,18,2],[18,11,18,13],[19,1,19,2],[19,11,19,13],[24,1,24,2],[24,11,24,13],[25,1,25,2],[25,11,25,13],[22,1,22,2],[22,11,22,13],[23,1,23,2],[23,11,23,13],[28,1,28,2],[28,11,28,13],[29,1,29,2],[29,11,29,13],[26,1,26,2],[26,11,26,13],[27,1,27,2],[27,11,27,13],[32,1,32,2],[32,11,32,12],[30,1,30,2],[30,11,30,13],[31,1,31,2],[31,11,31,13]]}
[]
[null,null,null,null,null,null,null,null,null,"UNION - BC"]
[null,null,null,null,null,null,null,null,null,"Biztosítási ajánlat"]
[]
["Vagyonbiztosítási adatközlő gép, berendezés, készlet biztosításhoz"]
[]
["Sor-szám","Telephely címe",null,"Telephelyen folytatott tevékenységek","Gép berendezés eFt",null,"Egyéb nevesített eFt",null,"Készlet eFt",null,"Készpénz eFt","Összesen eFt"]
[null,null,null,null,"Saját","Idegen","Saját","Idegen","Saját","Idegen"]
[{"$f":"IF(B9>0,1,0)","v":0},null,null,null,null,null,null,null,null,null,null,{"$f":"SUM(E9:K9)","v":0}]
[{"$f":"IF(B10>0,(A9+1),0)","v":0},null,null,null,null,null,null,null,null,null,null,{"$f":"SUM(E10:K10)","v":0}]
[{"$f":"IF(B11>0,(A10+1),0)","v":0},null,null,null,null,null,null,null,null,null,null,0]
[0,null,null,null,null,null,null,null,null,null,null,0]
[0,null,null,null,null,null,null,null,null,null,null,0]
[0,null,null,null,null,null,null,null,null,null,null,0]
[0,null,null,null,null,null,null,null,null,null,null,0]
[0,null,null,null,null,null,null,null,null,null,null,0]
[0,null,null,null,null,null,null,null,null,null,null,0]
[0,null,null,null,null,null,null,null,null,null,null,0]
[0,null,null,null,null,null,null,null,null,null,null,0]
[0,null,null,null,null,null,null,null,null,null,null,0]
[0,null,null,null,null,null,null,null,null,null,null,0]
[0,null,null,null,null,null,null,null,null,null,null,0]
[0,null,null,null,null,null,null,null,null,null,null,0]
[0,null,null,null,null,null,null,null,null,null,null,0]
[0,null,null,null,null,null,null,null,null,null,null,0]
[0,null,null,null,null,null,null,null,null,null,null,0]
[0,null,null,null,null,null,null,null,null,null,null,0]
[0,null,null,null,null,null,null,null,null,null,null,0]
[0,null,null,null,null,null,null,null,null,null,null,0]
[0,null,null,null,null,null,null,null,null,null,null,0]
[0,null,null,null,null,null,null,null,null,null,null,0]
[0,null,null,null,null,null,null,null,null,null,null,0]
[null,null,null,"Összesen",{"$f":"SUM(E9:E32)","v":0},{"$f":"SUM(F9:F32)","v":0},{"$f":"SUM(G9:G32)","v":0},{"$f":"SUM(H9:H32)","v":0},0,0,0,0,null,0]
[]
["Dátum",{"$f":"Ajánlat1!C92","v":0},null,{"$f":"TODAY()","v":"2021-03-31"}]
[]
[]
[null,"üzletkötő",null,null,null,null,null,"szerződő/biztosított"]

{"sheet":"Géplista","index":6,"n_rows":41,"n_cols":15,"rows_kept":41,"cut":false,"hidden":true,"merged":[[6,8,7,8],[6,0,7,0],[6,1,7,1],[6,2,7,2],[6,3,7,3],[36,3,36,7],[40,4,40,5],[39,4,39,5],[1,5,1,7],[2,5,2,7],[4,0,4,7],[6,6,6,7],[6,4,7,4],[6,5,7,5]]}
[]
[null,null,null,null,null,"UNION - BC"]
[null,null,null,null,null,"Biztosítási ajánlat"]
[]
["Géplista géptörés biztosításhoz"]
[]
["Sor szám","Gép neve","Típusa","Gyári száma","Gyártási éve","Értékelés módja","Gép értéke eFt ",null,"Gép kora",null,null,{"$f":"COUNTIF(E9:E35,\">0\")","v":0}]
[null,null,null,null,null,null,"saját","idegen"]
[{"$f":"IF(B9>0,1,0)","v":0},null,null,null,null,null,null,null,{"$f":"IF(E9=0,0,IF(E9=$K$10,0.25,SUM($K$10-E9)))","v":0},{"$f":"I9*(G9+H9)","v":0},{"$f":"TODAY()","v":"2021-03-31"},{"$f":"COUNTIF(O9:O35,\">0\")","v":0},{"$f":"IF(L9>L7,\"Kitöltötte a gép értékét, de nem adta meg a gyártási évet\",IF(L9=L7,0,IF(L9<L7,\"Kitöltötte gyártási évet, de nem adta meg a gép értékét\")))","v":0},null,{"$f":"SUM(G9:H9)","v":0}]
[{"$f":"IF(B10>0,(A9+1),0)","v":0},null,null,null,null,null,null,null,{"$f":"IF(E10=0,0,IF(E10=$K$10,0.25,SUM($K$10-E10)))","v":0},{"$f":"I10*(G10+H10)","v":0},{"$f":"YEAR(K9)","v":2021},null,null,null,{"$f":"SUM(G10:H10)","v":0}]
[{"$f":"IF(B11>0,(A10+1),0)","v":0},null,null,null,null,null,null,null,0,0,null,null,null,null,0]
[0,null,null,null,null,null,null,null,0,0,null,null,"Új érték",null,0]
[0,null,null,null,null,null,null,null,0,0,null,null,"Avult érték",null,0]
[0,null,null,null,null,null,null,null,0,0,null,null,null,null,0]
[0,null,null,null,null,null,null,null,0,0,null,null,null,null,0]
[0,null,null,null,null,null,null,null,0,0,null,null,null,null,0]
[0,null,null,null,null,null,null,null,0,0,null,null,null,null,0]
[0,null,null,null,null,null,null,null,0,0,null,null,null,null,0]
[0,null,null,null,null,null,null,null,0,0,null,null,null,null,0]
[0,null,null,null,null,null,null,null,0,0,null,null,null,null,0]
[0,null,null,null,null,null,null,null,0,0,null,null,null,null,0]
[0,null,null,null,null,null,null,null,0,0,null,null,null,null,0]
[0,null,null,null,null,null,null,null,0,0,null,null,null,null,0]
[0,null,null,null,null,null,null,null,0,0,null,null,null,null,0]
[0,null,null,null,null,null,null,null,0,0,null,null,null,null,0]
[0,null,null,null,null,null,null,null,0,0,null,null,null,null,0]
[0,null,null,null,null,null,null,null,0,0,null,null,null,null,0]
[0,null,null,null,null,null,null,null,0,0,null,null,null,null,0]
[0,null,null,null,null,null,null,null,0,0,null,null,null,null,0]
[0,null,null,null,null,null,null,null,0,0,null,null,null,null,0]
[0,null,null,null,null,null,null,null,0,0,null,null,null,null,0]
[0,null,null,null,null,null,null,null,0,0,null,null,null,null,0]
[0,null,null,null,null,null,null,null,0,0,null,null,null,null,0]
[0,null,null,null,null,null,null,null,0,0,null,null,null,null,0]
[0,null,null,null,null,null,null,null,0,0,null,null,null,null,0]
[null,null,null,null,null,"Összesen",{"$f":"SUM(G9:G35)","v":0},{"$f":"SUM(H9:H35)","v":0},null,{"$f":"SUM(J9:J35)","v":0},{"$f":"SUM(G36:H36)","v":0},null,null,null,{"$f":"SUM(O9:O35)","v":0}]
[null,null,null,{"$f":"M9","v":0},null,null,null,null,{"$f":"IF(OR(L9>L7,K36=0),\"15 felett\",J36/K36)","v":"15 felett"},"Átlagéletkor"]
["Dátum",{"$f":"Ajánlat1!C90","v":0},{"$f":"Dátum","v":"2021-03-31"}]
[]
[]
[null,"üzletkötő",null,null,"szerződő/biztosított"]

{"sheet":"GéptörésELBER","index":7,"n_rows":46,"n_cols":15,"rows_kept":46,"cut":false,"hidden":true,"merged":[[9,0,10,0],[9,1,10,1],[9,2,10,2],[9,3,10,3],[1,4,1,7],[2,4,2,7],[4,0,4,7],[6,0,7,0],[6,1,7,3],[6,4,7,4],[44,4,44,5],[6,5,7,5],[6,6,6,7],[8,1,8,3],[40,3,40,7],[9,6,9,7],[9,4,10,4],[9,5,10,5],[24,0,24,7],[39,0,39,5],[26,1,27,1],[22,0,22,5],[44,6,44,7],[26,6,26,7],[43,4,43,5],[26,0,27,0],[26,8,27,8],[26,2,27,2],[26,3,27,3],[26,4,27,4],[26,5,27,5]]}
[]
[null,null,null,null,"UNION-Business Class"]
[null,null,null,null,"Biztosítási ajánlat"]
[]
["Elektromos berendezések biztosítása"]
[]
["Sor szám","Számítógépek",null,null,"Átlagélet-kora","Értékelés módja","Biztosítási összeg eFt",null,"Gép kora",null,null,{"$f":"COUNTIF(E9:E22,\">0\")","v":0}]
[null,null,null,null,null,null,"saját","idegen"]
[0,"Számítógépek, monitorok, központi egységek, terminálok, perifériák, lap-topok, adathordozók",null,null,null,null,null,null,{"$f":"IF(E9=0,0,E9)","v":0},{"$f":"I9*(G9+H9)","v":0},{"$f":"TODAY()","v":"2021-03-31"},{"$f":"COUNTIF(O9:O22,\">0\")","v":0},{"$f":"IF(L9>L5,\"Kitöltötte a gép értékét, de nem adta meg a gyártási évet\",IF(L9=L5,0,IF(L9<L5,\"Kitöltötte gyártási évet, de nem adta meg a gép értékét\")))","v":0},null,{"$f":"SUM(G9:H9)","v":0}]
["Sor szám","Számítógép vezérlésű elektromos berendezések neve","Típusa","Gyári száma","Gyártási éve","Értékelés módja","Biztosítási összeg eFt",null,"Gép kora",null,{"$f":"YEAR(K9)","v":2021},{"$f":"COUNTIF(E9:E22,\">0\")","v":0}]
[null,null,null,null,null,null,"saját","idegen"]
[{"$f":"IF(B12>0,1,0)","v":0},null,null,null,null,null,null,null,{"$f":"IF(E12=0,0,IF(E12=$K$13,0.25,SUM($K$13-E12)))","v":0},{"$f":"I12*(G12+H12)","v":0},{"$f":"TODAY()","v":"2021-03-31"},{"$f":"COUNTIF(O9:O22,\">0\")","v":0},{"$f":"IF(L12>L7,\"Kitöltötte a gép értékét, de nem adta meg a gyártási évet\",IF(L12=L7,0,IF(L12<L7,\"Kitöltötte gyártási évet, de nem adta meg a gép értékét\")))","v":0},null,{"$f":"SUM(G12:H12)","v":0}]
[{"$f":"IF(B13>0,(A12+1),0)","v":0},null,null,null,null,null,null,null,{"$f":"IF(E13=0,0,IF(E13=$K$13,0.25,SUM($K$13-E13)))","v":0},{"$f":"I13*(G13+H13)","v":0},{"$f":"YEAR(K12)","v":2021},null,null,null,{"$f":"SUM(G13:H13)","v":0}]
[{"$f":"IF(B14>0,(A13+1),0)","v":0},null,null,null,null,null,null,null,0,0,null,null,null,null,0]
[0,null,null,null,null,null,null,null,0,0,null,null,"Új érték",null,0]
[0,null,null,null,null,null,null,null,0,0,null,null,"Avult érték",null,0]
[0,null,null,null,null,null,null,null,0,0,null,null,null,null,0]
[0,null,null,null,null,null,null,null,0,0,null,null,null,null,0]
[0,null,null,null,null,null,null,null,0,0,null,null,null,null,0]
[0,null,null,null,null,null,null,null,0,0,null,null,null,null,0]
[0,null,null,null,null,null,null,null,0,0,null,null,null,null,0]
[0,null,null,null,null,null,null,null,0,0,null,null,null,null,0]
["Számítógépek és számítógép vezérlésű elektromos berendezések összesen",null,null,null,null,null,{"$f":"SUM(G9,G12:G22)","v":0},{"$f":"SUM(H9,H12:H22)","v":0},null,{"$f":"SUM(J9,J12:J22)","v":0},null,null,null,null,0]
[null,null,null,null,null,null,null,null,{"$f":"IF(K24>5,\"5 felett\",K24)","v":"5 felett"},"Átlagéletkor",{"$f":"IF(OR(L12>L10,J23=0),\"5 felett\",J23/O24)","v":"5 felett"},null,null,null,{"$f":"SUM(O9,O12:O22)","v":0}]
["Géplista géptörés biztosításhoz"]
[]
["Sor szám","Gép neve","Típusa","Gyári száma","Gyártási éve","Értékelés módja","Gép értéke eFt ",null,"Gép kora",null,null,{"$f":"COUNTIF(E29:E39,\">0\")","v":0}]
[null,null,null,null,null,null,"saját","idegen"]
[{"$f":"IF(B29>0,1,0)","v":0},null,null,null,null,null,null,null,{"$f":"IF(E29=0,0,IF(E29=$K$10,0.25,SUM($K$10-E29)))","v":0},{"$f":"I29*(G29+H29)","v":0},{"$f":"TODAY()","v":"2021-03-31"},{"$f":"COUNTIF(O29:O39,\">0\")","v":0},{"$f":"IF(L29>L27,\"Kitöltötte a gép értékét, de nem adta meg a gyártási évet\",IF(L29=L27,0,IF(L29<L27,\"Kitöltötte gyártási évet, de nem adta meg a gép értékét\")))","v":0},null,{"$f":"SUM(G29:H29)","v":0}]
[{"$f":"IF(B30>0,(A29+1),0)","v":0},null,null,null,null,null,null,null,{"$f":"IF(E30=0,0,IF(E30=$K$10,0.25,SUM($K$10-E30)))","v":0},{"$f":"I30*(G30+H30)","v":0},{"$f":"YEAR(K29)","v":2021},null,null,null,{"$f":"SUM(G30:H30)","v":0}]
[{"$f":"IF(B31>0,(A30+1),0)","v":0},null,null,null,null,null,null,null,{"$f":"IF(E31=0,0,IF(E31=$K$10,0.25,SUM($K$10-E31)))","v":0},{"$f":"I31*(G31+H31)","v":0},null,null,null,null,{"$f":"SUM(G31:H31)","v":0}]
[{"$f":"IF(B32>0,(A31+1),0)","v":0},null,null,null,null,null,null,null,{"$f":"IF(E32=0,0,IF(E32=$K$10,0.25,SUM($K$10-E32)))","v":0},{"$f":"I32*(G32+H32)","v":0},null,null,"Új érték",null,{"$f":"SUM(G32:H32)","v":0}]
[{"$f":"IF(B33>0,(A32+1),0)","v":0},null,null,null,null,null,null,null,{"$f":"IF(E33=0,0,IF(E33=$K$10,0.25,SUM($K$10-E33)))","v":0},{"$f":"I33*(G33+H33)","v":0},null,null,"Avult érték",null,{"$f":"SUM(G33:H33)","v":0}]
[0,null,null,null,null,null,null,null,0,0,null,null,null,null,0]
[0,null,null,null,null,null,null,null,0,0,null,null,null,null,0]
[0,null,null,null,null,null,null,null,0,0,null,null,null,null,0]
[0,null,null,null,null,null,null,null,0,0,null,null,null,null,0]
[0,null,null,null,null,null,null,null,0,0,null,null,null,null,0]
[0,null,null,null,null,null,null,null,0,0,null,null,null,null,0]
["Gépek összesen",null,null,null,null,null,{"$f":"SUM(G29:G39)","v":0},{"$f":"SUM(H29:H39)","v":0},null,{"$f":"SUM(J29:J39)","v":0},null,null,null,null,{"$f":"SUM(O29:O39)","v":0}]
[null,null,null,null,null,null,null,null,{"$f":"IF(OR(J40=0,L29>L27),\"15 felett\",J40/O40)","v":"15 felett"},"Átlagéletkor"]
["Dátum",{"$f":"Ajánlat1!C90","v":0},{"$f":"Dátum","v":"2021-03-31"}]
[]
[]
[{"$f":"Ajánlat1!B94","v":"Verzió: 0.85"},null,"üzletkötő",null,null,null,"szerződő/biztosított"]
[{"$f":"Ajánlat1!B95","v":"UNION-Business Class Érvényes: 2009.06.24.-től  "}]

{"sheet":"Kiegészítők","index":8,"n_rows":73,"n_cols":17,"rows_kept":73,"cut":false,"hidden":true,"merged":[[50,1,50,3],[50,7,50,9],[49,7,49,9],[42,9,42,10],[41,0,41,1],[41,9,41,10],[41,2,41,3],[49,1,49,3],[46,1,46,2],[46,3,46,4],[42,0,42,8],[1,7,1,10],[5,0,5,10],[12,0,12,10],[32,0,32,1],[32,2,32,3],[2,7,2,10],[32,9,32,10],[24,0,24,1],[22,2,22,5],[18,0,18,10],[20,0,20,10],[24,2,24,3],[24,9,24,10],[25,0,25,1],[25,2,25,3],[25,9,25,10],[40,9,40,10],[43,0,43,10],[40,0,40,1],[40,2,40,3],[39,0,39,1],[39,2,39,3],[35,0,35,1],[35,2,35,3],[35,9,35,10],[36,0,36,1],[36,2,36,3],[36,9,36,10],[37,0,37,1],[37,2,37,3],[39,9,39,10],[37,9,37,10],[38,0,38,1],[38,2,38,3],[38,9,38,10],[27,0,27,10],[33,0,33,10],[17,0,17,1],[17,2,17,3],[17,9,17,10],[34,0,34,1],[34,2,34,3],[34,9,34,10],[29,2,29,5],[31,0,31,1],[31,2,31,3],[31,9,31,10],[7,7,7,9],[26,0,26,10],[7,2,7,3],[9,0,9,1],[9,2,9,3],[9,9,9,10],[10,0,10,1],[10,2,10,3],[10,9,10,10],[14,2,14,5],[11,0,11,10],[16,0,16,1],[16,2,16,3],[16,9,16,10]]}
[]
[null,null,null,null,null,null,null,"UNION - BC"]
[null,null,null,null,null,null,null,"Biztosítási ajánlat"]
[null,null,null,null,null,null,null,null,null,null,null,null,null,null,null,null,"Tevkor"]
[]
["Üzemszünetbiztosítás",null,null,null,null,null,null,null,null,null,null,null,null,null,"Épület","Gép, ber"]
[]
["Választott önrész",null,"3 nap",null,null,"Kártérítési limit",null,{"$f":"IF(A11=0,0,IF(A11=\"Small\",A71,IF(A11=\"Medium\",A72,IF(A11=\"Large\",A73))))","v":"12 hónap, max 100 MFt"},null,null,null,null,{"$f":"IF(C8=\"3 nap\",1,IF(C8=\"5 nap\",2,IF(C8=\"7 nap\",3)))","v":1},null,{"$f":"IF(Díjszámítás!M27=1,1,IF(Díjszámítás!M27=2,2,IF(Díjszámítás!M27=3,3,0)))","v":3},{"$f":"IF(Díjszámítás!M42=1,1,IF(Díjszámítás!M42=2,2,IF(Díjszámítás!M42=3,3,0)))","v":3}]
[]
["Választott módozat",null,"Díjszámítás alapja",null,"Kockázati osztály","Díjtétel","Módozati szorzó","Volumen-szorzó","Önrész szorzó","Éves díj",null,null,"Mód","Vol",null,{"$f":"IF(P8=0,0,IF(OR(O8=1,P8=1),1,IF(P8>1,2)))","v":2}]
["Large",null,{"$f":"IF(A11=0,0,Díjszámítás!N27)","v":20000},null,{"$f":"IF(OR(A11=0,C11=0,C8=0),0,IF(Díjszámítás!C12=\"\",\"\",VLOOKUP(Díjszámítás!$C12,Munka3!$A$2:$H$302,5,FALSE)))","v":""},{"$f":"IF(OR(A11=0,C11=0,C8=0),0,IF(E11=\"vig\",0,IF(E11=\"k\",0,INDEX(Üzem,E11))))","v":{"$error":"#VALUE!"}},{"$f":"IF(OR(A11=0,C11=0,C8=0),0,INDEX(Ümód,M11))","v":1.4},{"$f":"IF(OR(A11=0,C11=0,C8=0),0,INDEX(Üvol,O11))","v":1.6},{"$f":"IF(OR(A11=0,C11=0,C8=0),0,INDEX(Üönr,M8,))","v":1},{"$f":"IF(Díjszámítás!J45=0,0,IF(AND(C8=0,A11=0),0,(C11*F11*G11*H11*I11)))","v":0},null,null,{"$f":"IF(A11=\"Small\",1,IF(A11=\"Medium\",2,IF(A11=\"Large\",3)))","v":3},{"$f":"Díjszámítás!N27","v":20000},{"$f":"IF(N11<=10000,1,IF(AND(N11<=25000,N11>10),2,IF(AND(N11<=50000,N11>25),3,IF(AND(N11<=100000,N11>50),4,IF(AND(N11<=200000,N11>100),5,IF(AND(N11<=500000,N11>200),6))))))","v":2}]
[{"$f":"IF(E11=\"vig\",\"Üzemszünet biztosítás csak a vagyonigazgatóság engedélyével köthető\",IF(E11=\"k\",\"Kizárt kockázat\",IF(AND(Díjszámítás!J45=0,C8>0,A11>0),\"Az üzemszünetbiztosítás csak a vagyonbiztosítás kiegészítőjeként köthető\",0)))","v":"Az üzemszünetbiztosítás csak a vagyonbiztosítás kiegészítőjeként köthető"}]
["Géptörés biztosítás"]
[]
["Választott önrész",null,"10%, de minimum 25.000 Ft",null,null,null,"Gépek átlagéletkora",null,{"$f":"Géplista!I37","v":"15 felett"},null,null,null,{"$f":"IF(C15=\"\",\"\",VLOOKUP($C15,Összesítő!$E$63:$H$70,4,FALSE))","v":1},{"$f":"IF(I15<=2,1,IF(AND(I15<=5,I15>2),2,IF(AND(I15<=10,I15>5),3,IF(AND(I15<=15,I15>10),4,IF(OR(I15>15,I15=\"15 felett\"),5)))))","v":5}]
[]
["Választott módozat",null,"Biztosítási összeg",null,"Kockázati osztály","Díjtétel","Átlagélet-kor eng.","Volumen-szorzó","Önrész szorzó","Éves díj",null,null,{"$f":"INDEX(Gkor,N15)","v":1},null,{"$f":"IF(C18<=10000,1,IF(AND(C18<=25000,C18>10),2,IF(AND(C18<=50000,C18>25),3,IF(AND(C18<=100000,C18>50),4,IF(AND(C18<=200000,C18>100),5,IF(AND(C18<=500000,C18>200),6))))))","v":1}]
["Géptörés",null,{"$f":"IF(Díjszámítás!J45=0,0,Géplista!O36)","v":0},null,{"$f":"IF(OR(C18=0,C15=0),0,IF(Díjszámítás!C12=\"\",\"\",VLOOKUP(Díjszámítás!$C12,Munka3!$A$2:$H$302,6,FALSE)))","v":0},{"$f":"IF(OR(C18=0,C15=0),0,IF(E18=\"vig\",0,IF(E18=\"k\",0,INDEX(Gép,E18))))","v":0},{"$f":"IF(OR(C18=0,C15=0),0,M17)","v":0},{"$f":"IF(OR(C18=0,C15=0),0,INDEX(Gvol,O17))","v":0},{"$f":"IF(OR(C15=0,C18=0),0,INDEX(Gönr,M15))","v":0},{"$f":"IF(Díjszámítás!J45=0,0,IF(OR(C15=0,A18=0),0,(C18*F18*G18*H18*I18)))","v":0},null,null,{"$f":"IF(A18=\"Small\",1,IF(A18=\"Medium\",2,IF(A18=\"Large\",3)))","v":false}]
[{"$f":"IF(E18=\"vig\",\"Géptörésbiztosítás csak a vagyonigazgatóság engedélyével köthető\",IF(E18=\"k\",\"Kizárt kockázat\",IF(AND(Díjszámítás!J45=0,C15>0),\"A géptörésbiztosítás csak a vagyonbiztosítás kiegészítőjeként köthető\",0)))","v":"A géptörésbiztosítás csak a vagyonbiztosítás kiegészítőjeként köthető"}]
[]
["Elektromos berendezések biztosítása"]
[]
["Választott önrész",null,"10%, de minimum 25.000 Ft",null,null,null,"Gépek átlagéletkora",null,{"$f":"GéptörésELBER!I24","v":"5 felett"},null,null,null,{"$f":"IF(C23=\"\",\"\",VLOOKUP($C23,Összesítő!$E$63:$H$70,4,FALSE))","v":1},{"$f":"IF(I23<=2,1,IF(AND(I23<=3,I23>2),2,IF(AND(I23<=5,I23>3),3,IF(OR(I23>5,I23=\"5 felett\"),4))))","v":4}]
[]
["Választott módozat",null,"Biztosítási összeg",null,"Kockázati osztály","Díjtétel","Átlagélet-kor eng.","Volumen-szorzó","Önrész szorzó","Éves díj",null,null,{"$f":"INDEX(Ekor,N23)","v":1},null,{"$f":"IF(C26<=10000,1,IF(AND(C26<=25000,C26>10),2,IF(AND(C26<=50000,C26>25),3,IF(AND(C26<=100000,C26>50),4,IF(AND(C26<=200000,C26>100),5,IF(AND(C26<=500000,C26>200),6))))))","v":1}]
["ELBER",null,{"$f":"IF(Díjszámítás!J45=0,0,GéptörésELBER!O24)","v":0},null,{"$f":"IF(OR(C26=0,C23=0),0,IF(Díjszámítás!C12=\"\",\"\",VLOOKUP(Díjszámítás!$C12,Munka3!$A$2:$H$302,7,FALSE)))","v":0},{"$f":"IF(OR(C26=0,C23=0),0,IF(E26=\"vig\",0,IF(E26=\"k\",0,INDEX(ELBER,E26))))","v":0},{"$f":"IF(OR(C26=0,C23=0),0,M25)","v":0},{"$f":"IF(OR(C26=0,C23=0),0,INDEX(Evol,O25))","v":0},{"$f":"IF(OR(C23=0,A26=0),0,INDEX(Eönr,M23))","v":1},{"$f":"IF(Díjszámítás!J45=0,0,IF(AND(C23=0,A26=0),0,(C26*F26*G26*H26*I26)))","v":0}]
[{"$f":"IF(E26=\"vig\",\"Elektromos berendezések biztosítása csak a vagyonigazgatóság engedélyével köthető\",IF(E26=\"k\",\"Kizárt kockázat\",IF(AND(Díjszámítás!J45=0,C23>0),\"Elektromos berendezések biztosítása csak a vagyonbiztosítás kiegészítőjeként köthető\",0)))","v":"Elektromos berendezések biztosítása csak a vagyonbiztosítás kiegészítőjeként köthető"}]
["Felelősségbiztosítás"]
[]
["Választott önrész",null,"20%, de minimum 50.000 Ft",null,null,null,null,null,null,null,null,null,{"$f":"IF(C30=\"\",\"\",VLOOKUP($C30,Összesítő!$E$63:$H$70,4,FALSE))","v":6}]
[]
["Választott módozat",null,"Kártérítési limit MFt/kár/év",null,"Kockázati osztály","Díjtétel","Módozati szorzó",null,"Önrész szorzó","Éves díj"]
["Small",null,{"$f":"IF(Díjszámítás!J45=0,0,IF(A33=0,0,IF(A33=\"Small\",\"5/15\",IF(A33=\"Medium\",\"15/45\",IF(A33=\"Large\",\"50/100\")))))","v":0},null,{"$f":"IF(OR(A33=0,C33=0,C30=0),0,IF(Díjszámítás!C12=\"\",\"\",VLOOKUP(Díjszámítás!$C12,Munka3!$A$2:$H$302,3,FALSE)))","v":0},{"$f":"IF(OR(A33=0,C33=0,C30=0),0,IF(E33=\"vig\",0,IF(E33=\"k\",0,INDEX(Fel,E33))))","v":0},{"$f":"IF(OR(A33=0,C33=0,C30=0),0,INDEX(Felmód,M33))","v":0},null,{"$f":"IF(OR(A33=0,C33=0,C30=0),0,INDEX(Felönr,M30))","v":0},{"$f":"F33*G33*I33","v":0},null,null,{"$f":"IF(A33=\"Small\",1,IF(A33=\"Medium\",2,IF(A33=\"Large\",3)))","v":1}]
["Kiegészítő felelősségbiztosítások"]
["Bérlői felelősség",null,null,null,null,null,null,null,null,{"$f":"IF(I35=0,0,IF(J33=0,0,IF(AND(J33>0,I35=\"kérem\"),(J33*0.1),IF(AND(J33>0,I35=\"nem kérem\"),0))))","v":0}]
["Bérbeadói felelősség",null,null,null,null,null,null,null,null,{"$f":"IF(I36=0,0,IF(J33=0,0,IF(AND(J33>0,I36=\"kérem\"),(J33*0.1),IF(AND(J33>0,I36=\"nem kérem\"),0))))","v":0}]
["Kiterjesztett termék",null,null,null,null,null,null,null,null,{"$f":"IF(I37=0,0,IF(J33=0,0,IF(AND(J33>0,I37=\"kérem\"),(J33*0.35),IF(AND(J33>0,I37=\"nem kérem\"),0))))","v":0}]
["Szálloda 1 (S;M;L)",null,null,null,null,null,null,null,null,{"$f":"IF(I38=0,0,IF(J33=0,0,IF(AND(J33>0,I38=\"kérem\"),(J33*0.3),IF(AND(J33>0,I38=\"nem kérem\"),0))))","v":0}]
["Szálloda 2 (M;L)",null,null,null,null,null,null,null,null,{"$f":"IF(A33=\"Small\",0,IF(I39=0,0,IF(J33=0,0,IF(AND(J33>0,I39=\"kérem\"),(J33*0.4),IF(I39=\"Nem köthető\",0,IF(AND(J33>0,I39=\"nem kérem\"),0))))))","v":0}]
["Környezetszennyezés",null,null,null,null,null,null,null,null,{"$f":"IF(I40=0,0,IF(J33=0,0,IF(AND(J33>0,I40=\"kérem\"),(J33*0.15),IF(AND(J33>0,I40=\"nem kérem\"),0))))","v":0}]
["EU Kiterjesztés",null,null,null,null,null,null,null,null,{"$f":"IF(I41=0,0,IF(J33=0,0,IF(AND(J33>0,I41=\"kérem\"),(J33*0.15),IF(AND(J33>0,I41=\"nem kérem\"),0))))","v":0}]
["Rakodás (M;L)",null,null,null,null,null,null,null,null,{"$f":"IF(A33=\"Small\",0,IF(I42=0,0,IF(J33=0,0,IF(I42=\"Nem köthető\",0,IF(AND(J33>0,I42=\"kérem\"),(J33*0.15),IF(AND(J33>0,I42=\"nem kérem\"),0))))))","v":0}]
["Felelősségbiztosítás  összesen",null,null,null,null,null,null,null,null,{"$f":"IF(Díjszámítás!J45=0,0,IF(AND(C30=0,A33=0),0,SUM(J35:K42,J33)))","v":0}]
[{"$f":"IF(E33=\"vig\",\"Felelősségbiztosítás csak a vagyonigazgatóság engedélyével köthető\",IF(E33=\"k\",\"Kizárt kockázat\",IF(AND(Díjszámítás!J45=0,C30>0,A33>0),\"Felelősségbiztosítás csak a vagyonbiztosítás kiegészítőjeként köthető\",0)))","v":"Felelősségbiztosítás csak a vagyonbiztosítás kiegészítőjeként köthető"}]
[]
[]
["Dátum",{"$f":"Ajánlat1!C90","v":0},null,{"$f":"TODAY()","v":"2021-03-31"}]
[]
[]
[]
[null,"üzletkötő",null,null,null,null,null,"szerződő/biztosított"]
[]
[]
[]
[]
[]
[0,null,"3 nap",null,"10%, de minimum 25.000 Ft",null,null,1,1,null,1]
[5000,null,"5 nap",null,"10%, de minimum 50.000 Ft",null,null,2,0.95,null,0.95]
[10000,null,"7 nap",null,"10%, de minimum 100.000 Ft",null,null,3,0.85,null,0.85]
[25000,null,null,null,"10%, de minimum 200.000 Ft",null,null,4,0.7,null,0.7]
[50000,null,null,null,"20%, de minimum 25.000 Ft",null,null,5,0.92,null,0.92]
[100000,null,null,null,"20%, de minimum 50.000 Ft",null,null,6,0.87,null,0.87]
[200000,null,null,null,"20%, de minimum 100.000 Ft",null,null,7,0.78,null,0.78]
[null,null,null,null,"20%, de minimum 200.000 Ft",null,null,8,0.64,null,0.64]
["Small","Small"]
["Medium",null,null,"0-2",null,"kérem",null,"éves",null,"Nem köthető"]
["Large",null,null,"2,01-3",null,"nem kérem",null,"féléves"]
[null,null,null,"3,01-5",null,null,null,"negyedéves"]
[null,null,null,"5,01-",null,"üzleti"]
[null,null,null,null,null,"üzletpolitikai"]
["3 hónap, max. 25 MFt"]
["6 hónap, max. 50 MFt"]
["12 hónap, max 100 MFt"]

{"sheet":"Összesítő","index":9,"n_rows":76,"n_cols":17,"rows_kept":76,"cut":false,"hidden":true,"merged":[[1,8,1,10],[2,8,2,10],[8,0,8,10],[11,0,11,8],[11,9,11,10],[14,0,14,8],[14,9,14,10],[15,0,15,8],[15,9,15,10],[12,0,12,8],[12,9,12,10],[13,0,13,8],[13,9,13,10],[18,0,18,8],[18,9,18,10],[20,0,20,8],[20,9,20,10],[16,0,16,8],[16,9,16,10],[17,0,17,8],[17,9,17,10],[23,0,23,4],[23,5,23,6],[23,9,23,10],[21,0,21,8],[21,9,21,10],[22,0,22,4],[22,5,22,8],[22,9,22,10],[27,9,27,10],[24,0,24,4],[24,5,24,8],[24,9,24,10],[25,0,25,4],[25,5,25,8],[25,9,25,10],[26,0,26,8],[26,9,26,10],[27,0,27,4],[27,5,27,6],[27,7,27,8],[28,0,28,8],[28,9,28,10],[29,2,29,3],[29,4,29,5],[29,9,29,10],[36,7,36,9],[37,1,37,3],[37,7,37,9],[30,4,30,5],[34,1,34,2],[34,3,34,4],[36,1,36,3]]}
[]
[null,null,null,null,null,null,null,null,"UNION - BC"]
[null,null,null,null,null,null,null,null,"Biztosítási ajánlat"]
[null,null,null,null,null,null,null,null,null,null,null,null,null,null,null,null,"Tevkor"]
[]
[]
[]
[]
["Biztosítási díjösszesítő",null,null,null,null,null,null,null,null,null,null,null,null,{"$f":"(100-5)/100","v":0.95}]
[]
[]
[null,null,null,null,null,null,null,null,null,"Éves díj"]
["Vagyonbiztosítás összesen",null,null,null,null,null,null,null,null,{"$f":"Díjszámítás!J45","v":0}]
["Épületbiztosítás",null,null,null,null,null,null,null,null,{"$f":"Díjszámítás!J27","v":0}]
["Gép, berendezés biztosítás",null,null,null,null,null,null,null,null,{"$f":"Díjszámítás!J42","v":0},null,null,{"$f":"COUNTIF(J14:K19,\">0\")","v":0}]
["Üzemszünetbiztosítás",null,null,null,null,null,null,null,null,{"$f":"Kiegészítők!J11","v":0}]
["Géptörés biztosítás",null,null,null,null,null,null,null,null,{"$f":"Kiegészítők!J18","v":0}]
["Elektromos gépek, berendezések biztosítása",null,null,null,null,null,null,null,null,{"$f":"Kiegészítők!J26","v":0}]
["Felelősségbiztosítás",null,null,null,null,null,null,null,null,{"$f":"Kiegészítők!J43","v":0}]
[]
["Éves díj ",null,null,null,null,null,null,null,null,{"$f":"J13+J16+J17+J18+J19","v":0}]
["Pótdíjak"]
["Engedmények",null,null,null,null,"Csomag engedmény",null,null,null,{"$f":"IF(M15<4,0,IF(M15=4,0.95,IF(OR(M15=5,M15=6),0.9)))","v":0}]
[null,null,null,null,null,"Üzleti engedmények",null,"üzleti",5,{"$f":"IF(J21=0,0,M24)","v":0},null,null,{"$f":"IF(H24=0,0,IF(H24=\"üzleti\",(100-I24)/100,IF(H24=\"üzletpolitikai\",0.84)))","v":0.95}]
[null,null,null,null,null,"Tartamengedmény",null,null,null,{"$f":"IF(Ajánlat1!E28=\"Felmondási jog 3 évre kizárva\",0.9,0)","v":0.9},null,null,null,{"$f":"IF(AND(J23=0,J24=0,J25=0,J26=0),0,IF(AND(J23>0,J24>0,J25>0,J26>0),(J23*J24*J25*J26),IF(AND(J23>0,J24=0,J25=0,J26=0),J23,IF(AND(J23>0,J24>0,J25=0,J26=0),(J23*J24),IF(AND(J23>0,J24>0,J25>0,J26=0),(J23*J24*J25),IF(AND(J23=0,J24>0,J25>0,J26>0),(J24*J25*J26),IF(AND(J23=0,J24=0,J25>0,J26>0),(J25*J26),0)))))))","v":0}]
[null,null,null,null,null,"Egyedi engedmény",null,null,null,null,null,null,{"$f":"IF(Ajánlat1!J28>0,1,0)","v":0},{"$f":"IF(AND(J23=0,J24=0,J25=0,J26>0),J26,IF(AND(J23=0,J24>0,J25=0,J26=0),J24,IF(AND(J23=0,J24=0,J25>0,J26=0),J25,IF(AND(J23=0,J24>0,J25>0,J26=0),(J24*J25),IF(AND(J23>0,J24=0,J25=0,J26>0),(J23*J26),IF(AND(J23>0,J24=0,J25>0,J26=0),(J23*J25),0))))))","v":0.9}]
["Éves díj összesen",null,null,null,null,null,null,null,null,{"$f":"IF(J21=0,0,MAX(20000,IF(N28=0,J21,IF(N28>0,(J21*N28)))))","v":0},null,null,{"$f":"J27/365","v":0},{"$f":"IF(AND(J23>0,J24=0,J25>0,J26>0),(J23*J25*J26),IF(AND(J23>0,J24>0,J25=0,J26>0),(J23*J24*J26),0))","v":0}]
["Gyakorisági díj",null,null,null,null,"Díjfizetés gyakorisága",null,"féléves",null,{"$f":"IF(H28=0,0,IF(H28=\"éves\",J27*0.92,IF(H28=\"féléves\",(J27/2)*0.96,IF(H28=\"negyedéves\",J27/4))))","v":0},null,null,{"$f":"IF(H28=\"negyedéves\",J28*4,IF(H28=\"féléves\",J28*2,IF(H28=\"éves\",J28)))","v":0},{"$f":"IF(AND(N25=0,N26=0,N27=0),0,IF(AND(N25>0,N26=0,N27=0),N25,IF(AND(N25=0,N26>0,N27=0),N26,IF(AND(N25=0,N26=0,N27>0),N27))))","v":0.9}]
["Fizetendő első díj ",null,null,null,null,null,null,null,null,{"$f":"J30","v":0},null,null,{"$f":"M28/365","v":0}]
["Fizetendő díj ",null,{"$f":"Ajánlat1!E30","v":"2021-04-01"},null,{"$f":"IF(OR(Ajánlat1!J28=\"\",Ajánlat1!N28>364),DATEVALUE(CONCATENATE(YEAR(Ajánlat1!E30),\".\",MONTH(Ajánlat1!E30)+1,\".01\")),\"\")","v":"2021-05-01"},null,{"$f":"IF(OR(MOD(YEAR(Ajánlat1!E26)-2000,4)=0,Ajánlat1!J28=\"\"),365,IF(Ajánlat1!J28-Ajánlat1!E26=364,365,Ajánlat1!J28-Ajánlat1!E26+1))","v":365},{"$f":"SUM(E31-C30)","v":30},null,{"$f":"IF(Ajánlat1!J28>0,((G30*M27)+(M27*30)),(M29*H30)+J28)","v":0}]
[null,null,null,null,{"$f":"DATEVALUE(CONCATENATE(YEAR(Ajánlat1!E30),\".\",MONTH(Ajánlat1!E30)+1,\".01\"))","v":"2021-05-01"}]
[]
[]
[]
["Dátum",{"$f":"Ajánlat1!C90","v":0},null,{"$f":"TODAY()","v":"2021-03-31"}]
[]
[]
[null,"üzletkötő",null,null,null,null,null,"szerződő/biztosított"]
[]
[]
[]
[]
[]
[]
[]
[]
[]
[]
[]
[]
[]
[]
[]
[]
[]
[]
[]
[]
[]
[]
[]
[]
[0,null,"3 nap",null,"10%, de minimum 25.000 Ft",null,null,1,1]
[5000,null,"5 nap",null,"10%, de minimum 50.000 Ft",null,null,2,0.95]
[10000,null,"7 nap",null,"10%, de minimum 100.000 Ft",null,null,3,0.85]
[25000,null,null,null,"10%, de minimum 200.000 Ft",null,null,4,0.7]
[50000,null,null,null,"20%, de minimum 25.000 Ft",null,null,5,0.92]
[100000,null,null,null,"20%, de minimum 50.000 Ft",null,null,6,0.87]
[200000,null,null,null,"20%, de minimum 100.000 Ft",null,null,7,0.78]
[null,null,null,null,"20%, de minimum 200.000 Ft",null,null,8,0.64]
["Small"]
["Medium",null,null,"0-2",null,"kérem",null,"éves"]
["Large",null,null,"2,01-5",null,"nem kérem",null,"féléves"]
[null,null,null,"5,01-10",null,null,null,"negyedéves"]
[null,null,null,"10,01-15",null,"üzleti"]
[null,null,null,"15 felett",null,"üzletpolitikai"]

{"sheet":"Kockázatfelmérő","index":10,"n_rows":96,"n_cols":19,"rows_kept":96,"cut":false,"hidden":true,"merged":[[5,4,5,12],[7,1,7,12],[9,11,9,12],[11,1,11,12],[19,1,19,9],[19,11,19,12],[13,3,13,9],[15,1,15,9],[15,11,15,12],[17,1,17,9],[17,11,17,12],[23,11,23,12],[27,3,27,9],[29,1,29,9],[29,11,29,12],[21,1,21,9],[21,11,21,12],[35,1,35,9],[35,11,35,12],[37,11,37,12],[39,1,39,11],[31,1,31,9],[31,11,31,12],[33,1,33,9],[33,11,33,12],[50,11,50,12],[52,11,52,12],[54,8,54,12],[56,8,56,10],[58,8,58,10],[40,11,40,12],[42,11,42,12],[44,11,44,12],[46,11,46,12],[48,11,48,12],[66,1,66,3],[66,5,66,6],[66,8,66,9],[66,11,66,12],[62,11,62,12],[64,1,64,3],[64,5,64,6],[64,8,64,9],[64,11,64,12],[62,1,62,3],[62,5,62,6],[62,8,62,9],[70,1,70,3],[70,5,70,6],[70,8,70,9],[70,11,70,12],[68,1,68,3],[68,5,68,6],[68,8,68,9],[68,11,68,12],[79,8,79,10],[80,8,80,10],[72,3,72,12],[74,1,74,12],[76,1,76,12],[77,2,77,3],[77,4,77,5]]}
[]
[null,null,null,null,null,null,null,null,null,null,null,null,"UNION-Business Class"]
[null,null,null,null,null,null,null,null,null,null,null,null,"Kockázatfelmérő adatlap"]
[]
[]
[null,"Szerződő/Biztosított neve:",null,null,{"$f":"Ajánlat1!E16","v":0}]
[]
[null,"Szerződő/biztosítottként nyilatkozom, hogy a jelen biztosítási ajánlatban részletezett telephelyek megfelelnek az alábbiaknak:"]
[]
[null,"1. Az épületek falazata szilárd anyagból készült (tégla, kő, vasbeton)",null,null,null,null,null,null,null,null,null,"igen",null,null,{"$f":"IF(L10=\"igen\",1,IF(AND(L10=\"nem\",B16>0,L16>0),1,IF(L10=0,0,IF(AND(L10=\"nem\",B16=0,L16=0),2))))","v":1}]
[]
[null,"2. A nem szilárd anyagból készült épületek (vályog, könnyűszerkezet, fa) az alábbi telephelyeken találhatók:"]
[]
[null,"Telephely címe:",null,{"$f":"IF(O10=2,\"Kérjük adja meg az épületek címét és a funkciókat\",0)","v":0},null,null,null,null,null,null,null,"Épület funkciója:"]
[]
[]
[]
[]
[]
[]
[]
[]
[]
[null,"3. Az épületek héjalása (tetőzete) szilárd anyagból készült (cserép, pala, beton)",null,null,null,null,null,null,null,null,null,"igen",null,null,{"$f":"IF(L24=\"igen\",1,IF(AND(L24=\"nem\",B30>0,L30>0),1,IF(L24=0,0,IF(AND(L24=\"nem\",B30=0,L30=0),2))))","v":1}]
[]
[null,"4. A nem szilárd anyagból készült (nád, fa) héjalású épületek az alábbi telephelyeken találhatók:"]
[]
[null,"Telephely címe:",null,{"$f":"IF(O24=2,\"Kérjük adja meg az épületek címét és a funkciókat\",0)","v":0},null,null,null,null,null,null,null,"Épület funkciója:"]
[]
[]
[]
[]
[]
[]
[]
[]
[]
[null,"5. A telephelyek épületeinek állaga:",null,null,null,null,null,null,null,null,null,"jó",null,null,{"$f":"IF(L38=0,0,IF(L38>0,1))","v":1}]
[]
[null,"6. A telephelyek tűzvédelmi berendezéssel ellátottak (hagyományos kézi oltókészülékek,"]
[null,"kiépített hálózat, a tüzivíz ellátása megoldott)",null,null,null,null,null,null,null,null,null,"igen",null,null,{"$f":"IF(L41=0,0,IF(L41>0,1))","v":1}]
[]
[null,"7. A telephelyeken automata tűz, füst, hőérzékelő működik:",null,null,null,null,null,null,null,null,null,"igen",null,null,{"$f":"IF(L43=0,0,IF(L43>0,1))","v":1}]
[]
[null,"8. A tűzoltó készülékek, tűzjelző berendezések ellenőrzése rendszeres:",null,null,null,null,null,null,null,null,null,"igen",null,null,{"$f":"IF(L45=0,0,IF(L45>0,1))","v":1}]
[]
[null,"9. Használnak-e lobbanékony folyadékokat/gázokat:",null,null,null,null,null,null,"nem","Ha igen, milyet:",null,null,null,null,{"$f":"IF(I47=0,0,IF(AND(I47=\"igen\",L47=0),2,IF(AND(I47=\"igen\",L47>0),1,IF(I47=\"nem\",1))))","v":1}]
[]
[null,"10. Fennállnak-e külső veszélyforrások:",null,null,null,null,null,null,"nem","Ha igen milyen:",null,null,null,null,{"$f":"IF(I49=0,0,IF(AND(I49=\"igen\",L49=0),2,IF(AND(I49=\"igen\",L49>0),1,IF(I49=\"nem\",1))))","v":1}]
[]
[null,"11. Az elektromos hálózat állapota megfelelő (szigeteltek a kábelek, trafóházak):",null,null,null,null,null,null,null,null,null,"igen",null,null,{"$f":"IF(L51=0,0,IF(L51>0,1))","v":1}]
[]
[null,"12. Az ajánlatban szereplő kockázatokra más társaságnál biztosítással rendelkezem:",null,null,null,null,null,null,null,null,null,"nem",null,null,{"$f":"IF(L53=0,0,IF(AND(L53=\"igen\",I55=0,I57=0),2,IF(AND(L53=\"igen\",I55>0,I57>0),1,IF(L53=\"nem\",1))))","v":1}]
[]
[null,"13. Ha igen a szerződést kezelő biztosító társaság neve:"]
[]
[null,null,null,null,null,null,"Biztosítás kötvényszám"]
[]
[null,"14. Kárelőzmények: (az előző két év káreseményei)",null,null,null,null,null,null,"nem volt károm",null,null,null,null,null,{"$f":"IF(I59=0,0,IF(I59=\"nem volt károm\",1,IF(AND(I59=\"volt károm\",B63=0,F63=0,I63=0,L63=0),2,IF(AND(I59=\"volt károm\",B63>0,F63>0,I63>0,L63>0),1))))","v":1}]
[]
[null,"15. Telephely címe",null,null,null,"Kár időpontja",null,null,"Kár oka:",null,null,"Kár összege:",null,null,{"$f":"IF(AND(O10=0,O24=0,O38=0,O41=0,O43=0,O45=0,O47=0,O49=0,O51=0,O53=0,O59=0),0,IF(AND(O10=1,O24=1,O38=1,O41=1,O43=1,O45=1,O47=1,O49=1,O51=1,O53=1,O59=1),1,IF(OR(O10>1,O10=0,O24>1,O24=0,O38>1,O24=0,O41>1,O41=0,O43>1,O43=0,O45>1,O45=0,O47>1,O47=0,O49>1,O49=0,O51>1,O51=0,O53>1,O53=0,O59>1,O59=0),2)))","v":1}]
[]
[null,null,null,null,null,null,null,null,null,null,null,null,null,null,"HA(ÉS("]
[]
[]
[]
[]
[]
[]
[]
[]
[]
[null,"Megjegyzések:",null,null,null,null,null,null,null,null,null,null,null,null,{"$f":"IF(O61=11,0,IF(O61<11,1,IF(O61>11,2)))","v":1}]
[]
[null,null,null,null,null,null,null,null,null,null,null,null,null,null,{"$f":"VLOOKUP(1,O10:O59,1,FALSE)","v":1}]
[]
[null,{"$f":"IF(O61=0,\"Kérjük, töltse ki a kockázatfelmérő adatlapot!\",IF(O61=1,0,IF(O61=2,\"Kérjük, töltse ki a hiányzó adatokat!\")))","v":0}]
[null,"Kelt.",{"$f":"Ajánlat1!C90","v":0},null,{"$f":"Ajánlat1!E90","v":"2021-03-31"}]
[]
[]
[null,null,null,null,null,null,null,null,"szerződő/biztosított",null,null,null,null,null,null,null,null,null,{"$f":"ÉpületIngóság!B10","v":"gfshgf"}]
[null,null,null,null,null,null,null,null,null,null,null,null,null,null,null,null,null,null,{"$f":"ÉpületIngóság!B11","v":0}]
[null,null,null,null,null,null,null,null,null,null,null,null,null,null,null,null,null,null,{"$f":"ÉpületIngóság!B12","v":0}]
[null,{"$f":"Ajánlat1!B94","v":"Verzió: 0.85"},null,null,null,null,null,null,null,null,null,null,null,null,{"$f":"O10","v":1},null,null,null,{"$f":"ÉpületIngóság!B13","v":0}]
[null,{"$f":"Ajánlat1!B95","v":"UNION-Business Class Érvényes: 2009.06.24.-től  "},null,null,null,null,null,null,null,null,null,null,null,null,{"$f":"O24","v":1},null,null,null,{"$f":"ÉpületIngóság!B14","v":0}]
[null,null,null,null,null,null,null,null,null,null,null,null,null,null,{"$f":"O38","v":1},null,null,null,{"$f":"ÉpületIngóság!B15","v":0}]
[null,null,null,null,null,null,null,null,null,null,null,null,null,null,{"$f":"O41","v":1},null,null,null,{"$f":"ÉpületIngóság!B16","v":0}]
[null,null,null,null,null,null,null,null,null,null,null,null,null,null,{"$f":"O43","v":1},null,null,null,{"$f":"ÉpületIngóság!B17","v":0}]
[null,null,null,null,null,null,null,null,null,null,null,null,null,null,{"$f":"O45","v":1},null,null,null,{"$f":"ÉpületIngóság!B18","v":0}]
[null,"igen","üzemcsarnok",null,null,"jó",null,null,"volt károm",null,null,null,null,null,{"$f":"O47","v":1},null,null,null,{"$f":"ÉpületIngóság!B19","v":0}]
[null,"nem","raktár",null,null,"közepes",null,null,"nem volt károm",null,null,null,null,null,{"$f":"O49","v":1},null,null,null,{"$f":"ÉpületIngóság!B20","v":0}]
[null,null,"műhely",null,null,"rossz",null,null,null,null,null,null,null,null,{"$f":"O51","v":1},null,null,null,{"$f":"ÉpületIngóság!B21","v":0}]
[null,null,"iroda",null,null,null,null,null,null,null,null,null,null,null,{"$f":"O53","v":1},null,null,null,{"$f":"ÉpületIngóság!B22","v":0}]
[null,null,"üzlet",null,null,null,null,null,null,null,null,null,null,null,{"$f":"O59","v":1},null,null,null,{"$f":"ÉpületIngóság!B23","v":0}]
[null,null,"szociális létesítmény",null,null,null,null,null,null,null,null,null,null,null,{"$f":"IF(AND(O84:O94)=0,1,IF(AND(O84:O94)=1,0,IF(OR(O84:O94)=2,2,IF(OR(O84:O94)=0,2))))","v":false},null,null,null,{"$f":"ÉpületIngóság!B24","v":0}]
[null,null,null,null,null,null,null,null,null,null,null,null,null,null,null,null,null,null,{"$f":"ÉpületIngóság!B25","v":0}]

{"sheet":"Nyilatkozat","index":11,"n_rows":67,"n_cols":6,"rows_kept":67,"cut":false,"hidden":true,"merged":[[60,2,60,3],[58,1,58,8],[59,1,59,8],[4,2,4,8],[6,2,6,8],[8,1,8,8],[10,1,10,8],[12,1,12,8],[14,1,14,8],[16,1,16,8],[34,1,34,8],[22,1,22,8],[24,1,24,8],[26,1,26,8],[28,1,28,8],[17,1,17,8],[18,1,18,8],[19,1,19,8],[20,1,20,8],[54,2,54,3],[1,4,1,9],[2,5,2,9],[35,1,35,8],[37,1,37,8],[38,1,38,8],[41,1,41,8],[30,1,30,8],[31,1,31,8],[32,1,32,8]]}
[]
[null,null,null,null,"UNION-Business Class"]
[null,null,null,null,null,"Nyilatkozat"]
[]
[null,"Szerződő/biztosított neve:",{"$f":"Ajánlat1!E16","v":0}]
[]
[null,"Adószáma:",{"$f":"Ajánlat1!D18","v":0}]
[]
[null,"Szerződő/biztosítottként a biztosítási szerződések megkötésére vonatkozó jogszabályokban foglaltak alapján ajánlatot teszek az UNION-Business Class biztosításának megkötésére. "]
[]
[null,"Kijelentem, hogy az UNION Vienna Insurance Group Biztosító Zrt /továbbiakban biztosító/ részére átadott UNION-Business Class biztosítási ajánlatom megtétele előtt az általam megjelölt biztosítások feltételeit megismertem és átvettem."]
[]
[null,"A szerződő/biztosított kijelenti, hogy a biztosító által feltett kérdésekre adott válaszok a valóságnak megfelelnek."]
[]
[null,"A szerződő/biztosított tudomásul veszi hogy:"]
[]
[null,"-az ajánlattételkor befizetett összeget a biztosító díjelőlegként kezeli, az ajánlat elfogadása esetén díjfizetésként tudja be, az ajánlat elutasítása esetén a szerződőnek kamatmentesen visszautalja,"]
[null,"-a szóbeli közlések vagy kikötések csak akkor érvényesek, ha azokat a biztosító illetékes szerve írásban igazolja,"]
[null,"-valótlan adatok közlése a biztosítás érvénytelenségét vonja maga után,"]
[null,"-a biztosító kötvénykiállításra és szolgáltatás teljesítésre jogosult szerve a vezérigazgatóság,"]
[null,"-a biztosító a kárrendezési tevékenységet kiszervezheti, ilyen esetben a kárrendezéshez szükséges adatok a Bit. 157.§(1) bek. o) pontja értelmében átadhatók,"]
[null,"-az adatszolgáltatás önkéntes,"]
[null,"-a biztosító a tudomására jutott valamennyi adatot biztosítási titokként kezeli, és csak az ügyfél írásbeli beleegyezésével adja ki harmadik személynek. A titoktartási kötelezettség nem áll fenn a biztosítókról és a biztosítási tevékenységről szóló 2003. évi LX. törvényben (\"Bit\") tételesen felsorolt esetekben, és az ott meghatározott szervek, szervezetek megkeresése, illetve ezen szervek, szervezetek részére történő átadás esetén."]
[]
[null,"A szerződő/biztosított hozzájárul ahhoz, hogy:"]
[]
[null," - a biztosítási szerződés megkötéséhez, módosításához, állományban tartásához, valamint a szolgáltatás teljesítéséhez szükséges adatokat, ideértve a különleges adatokat is a biztosító a Bit., valamint az adatvédelmi törvény rendelkezéseinek megfelelően kezelje, az adatokat számítógépes úton feldolgozza. Az adatkezelés célja csak a biztosítás megkötéséhez, módosításához, állományban tartásához, a biztosításból származó követelések megítéléséhez szükséges, vagy a Bit. által meghatározott egyéb cél lehet. "]
[]
[null,"A szerődő/biztosított nyilatkozik, hogy:"]
[]
[null," - az UNION Vienna Insurance Group Biztosító Zrt részére átadott biztosítási ajánlatát, biztosítási igényeinek előzetes felmérése és pontosítása alapján teszi meg;"]
[null,"- a biztosítás megkötése előtt tájékoztatást kapott a biztosító fő adatairól, valamint a biztosítási termékről,"]
[null,"- felhatalmazza azokat a biztosítókat, amelyek a biztosítottra vonatkozóan azonos vagy összefüggő kockázatú biztosításokat kezelnek, hogy a kockázatelbírálásához, a szerződés kezeléséhez és a szolgáltatási igény elbírálásához szükséges adatokat az UNION Vienna Insurance Group Biztosító Zrt részére továbbítsák."]
[]
[null,"A biztosítási szerződéssel kapcsolatos kérdések esetén ügyfélszolgálatunk rendelkezésre áll. "]
[null,"Az Ügyfélszolgálat hívható a (06-1) 486 - 4343-es telefonszámon."]
[]
[null,"Panaszügyek intézésére társaságunk Vezérigazgatósága jogosult: H-1386 Bp. 62, Pf. 906/77. Tel: (1) 486 - 4200. "]
[null,"A panasz ügyintézés nem helyettesíti a peres eljárást,"]
[]
[null,"A biztosító felügyeleti szerve: "]
[null,"Pénzügyi Szervezetek Állami Felügyelete, 1535 Budapest, 114. Pf. 777."]
[]
[null,"Átvett mellékletek:"]
[null,"UNION-Business Class biztosítás Általános Feltételek"]
[null,"UNION-Business Class biztosítás Különös Feltételek Épület biztosításhoz"]
[null,"UNION-Business Class biztosítás Különös Feltételek Ingóság biztosításhoz"]
[null,"UNION-Business Class biztosítás Kiegészítő Felelősségbiztosítás Különös Feltételek"]
[null,"UNION-Business Class biztosítás Kiegészítő Üzemszünet biztosítási Feltételek"]
[null,"UNION-Business Class biztosítás Kiegészítő Géptörésbiztosítási Feltételek"]
[null,"UNION-Business Class biztosítás Kiegészítő Elektromos gépek berendezése biztosítási Feltételek"]
[null,"UNION-Business Class biztosítás Védelmi Feltételek"]
[null,"UNION-Business Class biztosítás Épület-, Ingóság-, Felelősségbiztosítás kockázati és limit táblázatok"]
[]
[null,{"$f":"Ajánlat1!C90","v":0},{"$f":"Ajánlat1!E90","v":"2021-03-31"}]
[]
[null," "]
[null,null,null,null,null," Szerződő/Biztosított aláírása"]
[null,"A gazdasági reklámtevékenységről szóló 2008.évi XLVIII.tv. (Gtv) 6.§-ben foglaltak szerint a szerződő/biztosított hozzájárul ahhoz, hogy részére a biztosító közvetlen megkeresés módszerével, így különösen elektronikus levelezés vagy azzal egyenértékű más egyéni kommunikációs eszköz útján gazdasági reklámokat küldjön, ebből a célból a nevét, lakcímét, e-mail címét és mobilszámát nyilvántartsa. "]
[null,"A biztosító az előző céllal az adatokat a Gtv. Előírásainak megfelelően, a hozzájáruló nyilatkozat visszavonásáig tartja nyilván és indoklás nélkül, ingyenesen visszavonható a biztosító részére postai (1461.Budapest, Pf.131.) vagy elektronikus úton (e-mail: dm@unionbiztosito.hu) megküldött nyilatkozattal. Szerződő/biztosított kijelenti, hogy a jelen nyilatkozat önkéntes adatszolgáltatáson alapul, és az adatkezelés céljáról, tartalmáról szóló megfelelő tájékoztatást követően történt."]
[null,{"$f":"Ajánlat1!C90","v":0},{"$f":"Ajánlat1!E90","v":"2021-03-31"}]
[]
[null," "]
[null,null,null,null,null," Szerződő/Biztosított aláírása"]
[]
[null,{"$f":"Ajánlat1!B94","v":"Verzió: 0.85"}]
[null,{"$f":"Ajánlat1!B95","v":"UNION-Business Class Érvényes: 2009.06.24.-től  "}]

{"sheet":"Nyomtatás","index":12,"n_rows":10,"n_cols":2,"rows_kept":10,"cut":false,"hidden":true,"merged":[]}
[]
[]
[]
[]
[]
[null,"Figyelem! "]
[]
[null,"A Nyomtatás gomb megnyomása esetén a teljes ajánlat 3 példányban nyomtatásra kerül !"]
[]
[null,"Az ajánlat első példányát kell az ügyfél részére átadni, mert ehhez kerülnek nyomtatásra a limit táblázatok.   "]

{"sheet":"Munka8","index":13,"n_rows":17,"n_cols":4,"rows_kept":17,"cut":false,"hidden":true,"merged":[[17,0,17,9],[19,0,20,9],[5,0,5,9],[8,0,8,9],[11,0,11,9],[14,0,14,9]]}
[]
["Épület","Ingóság","Felelősség","Géptörés"]
[{"$f":"IF(Díjszámítás!A27=0,0,IF(Díjszámítás!A27=\"Alap\",1,IF(Díjszámítás!A27=\"Teljes\",2,IF(Díjszámítás!A27=\"Extra\",3))))","v":3},{"$f":"IF(Díjszámítás!A42=0,0,IF(Díjszámítás!A42=\"Alap\",1,IF(Díjszámítás!A42=\"Teljes\",2,IF(Díjszámítás!A42=\"Extra\",3))))","v":false},{"$f":"IF(Díjszámítás!A77=0,0,IF(Díjszámítás!A77=\"Alap\",1,IF(Díjszámítás!A77=\"Teljes\",2,IF(Díjszámítás!A77=\"Extra\",3))))","v":false},{"$f":"IF(AND(GéptörésELBER!O24=0,GéptörésELBER!O40=0),0,IF(OR(GéptörésELBER!O24>0,GéptörésELBER!O40>0),1))","v":0}]
["Az Limit (ÉpLimit; IngóLimit; FelLimit) munkalapokat mindig csak az első példányhoz kell kinyomtatni."]
["Ha az Épület (A3 cella) 0, akkor nem kell kinyomtatni az Épület, és az ÉpLimit munkalapokat"]
["Ha az Épület (A3 cella) értéke 1-es, akkor ki kell kinyomtatni az Épület munkalapot, és az ÉpLimit munkap 1. Oldalát, ha a cella értéke 2-es, akkor az Épület munkalapot és az ÉpLimit munkalap 2. Oldalát, ha az érték 3-as, akkor az Épület munkalapot és az ÉpLimit munkap 3. oldalát."]
[]
["Ha az Ingóság (B3 cella) 0, akkor nem kell kinyomtatni az IngóLimit munkalapokat"]
["Ha az Ingóság (B3 cella) értéke 1-es, akkor ki kell kinyomtatni az Épület munkalapot, és az IngóLimit munkap 1. Oldalát, ha a cella értéke 2-es, akkor az Épület munkalapot és az IngóLimit munkalap 2. Oldalát, ha az érték 3-as, akkor az Épület munkalapot és az IngóLimit munkap 3. oldalát."]
[]
["Ha az Felelősség (C3 cella) 0, akkor nem kell kinyomtatni a FelLimit munkalapot"]
["Ha a Felelősség (C3 cella) értéke 1-es, akkor ki kell kinyomtatni a FelLimit munkap 1. Oldalát, ha a cella értéke 2-es, akkor a FelLimit munkalap 2. Oldalát, ha az érték 3-as, akkor a FelLimit munkap 3. oldalát."]
[]
["Ha a Géptörés (D3 cella) 0, akkor nem kell kinyomtatni a Géptörés-ELBER munkalapot"]
["Ha a Géptörés (D3 cella) értéke 1-es, akkor ki kell kinyomtatni a Géptörés-ELBER munkapot."]
[]
["Mindig ki kell nyomtatni az Ajánlat1, a Díjkalkuláció, az Épület, a Kockázatfelmérő és a Nyilatkozat munkalapokat."]

{"sheet":"ÉpLimit","index":14,"n_rows":113,"n_cols":5,"rows_kept":113,"cut":false,"hidden":true,"merged":[[68,0,68,4],[82,2,82,4],[87,0,87,4],[108,0,108,4],[6,0,6,4],[27,0,27,4],[42,2,42,4],[47,0,47,4]]}
[]
[null,null,null,null,"UNION-Business Class "]
[null,null,null,null,"Épületbiztosítás Alap csomag"]
[]
[]
["ÉPÜLET ALAPKOCKÁZATOK ÉS LIMITEK","TŰZBIZTOSÍTÁS (tűz, robbanás, villámcsapás, légi jármű lezuhanása)","ELEMI KÁROK (vihar, felhőszakadás jégverés, hónyomás, földrengés)","VEZETÉKES VÍZKÁR ","ÜVEGBIZTOSÍ-TÁS"]
["ÉPÜLET KIEGÉSZÍTŐK (biztosítási összegen belül)"]
["Alulbiztosítás vizsgálatáról való lemondás","10%, max.                   10 MFt-ig","10%, max.                      10 MFt-ig","10%, max.                   10 MFt-ig","-"]
["Füst és hő által okozott károk  ","-","-","-","-"]
["Elektromos tűz  ","-","-","-","-"]
["Villámcsapás által közvetetten okozott elektromos berendezésekben keletkezett károk ","-","-","-","-"]
["Mentési, oltási, kárenyhítési, bontási romeltakarítási költségek","10%",0.1,0.1,"-"]
["Tervezési költségek "," - "," - "," - ","-"]
["Szilárdan beépített kerítés, külső létesítmények/berendezések, vmint antennák, napenergia-berendezés (ha az ingatlan tulajdonosáé), kárai beleértve az idegen jármű ütközését is. ","5% max.\n1 MFt","5% max.\n1 MFt","-","-"]
["Kibővített biztosítási védelem elemi károkra (árvíz, földmozgás)","-","-","-","-"]
["Csőpótlás","-","-","max. 2 m-ig","-"]
["Technológiai cső","-","-","  -","-"]
["Épületen kívüli bevezetőcsövek az ingatlan területén ","-","-","  -","-"]
["Telken kívüli bevezetőcsövek ","-","-","  - ","-"]
["Kapcsolódó berendezések és szerelvények szükségszerű pótlása a kárelhárítás során","-","-","  -","-"]
["Dugulás ","-","-","  -","-"]
["Épületen kívüli elvezetőcsövek az ingatlan területén ","-","-","  -","-"]
["Ajtók, ablakok, portálok max.10 mm vastag üvegezésében keletkezett károk ","-","-","-","3 m2  max.                                      0,3 MFt"]
["Ólom-, sárgaréz- és műanyagüveg, vmint épületen elhelyezett napenergia-berendezések ","-","-","-","  -"]
["Cégtáblák, díszfények, mindenfajta biztonsági üveg, üvegtetők, plexikupolák vmint télikertek","-","-","-","  -"]
["Védőrács le- és felszerelési, sürgős üvegezési, állványozási, üvegcserepek eltakarítási költségei","-","-","-",0.1]
["Engedélyezett tüntetések során keletkezett károk ","-","-","-","  -"]
["ÉPÜLET KIEGÉSZÍTŐK (biztosítási összegen felül)"]
["Hivatali eljárások, dokumentumok beszerzésének többletköltségei ","5% max.\n0,2 MFt","5% max.\n0,2 MFt","5% max.\n0,2 MFt","-"]
["* Radioaktív szennyeződés mellékköltségei - (Szállítási, lebontási és izolációs költségek Veszélyes anyagok beleértve a rádioaktív anyagokkal szennyezett föld kezelési többletköltségei)","5% min.\n1 MFt","5% min.\n1 MFt","5% min.\n1 MFt","-"]
["Szakértői díjak ","0,1 MFt","0,1 MFt","0,1 MFt","-"]
["Az elfolyt víz értéke ","-","-","  -","-"]
[]
["Tűzvédelmi és riasztási gyakorlatok","O"]
[]
[]
[]
[]
[]
[]
[]
[]
[null,null,"UNION-Business Class"]
[null,null,null,null,"Épületbiztosítás Teljes csomag"]
[]
[]
["ÉPÜLET ALAPKOCKÁZATOK ÉS LIMITEK","TŰZBIZTOSÍTÁS (tűz, robbanás, villámcsapás, légi jármű lezuhanása)","ELEMI KÁROK (vihar, felhőszakadás jégverés, hónyomás, földrengés)","VEZETÉKES VÍZKÁR ","ÜVEGBIZTOSÍ-TÁS"]
["ÉPÜLET KIEGÉSZÍTŐK (biztosítási összegen belül)"]
["Alulbiztosítás vizsgálatáról való lemondás","10%, max.                   10 MFt-ig","10%, max.                      10 MFt-ig","10%, max.                   10 MFt-ig","  -"]
["Füst és hő által okozott károk  ","+","  -","  -","  -"]
["Elektromos tűz  ","+","  -","  -","  -"]
["Villámcsapás által közvetetten okozott elektromos berendezésekben keletkezett károk ","10% max.\n3 MFt","  -","  -","  -"]
["Mentési, oltási, kárenyhítési, bontási romeltakarítási költségek","10%",0.1,0.1,"  -"]
["Tervezési költségek ","10%",0.1,0.1,"  -"]
["Szilárdan beépített kerítés, külső létesítmények/berendezések, vmint antennák, napenergia-berendezés (ha az ingatlan tulajdonosáé), kárai beleértve az idegen jármű ütközését is. ","10% max.\n2 MFt","10%, max.\n2 MFt","  -","  -"]
["Kibővített biztosítási védelem elemi károkra (árvíz, földmozgás)","  -","+","  -","  -"]
["Csőpótlás","  -","  -","max. 6 m-ig","  -"]
["Technológiai cső","  -","  -","+","  -"]
["Épületen kívüli bevezetőcsövek az ingatlan területén ","  -","  -","+","  -"]
["Telken kívüli bevezetőcsövek ","  -","  -","+","  -"]
["Kapcsolódó berendezések és szerelvények szükségszerű pótlása a kárelhárítás során","  -","  -","+","  -"]
["Dugulás ","  -","  -","  -","  -"]
["Épületen kívüli elvezetőcsövek az ingatlan területén ","  -","  -","  -","  -"]
["Ajtók, ablakok, portálok max.10 mm vastag üvegezésében keletkezett károk ","  -","  -","  -","6 m2  max.                       0,5 MFt"]
["Ólom-, sárgaréz- és műanyagüveg, vmint épületen elhelyezett napenergia-berendezések ","  -","  -","  -"," -"]
["Cégtáblák, díszfények, mindenfajta biztonsági üveg, üvegtetők, plexikupolák vmint télikertek","  -","  -","  -","+"]
["Védőrács le- és felszerelési, sürgős üvegezési, állványozási, üvegcserepek eltakarítási költségei","  -","  -","  -",0.1]
["Engedélyezett tüntetések során keletkezett károk ","  -","  -","  -","  -"]
["ÉPÜLET KIEGÉSZÍTŐK  (biztosítási összegen felül)"]
["Hivatali eljárások, dokumentumok beszerzésének többletköltségei ","10% max.\n0,5 MFt","10% max.\n0,5 MFt","10% max.\n0,5 MFt","  -"]
["* Radioaktív szennyeződés mellékköltségei - (Szállítási, lebontási és izolációs költségek Veszélyes anyagok beleértve a rádioaktív anyagokkal szennyezett föld kezelési többletköltségei)","max.10%, de min.\n1 MFt","max.10%, de min.\n1 MFt","max.10%, de min.\n1 MFt","  -"]
["Szakértői díjak ","0,3 MFt","0,3 MFt","0,3 MFt","  -"]
["Az elfolyt víz értéke ","  -","  -","0,5 MFt","  -"]
[]
[]
[]
[]
[]
[]
[]
[]
[]
[null,null,"UNION-Business Class"]
[null,null,null,null,"Épületbiztosítás Extra csomag"]
[]
[]
["ÉPÜLET ALAPKOCKÁZATOK ÉS LIMITEK","TŰZBIZTOSÍTÁS (tűz, robbanás, villámcsapás, légi jármű lezuhanása)","ELEMI KÁROK (vihar, felhőszakadás jégverés, hónyomás, földrengés)","VEZETÉKES VÍZKÁR ","ÜVEGBIZTOSÍ-TÁS"]
["ÉPÜLET KIEGÉSZÍTŐK (biztosítási összegen belül)"]
["Alulbiztosítás vizsgálatáról való lemondás","10%, max.                   10 MFt-ig","10%, max.                      10 MFt-ig","10%, max.                   10 MFt-ig","  -"]
["Füst és hő által okozott károk  ","+","  -","  -","  -"]
["Elektromos tűz  ","+","  -","  -","  -"]
["Villámcsapás által közvetetten okozott elektromos berendezésekben keletkezett károk ","15% max.\n5 MFt","  -","  -","  -"]
["Mentési, oltási, kárenyhítési, bontási romeltakarítási költségek","10%",0.1,0.1,"  -"]
["Tervezési költségek","10%",0.1,0.1,"  -"]
["Szilárdan beépített kerítés, külső létesítmények/berendezések, vmint antennák, napenergia-berendezés (ha az ingatlan tulajdonosáé), kárai beleértve az idegen jármű ütközését is. ","15% max.\n3 MFt","15% max.                          3 MFt","  -","  -"]
["Kibővített biztosítási védelem elemi károkra (árvíz, földmozgás)","  -","+","  -","  -"]
["Csőpótlás","  -","  -","max. 10 m-ig","  -"]
["Technológiai cső","  -","  -","+","  -"]
["Épületen kívüli bevezetőcsövek az ingatlan területén ","  -","  -","+","  -"]
["Telken kívüli bevezetőcsövek ","  -","  -","+","  -"]
["Kapcsolódó berendezések és szerelvények szükségszerű pótlása a kárelhárítás során","  -","  -","+","  -"]
["Dugulás ","  -","  -","+","  -"]
["Épületen kívüli elvezetőcsövek az ingatlan területén ","  -","  -","+","  -"]
["Ajtók, ablakok, portálok max.10 mm vastag üvegezésében keletkezett károk ","  -","  -","  -","12 m2  max.                        1 MFt"]
["Ólom-, sárgaréz- és műanyagüveg, vmint épületen elhelyezett napenergia-berendezések ","  -","  -","  -","+"]
["Cégtáblák, díszfények, mindenfajta biztonsági üveg, üvegtetők, plexikupolák vmint télikertek","  -","  -","  -","+"]
["Védőrács le- és felszerelési, sürgős üvegezési, állványozási, üvegcserepek eltakarítási költségei","  -","  -","  -",0.1]
["Engedélyezett tüntetések során keletkezett károk ","  -","  -","  -","+"]
["ÉPÜLET KIEGÉSZÍTŐK (biztosítási összegen felül)"]
["Hivatali eljárások, dokumentumok beszerzésének többletköltségei ","15% max.\n1 MFt","15% max.\n1 MFt","15% max.\n1 MFt","  -"]
["*Radioaktív szennyeződés mellékköltségei - (Szállítási, lebontási és izolációs költségek Veszélyes anyagok beleértve a rádioaktív anyagokkal szennyezett föld kezelési többletköltségei)","max. 15%, de min.\n1 MFt","max. 15%, de min.\n1 MFt","max. 15%, de min.\n1 MFt","  -"]
["Szakértői díjak ","0,5 MFt","0,5 MFt","0,5 MFt","  -"]
["Az elfolyt víz értéke ","  -","  -","1 MFt","  -"]

{"sheet":"IngóLimit","index":15,"n_rows":138,"n_cols":6,"rows_kept":138,"cut":false,"hidden":true,"merged":[]}
[]
[null,null,null,null,null,"UNION-Business Class "]
[null,null,null,null,null,"Ingóságbiztosítás Alap csomag"]
[]
[]
["INGÓSÁG ALAPKOCKÁZATOK ÉS LIMITEK","TŰZBIZTOSÍTÁS (tűz, robbanás, villámcsapás, légi jármű lezuhanása)","ELEMI KÁROK (vihar, felhőszakadás jégverés, hónyomás, földrengés)","VEZETÉKES VÍZKÁR ","Betöréses lopás és rablás","ÜVEGBIZTOSÍTÁS"]
["INGÓSÁG KIEGÉSZÍTŐK (biztosítási összegen belül)"]
["Alulbiztosítás vizsgálatáról való lemondás","10% max. 5MFt","10% max. 5MFt","10% max. 5MFt","10% max. 5MFt"," -"]
["Füst és hő álltal okozott károk"," -"," -"," -"," -"," -"]
["Elektromos tűz  "," -"," -"," -"," -"," -"]
["Bővített elemi kár védelem (árvíz, földmozgás) "," -"," -"," -"," -"," -"]
["Elektromos berendezésekben villámcsapás által közvetetten okozott károk "," -"," -"," -"," -"," -"]
["Füstölőkamrák, szárító- és más melegítőberendezések tartalma, ha a tűz kitörésének helye a berendezésen belül van ","5% max.                        1 MFt"," -"," -"," -"," -"]
["Épületen kívüli, ahhoz szilárdan rögzített tető (pl: napvédő, esővédő) ","5% max.\n0,3 MFt"," -"," -"," -"," -"]
["Munkavállalók vagyontárgyai (kivéve: értéktárgyak és gépjárművek)","0,05 MFt","0,05 MFt","0,05 MFt","0,05 MFt"," -"]
["Betöréses lopás során okozott rongálási károk, és épületrongálási károk (épületbiztosítással együtt)"," -"," -"," -",0.1," -"]
["Kiállítás- és vásárbiztosítás EU-tagállamokban és a feltételben meghatározott országokban"," -"," -"," -"," -"," -"]
["A biztosított helyiségeken kívül elhelyezett értékesítő automaták tartalma ","5% max\n1 MFt","5% max\n1 MFt"," -"," -"," -"]
["A biztosított helyiségeken kívül elhelyezett vitrinek és kirakatok, azok tartalma "," -"," -"," -"," -"," -"]
["Árukban és készletekben keletkezett károk Magyarország határain belüli szállítás során"," -"," -"," -"," -"," -"]
["Külső biztosítás -ha a másik biztosítás erre nem térít\n(kivéve: kiállítások, vásárok, építkezési területet és tárolóhelyek) "," -"," -"," -"," -"," -"]
["Technológiai csőtörés"," -"," -","+"," -"," -"]
["Dugulás              "," -"," -","  -"," -"," -"]
["Épületen kívüli bevezetőcsövek az ingatlan területén "," -"," -","  -"," -"," -"]
["Épületen kívüli elvezetőcsövek az ingatlan területén "," -"," -","  -"," -"," -"]
["Költségek (mentés,oltás,kárenyhítés,bontás,romeltakarítás)",0.1,0.1,0.1,0.1," -"]
["Legmagasabb kártérítési összeg ",null,null,null,null,"0,05 MFt"]
["A biztosított helyiségeken kívül elhelyezett vitrinek és kirakatok üvegezése"," -"," -"," -"," -","  -"]
["Belső- és külső üvegezés, ideértve a cégtáblák üvegezését, tagozott üvegezés, üvegszerű műanyagok (pl. plexi- és akrilüveg) "," -"," -"," -"," -","+"]
["Ólom-, sárgaréz- és műanyagüveg"," -"," -"," -"," -"," -"]
["Védőrács le- és felszerelési, sürgős üvegezési, állványozási, üvegcserepek eltakarítási költségei"," -"," -"," -"," -",0.1]
["INGÓSÁG KIEGÉSZÍTŐK (biztosítási összegen felül)"]
["Hivatali eljárások többletköltségei ","10% max.\n2 MFt","10% max.\n2 MFt","10% max.\n2 MFt","10% max.\n2 MFt"," -"]
["Tűzvédelmi és riasztási gyakorlatok","O",null,null,null," -"]
["Radioaktív szennyeződés mellékköltségei - Szállítási, lebontási és izolációs költségek Veszélyes anyagok beleértve a radioaktív anyagokkal szenyezett föld kezelési többletköltségei ","5% min. \n1 MFt","5% min. \n1 MFt","5% min. \n1 MFt","5% min. \n1 MFt"," -"]
["Akták, tervek, iratok vmint másolási segédanyagok","10% min. 0,2 MFt\nmax. 2 MFt","10% min. 0,2 MFt\nmax. 2 MFt","10% min. 0,2 MFt\nmax. 2 MFt","10% min. 0,2 MFt\nmax. 2 MFt"," -"]
["Kerítés, külső létesítmények, berendezések, vmint antennák és napenergia-berendezés amennyiben az üzemeltető tulajdona (beleértve az ismeretlen jármű ütközését is) ","5% max.\n2 MFt"," -"," -"," -"," -"]
["Engedélyezett tüntetések során keletkezett károk"," -"," -"," -"," -"," -"]
["Kirakaton elhelyezett festmények, képek és fóliák"," -"," -"," -"," -"," -"]
["Áremelkedés, technikai korszerűsítés többletköltségei "," -"," -"," -"," -"," -"]
["Vízelfolyás"," -"," -"," -"," -"," -"]
["Ügyfél kirablása a biztosított telephelyen"," -"," -"," -","0,5 MFt"," -"]
["Küldöttrablás"," -"," -"," -","0,5 MFt"," -"]
["Zárcsere költségei "," -"," -"," -","0,025 MFt"," -"]
["Telefonnal való visszaélés"," -"," -"," -","  -"," -"]
[]
[]
[]
[null,null,null,null,null,"UNION-Business Class"]
[null,null,null,null,null,"Ingóságbiztosítás Teljes csomag"]
[]
[]
["INGÓSÁG ALAPKOCKÁZATOK ÉS LIMITEK","TŰZBIZTOSÍTÁS (tűz, robbanás, villámcsapás, légi jármű lezuhanása)","ELEMI KÁROK (vihar, felhőszakadás jégverés, hónyomás, földrengés)","VEZETÉKES VÍZKÁR ","Betöréses lopás és rablás","ÜVEGBIZTOSÍTÁS"]
["INGÓSÁG KIEGÉSZÍTŐK (biztosítási összegen belül)"]
["Alulbiztosítás vizsgálatáról való lemondás","10% max. 5MFt","10% max. 5MFt","10% max. 5MFt","10% max. 5MFt"," -"]
["Füst és hő álltal okozott károk","+"," -"," -"," -"," -"]
["Elektromos tűz  ","+"," -"," -"," -"," -"]
["Bővített elemi kár védelem (árvíz, földmozgás) "," -","+"," -"," -"," -"]
["Elektromos berendezésekben villámcsapás által közvetetten okozott károk ","10%,max.\n3 MFt"," -"," -"," -"," -"]
["Füstölőkamrák, szárító- és más melegítőberendezések tartalma, ha a tűz kitörésének helye a berendezésen belül van ","10% max.\n3 MFt"," -"," -"," -"," -"]
["Épületen kívüli, ahhoz szilárdan rögzített tető (pl: napvédő, esővédő) ","10% max.\n0,5 MFt","0,1 MFt"," -"," -"," -"]
["Munkavállalók vagyontárgyai (kivéve: értéktárgyak és gépjárművek)","0,1 MFt","0,1 MFt","0,1 MFt","0,1 MFt"," -"]
["Betöréses lopás során okozott rongálási károk, és épületrongálási károk (épületbiztosítással együtt)"," -"," -"," -",0.1," -"]
["Kiállítás- és vásárbiztosítás EU-tagállamokban és a feltételben meghatározott országokban"," -"," -"," -"," -"," -"]
["A biztosított helyiségeken kívül elhelyezett értékesítő automaták tartalma ","10% max\n2 MFt","10% max\n2 MFt"," -","0,1 MFt"," -"]
["A biztosított helyiségeken kívül elhelyezett vitrinek és kirakatok, azok tartalma ","0,2 MFt/vitrin\n0,3 MFt/ tartalom","0,2 MFt/vitrin\n0,3 MFt/ tartalom"," -","0,2 MFt/vitrin\n0,3 MFt/ tartalom"," -"]
["Árukban és készletekben keletkezett károk Magyarország határain belüli szállítás során"," -"," -"," -"," -"," -"]
["Külső biztosítás -ha a másik biztosítás erre nem térít\n(kivéve: kiállítások, vásárok, építkezési területet és tárolóhelyek) "," - "," -"," -"," -"," -"]
["Technológiai csőtörés"," -"," -","+"," -"," -"]
["Dugulás              "," -"," -","  -"," -"," -"]
["Épületen kívüli bevezetőcsövek az ingatlan területén "," -"," -","+"," -"," -"]
["Épületen kívüli elvezetőcsövek az ingatlan területén "," -"," -","  -"," -"," -"]
["Költségek (mentés,oltás,kárenyhítés,bontás,romeltakarítás)",0.1,0.1,0.1,0.1," -"]
["Legmagasabb kártérítési összeg "," -"," -"," -"," -","0,1 MFt"]
["A biztosított helyiségeken kívül elhelyezett vitrinek és kirakatok üvegezése"," -"," -"," -"," -","+"]
["Belső- és külső üvegezés, ideértve a cégtáblák üvegezését, tagozott üvegezés, üvegszerű műanyagok (pl. plexi- és akrilüveg) "," -"," -"," -"," -","+"]
["Ólom-, sárgaréz- és műanyagüveg"," -"," -"," -"," -"," -"]
["Védőrács le- és felszerelési, sürgős üvegezési, állványozási, üvegcserepek eltakarítási költségei"," -"," -"," -"," -",0.1]
["INGÓSÁG KIEGÉSZÍTŐK (biztosítási összegen felül)"]
["Hivatali eljárások többletköltségei ","20% max.\n6 MFt","20% max.\n6 MFt","20% max.\n6 MFt","20% max.\n6 MFt"," -"]
["Tűzvédelmi és riasztási gyakorlatok","O",null,null,null," -"]
["*Radioaktív szennyeződés mellékköltségei - Szállítási, lebontási és izolációs költségek Veszélyes anyagok beleértve a radioaktív anyagokkal szenyezett föld kezelési többletköltségei ","10% min.\n1 MFt","10% min.\n1 MFt","10% min.\n1 MFt","10% min.\n1 MFt"," -"]
["**Akták, tervek, iratok vmint másolási segédanyagok ","10% min. 0,4 MFt\nmax. 4 MFt","10% min. 0,4 MFt\nmax. 4 MFt","10% min. 0,4 MFt\nmax. 4 MFt","10% min. 0,4 MFt\nmax. 4 MFt"," -"]
["Kerítés, külső létesítmények, berendezések, vmint antennák és napenergia-berendezés amennyiben az üzemeltető tulajdona (beleértve az ismeretlen jármű ütközését is) ","10% max.\n4 MFt","10% max.\n4 MFt"," -"," -"," -"]
["Engedélyezett  tüntetések során keletkezett károk"," -"," -"," -"," -","0,05 MFt "]
["Kirakaton elhelyezett festmények, képek és fóliák"," -"," -"," -"," -","0,1 MFt"]
["Áremelkedés, technikai korszerűsítés többletköltségei ","5% max\n1 MFt","5% max\n1 MFt","5% max\n1 MFt","5% max\n1 MFt"," -"]
["Vízelfolyás"," -"," -","0,5 MFt"," -"," -"]
["Ügyfél kirablása a biztosított telephelyen"," -"," -"," -","1 MFt"," -"]
["Küldöttrablás"," -"," -"," -","1 MFt"," -"]
["Zárcsere költségei "," -"," -"," -","0,05 MFt "," -"]
["Telefonnal való visszaélés"," -"," -"," -","0,05 MFt "," -"]
[]
[]
[]
[null,null,null,null,null,"UNION-Business Class "]
[null,null,null,null,null,"Ingóságbiztosítás Extra csomag"]
[]
["INGÓSÁG ALAPKOCKÁZATOK ÉS LIMITEK","TŰZBIZTOSÍTÁS (tűz, robbanás, villámcsapás, légi jármű lezuhanása)","ELEMI KÁROK (vihar, felhőszakadás jégverés, hónyomás, földrengés)","VEZETÉKES VÍZKÁR ","Betöréses lopás és rablás","ÜVEGBIZTOSÍTÁS"]
["INGÓSÁG KIEGÉSZÍTŐK (biztosítási összegen belül)"]
["Alulbiztosítás vizsgálatáról való lemondás","10% max. 5MFt","10% max. 5MFt","10% max. 5MFt","10% max. 5MFt"," -"]
["Füst és hő álltal okozott károk","+"," -"," -"," -"," -"]
["Elektromos tűz  ","+"," -"," -"," -"," -"]
["Bővített elemi kár védelem (árvíz, földmozgás) "," -","+"," -"," -"," -"]
["Elektromos berendezésekben villámcsapás által közvetetten okozott károk ","15%,max.\n5 MFt"," -"," -"," -"," -"]
["Füstölőkamrák, szárító- és más melegítőberendezések tartalma, ha a tűz kitörésének helye a berendezésen belül van ","15% max.\n5 MFt"," -"," -"," -"," -"]
["Épületen kívüli, ahhoz szilárdan rögzített tető (pl: napvédő, esővédő) ","15% max.\n1 MFt","0,2 MFt"," -"," -"," -"]
["Munkavállalók vagyontárgyai (kivéve: értéktárgyak és gépjárművek)","0,15 MFt","0,15 MFt","0,15 MFt","0,15 MFt"," -"]
["Betöréses lopás során okozott rongálási károk, és épületrongálási károk (épületbiztosítással együtt)"," -"," -"," -",0.1," -"]
["Kiállítás- és vásárbiztosítás EU-tagállamokban és a feltételben meghatározott országokban","30% max.\n6 MFt","30% max.\n6 MFt","30% max.\n6 MFt","30% max.\n6 MFt"," -"]
["A biztosított helyiségeken kívül elhelyezett értékesítő automaták tartalma ","15% max\n3 MFt","15% max\n3 MFt"," -","0,1 MFt"," -"]
["A biztosított helyiségeken kívül elhelyezett vitrinek és kirakatok, azok tartalma ","0,2 MFt/vitrin\n0,3 MFt /tartalom","0,2 MFt/vitrin\n0,3 MFt /tartalom"," -","0,2 MFt/vitrin\n0,3 MFt /tartalom"," -"]
["Árukban és készletekben keletkezett károk Magyarország határain belüli szállítás során","0,5 MFt","0,5 MFt"," -"," -"," -"]
["Külső biztosítás -ha a másik biztosítás erre nem térít\n(kivéve: kiállítások, vásárok, építkezési területet és tárolóhelyek) ","30% max\n9 MFt","30% max\n9 MFt","30% max\n9 MFt","30% max\n9 MFt"," -"]
["Technológiai csőtörés"," -"," -","+"," -"," -"]
["Dugulás              "," -"," -","+"," -"," -"]
["Épületen kívüli bevezetőcsövek az ingatlan területén "," -"," -","+"," -"," -"]
["Épületen kívüli elvezetőcsövek az ingatlan területén "," -"," -","+"," -"," -"]
["Költségek (mentés,oltás,kárenyhítés,bontás,romeltakarítás)",0.1,0.1,0.1,0.1," -"]
["Legmagasabb kártérítési összeg"," -"," -"," -"," -","0,15 MFt"]
["A biztosított helyiségeken kívül elhelyezett vitrinek és kirakatok üvegezése"," -"," -"," -"," -","+"]
["Belső- és külső üvegezés, ideértve a cégtáblák üvegezését, tagozott üvegezés, üvegszerű műanyagok (pl. plexi- és akrilüveg) "," -"," -"," -"," -","+"]
["Ólom-, sárgaréz- és műanyagüveg"," -"," -"," -"," -","+"]
["Védőrács le- és felszerelési, sürgős üvegezési, állványozási, üvegcserepek eltakarítási költségei"," -"," -"," -"," -",0.1]
["INGÓSÁG KIEGÉSZÍTŐK (biztosítási összegen felül)"]
["Hivatali eljárások többletköltségei ","30% max.\n6 MFt","30% max.\n6 MFt","30% max.\n6 MFt","30% max.\n6 MFt"," -"]
["Tűzvédelmi és riasztási gyakorlatok","O",null,null,null," -"]
["*Radioaktív szennyeződés mellékköltségei - Szállítási, lebontási és izolációs költségek Veszélyes anyagok beleértve a radioaktív anyagokkal szenyezett föld kezelési többletköltségei ","15% min.\n1 MFt","15% min.\n1 MFt","15% min.\n1 MFt","15% min.\n1 MFt"," -"]
["**Akták, tervek, iratok vmint másolási segédanyagok","10% min. 0,6 MFt\nmax. 6 MFt","10% min. 0,6 MFt\nmax. 6 MFt","10% min. 0,6 MFt\nmax. 6 MFt","10% min. 0,6 MFt\nmax. 6 MFt"," -"]
["Kerítés, külső létesítmények, berendezések, vmint antennák és napenergia-berendezés amennyiben az üzemeltető tulajdona (beleértve az ismeretlen jármű ütközését is) ","15% max.\n6 MFt","15% max.\n6 MFt"," -"," -"," -"]
["Engedélyezett tüntetések során keletkezett károk"," -"," -"," -"," -","0,075 MFt"]
["Kirakaton elhelyezett festmények, képek és fóliák"," -"," -"," -"," -","0,2 MFt"]
["Áremelkedés, technikai korszerűsítés többletköltségei ","10% max\n2 MFt","10% max\n2 MFt","10% max\n2 MFt","10% max\n2 MFt"," -"]
["Vízelfolyás"," -"," -","1 MFt"," -"," -"]
["Ügyfél kirablása a biztosított telephelyen"," -"," -"," -","2 MFt"," -"]
["Küldöttrablás"," -"," -"," -","2 MFt"," -"]
["Zárcsere költségei "," -"," -"," -","0,1 MFt"," -"]
["Telefonnal való visszaélés"," -"," -"," -","0,1 MFt"," -"]

{"sheet":"FelLimit","index":16,"n_rows":95,"n_cols":5,"rows_kept":95,"cut":false,"hidden":true,"merged":[[8,0,8,1],[15,0,15,1],[90,0,90,1],[46,0,46,1],[53,0,53,1],[83,0,83,1]]}
[]
[null,"UNION-Business Class"]
[null,"Felelősségbiztosítás Alap csomag"]
[]
[]
["FELELŐSSÉG ALAPKOCKÁZATOK ÉS LIMITEK","Általános, Munkáltatói és Termék és Szolgáltatás felelősségbiztosítás"]
["Káronkénti és éves kombinált limit","5 MFT/ kár /15 MFt/év"]
["Munkavállalók tárgyainak dologi kára","50.000,-/kár/fő"]
["FELELŐSSÉG KIEGÉSZÍTŐK"]
["Idegen járművek fel- és lerakodása","-"]
["Európai kiterjesztés (kivételekkel)","-"]
["Bérlői felelősség","+"]
["Bérbeadói felelősség","+"]
["Környezetszennyezési felelősség ","1 MFt/kár/ 3 MFt/év"]
["Speciális gyártó- és kereskedelmi üzemek sz. választás szerint együttbiztosítható: Kibővített termékfelelősség-bizt. ","-"]
["Felelősség kiegészítők szállásüzemeltetők és fürdők részére",null,null,null,"                                                         "]
["Sport- és szórakoztató létesítmények (sportpálya, játszótér, uszoda, szauna, tekepálya, fittnessterem stb.)","+"]
["Rendezvények és vendégek által igénybevett speciális szolgáltatások/ tevékenységek (szemináriumok, ülések, gyermekfelügyelet, túrázások, lovaglás, sportszerkölcsönzés stb.)","+"]
["Szállóvendégek vagyontárgyainak betöréses lopás során keletkezett kára","50.000,- Ft / 150.000,- Ft          "]
["Szállóvendégek gépjárművében, pótkocsijában \nés vízi járművében keletkezett károk, vagy azok megsemmisülése, elvesztése csak őrzött parkolóból betlop+rablás+szálloda által okozott kár","-"]
[]
[]
[]
[]
[]
[]
[]
[]
[]
[]
[]
[]
[]
[]
[]
[]
[]
[]
[]
[null,"UNION-Business Class"]
[null,"Felelősségbiztosítás Teljes csomag"]
[]
[]
["FELELŐSSÉG ALAPKOCKÁZATOK ÉS LIMITEK","Általános, Munkáltatói és Termék és Szolgáltatás felelősségbiztosítás"]
["Káronkénti és éves kombinált limit","15 MFt/kár / 45MFt/év"]
["Munkavállalók tárgyainak dologi kára","100.000,- /kár/fő"]
["FELELŐSSÉG KIEGÉSZÍTŐK"]
["Idegen járművek fel- és lerakodása","250.000,- Ft/kár"]
["Európai kiterjesztés (kivételekkel)","+"]
["Bérlői felelősség","+"]
["Bérbeadói felelősség","+"]
["Környezetszennyezési felelősség ","2 MFt/kár/ 6 MFt/év"]
["Speciális gyártó- és kereskedelmi üzemek sz. választás szerint együttbiztosítható: Kibővített termékfelelősség-bizt. ","3 MFt/kár/ 9 MFt/év"]
["Felelősség kiegészítők szállásüzemeltetők és fürdők részére",null,null,null,"                                                         "]
["Sport- és szórakoztató létesítmények (sportpálya, játszótér, uszoda, szauna, tekepálya, fittnessterem stb.)","+"]
["Rendezvények és vendégek által igénybevett speciális szolgáltatások/ tevékenységek (szemináriumok, ülések, gyermekfelügyelet, túrázások, lovaglás, sportszerkölcsönzés stb.)","+"]
["Szállóvendégek vagyontárgyainak betöréses lopás során keletkezett kára","100.000,- Ft/ 300.000,- Ft"]
["Szállóvendégek gépjárművében, pótkocsijában és vízi járművében keletkezett károk, vagy azok megsemmisülése, elvesztése csak őrzött parkolóból betlop+rablás+szálloda által okozott kár","3 MFt"]
[]
[]
[]
[]
[]
[]
[]
[]
[]
[]
[]
[]
[]
[]
[]
[]
[]
[]
[null,"UNION-Business Class"]
[null,"Felelősségbiztosítás Extra csomag"]
[]
[]
["FELELŐSSÉG ALAPKOCKÁZATOK ÉS LIMITEK","Általános, Munkáltatói és Termék és Szolgáltatás felelősségbiztosítás"]
["Káronkénti és éves kombinált limit","50 MFt/kár / 100 MFt/év"]
["Munkavállalók tárgyainak dologi kára","200.000,-/kár/fő"]
["FELELŐSSÉG KIEGÉSZÍTŐK"]
["Idegen járművek fel- és lerakodása","500.000,- Ft/kár"]
["Európai kiterjesztés (kivételekkel)","+"]
["Bérlői felelősség","+"]
["Bérbeadói felelősség","+"]
["Környezetszennyezési felelősség ","4 MFt/kár /12 MFt/év"]
["Speciális gyártó- és kereskedelmi üzemek sz. választás szerint együttbiztosítható: Kibővített termékfelelősség-bizt. ","6 MFt/kár/ 18 MFt/év"]
["Felelősség kiegészítők szállásüzemeltetők és fürdők részére",null,null,null,"                                                         "]
["Sport- és szórakoztató létesítmények (sportpálya, játszótér, uszoda, szauna, tekepálya, fittnessterem stb.)","+"]
["Rendezvények és vendégek által igénybevett speciális szolgáltatások/ tevékenységek (szemináriumok, ülések, gyermekfelügyelet, túrázások, lovaglás, sportszerkölcsönzés stb.)","+"]
["Szállóvendégek vagyontárgyainak betöréses lopás során keletkezett kára","300.000,- Ft  / 900.000,- Ft"]
["Szállóvendégek gépjárművében, pótkocsijában \nés vízi járművében keletkezett károk, vagy azok megsemmisülése, elvesztése csak őrzött parkolóból betlop+rablás+szálloda által okozott kár","6 MFt"]

{"sheet":"Munka9","index":17,"n_rows":0,"n_cols":0,"rows_kept":0,"cut":false,"hidden":true,"merged":[]}

{"sheet":"Munka5","index":18,"n_rows":0,"n_cols":0,"rows_kept":0,"cut":false,"hidden":true,"merged":[]}

{"sheet":"Munka1","index":19,"n_rows":0,"n_cols":0,"rows_kept":0,"cut":false,"hidden":true,"merged":[]}